Workbook

Sheet 主表
D1: 0.15 | E1: =D1*4/3 -> 0.2 | F1: =功法!G1+0.75 -> 1.75 | J1: 主角倍率 | K1: 血攻比 | L1: 20 | O1: 怪物倍率 | U1: 主角 | Y1: 怪物 | Z1: 101
A2: 等级 | B2: 等级强度 | C2: 法宝数量 | D2: 法宝强度 | E2: 功法+法宝被动放大 | F2: 生命放大 | G2: 最终强度 防御系数 | H2: 前期功法修正 | J2: 生命 | K2: 攻击 | L2: 防御 | M2: 护盾 | O2: 生命 | P2: 防御 | Q2: 攻击 | R2: 护盾 | U2: 生命 | V2: 攻击 | W2: 防御 | Y2: =VLOOKUP(Z1,[1]HeroModelConfig!$A:$L,10,FALSE) -> 100 | Z2: =VLOOKUP(Z1,[1]HeroModelConfig!$A:$L,9,FALSE) -> 100 | AA2: =VLOOKUP(Z1,[1]HeroModelConfig!$A:$L,11,FALSE) -> 50
A3: 1 | B3: =升级!C3 -> 100 | C3: 1 | D3: =B3*D$1/3*C3 -> 5 | E3: =(VLOOKUP(INT(MAX(1,0.2*A3))*5,功法!B:E,4,FALSE)+(VLOOKUP(INT(MIN(60,MAX(1,0.2*A3+1)))*5,功法!B:E,4,FALSE)-VLOOKUP(INT(MAX(1,0.2*A3))*5,功法!B:E,4,FALSE))*MOD(A3,5)/5)*H3 -> 0 | F3: =F$1*$A3/300 -> 0.005833333333 | G3: =ROUND((B3+D3)*(1+E3),0) -> 105 | H3: 0.01 | J3: =B3/B$3*(1+F3)*L$1 -> 20.11666667 | K3: =B3/B$3 -> 1 | L3: =K3 -> 1 | M3: =IF(A3<160,0,升级!J3/升级!C$3) -> 0 | O3: =G3/B$3*(1+F3)*L$1 -> 21.1225 | P3: =G3/B$3 -> 1.05 | Q3: =P3 -> 1.05 | R3: =IF(A3<160,0,升级!J3/升级!C$3) -> 0 | T3: 1 | U3: =$B$3*J3 -> 2011.666667 | V3: =$B$3*K3 -> 100 | W3: =$B$3*L3*0.5 -> 50 | Y3: =$B$3*O3*Y$2/100 -> 2112.25 | Z3: =$B$3*P3*Z$2/100 -> 105 | AA3: 52.5
A4: 2 | B4: =升级!C4 -> 102 | C4: 1 | D4: =D3 -> 5 | E4: =(VLOOKUP(INT(MAX(1,0.2*A4))*5,功法!B:E,4,FALSE)+(VLOOKUP(INT(MIN(60,MAX(1,0.2*A4+1)))*5,功法!B:E,4,FALSE)-VLOOKUP(INT(MAX(1,0.2*A4))*5,功法!B:E,4,FALSE))*MOD(A4,5)/5)*H4 -> 0 | F4: =F$1*$A4/300 -> 0.01166666667 | G4: 107 | H4: 0.02 | J4: =B4/B$3*(1+F4)*L$1 -> 20.638 | K4: 1.02 | L4: =K4 -> 1.02 | M4: =IF(A4<160,0,升级!J4/升级!C$3) -> 0 | O4: =G4/B$3*(1+F4)*L$1 -> 21.64966667 | P4: 1.07 | Q4: =P4 -> 1.07 | R4: =IF(A4<160,0,升级!J4/升级!C$3) -> 0 | T4: 2 | U4: =$B$3*J4 -> 2063.8 | V4: =$B$3*K4 -> 102 | W4: =$B$3*L4*0.5 -> 51 | Y4: =$B$3*O4*Y$2/100 -> 2164.966667 | Z4: =$B$3*P4*Z$2/100 -> 107 | AA4: =$B$3*Q4*AA$2/100 -> 53.5
A5: 3 | B5: =升级!C5 -> 104 | C5: 1 | D5: =D4 -> 5 | E5: =(VLOOKUP(INT(MAX(1,0.2*A5))*5,功法!B:E,4,FALSE)+(VLOOKUP(INT(MIN(60,MAX(1,0.2*A5+1)))*5,功法!B:E,4,FALSE)-VLOOKUP(INT(MAX(1,0.2*A5))*5,功法!B:E,4,FALSE))*MOD(A5,5)/5)*H5 -> 0 | F5: 0.0175 | G5: 109 | H5: 0.03 | J5: 21.164 | K5: 1.04 | L5: 1.04 | M5: =IF(A5<160,0,升级!J5/升级!C$3) -> 0 | O5: 22.1815 | P5: 1.09 | Q5: 1.09 | R5: =IF(A5<160,0,升级!J5/升级!C$3) -> 0 | T5: 3 | U5: 2116.4 | V5: 104 | W5: 52 | Y5: 2218.15 | Z5: 109 | AA5: 54.5
A6: 4 | B6: =升级!C6 -> 106 | C6: 1 | D6: 5 | E6: =(VLOOKUP(INT(MAX(1,0.2*A6))*5,功法!B:E,4,FALSE)+(VLOOKUP(INT(MIN(60,MAX(1,0.2*A6+1)))*5,功法!B:E,4,FALSE)-VLOOKUP(INT(MAX(1,0.2*A6))*5,功法!B:E,4,FALSE))*MOD(A6,5)/5)*H6 -> 0 | F6: 0.02333333333 | G6: 111 | H6: 0.04 | J6: 21.69466667 | K6: 1.06 | L6: 1.06 | M6: =IF(A6<160,0,升级!J6/升级!C$3) -> 0 | O6: 22.718 | P6: 1.11 | Q6: 1.11 | R6: =IF(A6<160,0,升级!J6/升级!C$3) -> 0 | T6: 4 | U6: 2169.466667 | V6: 106 | W6: 53 | Y6: 2271.8 | Z6: 111 | AA6: 55.5
A7: 5 | B7: =升级!C7 -> 108 | C7: 1 | D7: 5 | E7: =(VLOOKUP(INT(MAX(1,0.2*A7))*5,功法!B:E,4,FALSE)+(VLOOKUP(INT(MIN(60,MAX(1,0.2*A7+1)))*5,功法!B:E,4,FALSE)-VLOOKUP(INT(MAX(1,0.2*A7))*5,功法!B:E,4,FALSE))*MOD(A7,5)/5)*H7 -> 0 | F7: 0.02916666667 | G7: 113 | H7: 0.05 | J7: 22.23 | K7: 1.08 | L7: 1.08 | M7: =IF(A7<160,0,升级!J7/升级!C$3) -> 0 | O7: 23.25916667 | P7: 1.13 | Q7: 1.13 | R7: =IF(A7<160,0,升级!J7/升级!C$3) -> 0 | T7: 5 | U7: 2223 | V7: 108 | W7: 54 | Y7: 2325.916667 | Z7: 113 | AA7: 56.5
A8: 6 | B8: =升级!C8 -> 110 | C8: 1 | D8: 5 | E8: =(VLOOKUP(INT(MAX(1,0.2*A8))*5,功法!B:E,4,FALSE)+(VLOOKUP(INT(MIN(60,MAX(1,0.2*A8+1)))*5,功法!B:E,4,FALSE)-VLOOKUP(INT(MAX(1,0.2*A8))*5,功法!B:E,4,FALSE))*MOD(A8,5)/5)*H8 -> 0.0003638 | F8: 0.035 | G8: 115 | H8: 0.06 | J8: 22.77 | K8: 1.1 | L8: 1.1 | M8: =IF(A8<160,0,升级!J8/升级!C$3) -> 0 | O8: 23.805 | P8: 1.15 | Q8: 1.15 | R8: =IF(A8<160,0,升级!J8/升级!C$3) -> 0 | T8: 6 | U8: 2277 | V8: 110 | W8: 55 | Y8: 2380.5 | Z8: 115 | AA8: 57.5
A9: 7 | B9: =升级!C9 -> 112 | C9: 1 | D9: 5 | E9: =(VLOOKUP(INT(MAX(1,0.2*A9))*5,功法!B:E,4,FALSE)+(VLOOKUP(INT(MIN(60,MAX(1,0.2*A9+1)))*5,功法!B:E,4,FALSE)-VLOOKUP(INT(MAX(1,0.2*A9))*5,功法!B:E,4,FALSE))*MOD(A9,5)/5)*H9 -> 0.0008488666667 | F9: 0.04083333333 | G9: 117 | H9: 0.07 | J9: 23.31466667 | K9: 1.12 | L9: 1.12 | M9: =IF(A9<160,0,升级!J9/升级!C$3) -> 0 | O9: 24.3555 | P9: 1.17 | Q9: 1.17 | R9: =IF(A9<160,0,升级!J9/升级!C$3) -> 0 | T9: 7 | U9: 2331.466667 | V9: 112 | W9: 56 | Y9: 2435.55 | Z9: 117 | AA9: 58.5
A10: 8 | B10: =升级!C10 -> 114 | C10: 1 | D10: 5 | E10: =(VLOOKUP(INT(MAX(1,0.2*A10))*5,功法!B:E,4,FALSE)+(VLOOKUP(INT(MIN(60,MAX(1,0.2*A10+1)))*5,功法!B:E,4,FALSE)-VLOOKUP(INT(MAX(1,0.2*A10))*5,功法!B:E,4,FALSE))*MOD(A10,5)/5)*H10 -> 0.0014552 | F10: 0.04666666667 | G10: 119 | H10: 0.08 | J10: 23.864 | K10: 1.14 | L10: 1.14 | M10: =IF(A10<160,0,升级!J10/升级!C$3) -> 0 | O10: 24.91066667 | P10: 1.19 | Q10: 1.19 | R10: =IF(A10<160,0,升级!J10/升级!C$3) -> 0 | T10: 8 | U10: 2386.4 | V10: 114 | W10: 57 | Y10: 2491.066667 | Z10: 119 | AA10: 59.5
A11: 9 | B11: =升级!C11 -> 116 | C11: 1 | D11: 5 | E11: =(VLOOKUP(INT(MAX(1,0.2*A11))*5,功法!B:E,4,FALSE)+(VLOOKUP(INT(MIN(60,MAX(1,0.2*A11+1)))*5,功法!B:E,4,FALSE)-VLOOKUP(INT(MAX(1,0.2*A11))*5,功法!B:E,4,FALSE))*MOD(A11,5)/5)*H11 -> 0.0021828 | F11: 0.0525 | G11: 121 | H11: 0.09 | J11: 24.418 | K11: 1.16 | L11: 1.16 | M11: =IF(A11<160,0,升级!J11/升级!C$3) -> 0 | O11: 25.4705 | P11: 1.21 | Q11: 1.21 | R11: =IF(A11<160,0,升级!J11/升级!C$3) -> 0 | T11: 9 | U11: 2441.8 | V11: 116 | W11: 58 | Y11: 2547.05 | Z11: 121 | AA11: 60.5
A12: 10 | B12: =升级!C12 -> 118 | C12: 1 | D12: 5 | E12: =(VLOOKUP(INT(MAX(1,0.2*A12))*5,功法!B:E,4,FALSE)+(VLOOKUP(INT(MIN(60,MAX(1,0.2*A12+1)))*5,功法!B:E,4,FALSE)-VLOOKUP(INT(MAX(1,0.2*A12))*5,功法!B:E,4,FALSE))*MOD(A12,5)/5)*H12 -> 0.003031666667 | F12: 0.05833333333 | G12: 123 | H12: 0.1 | J12: 24.97666667 | K12: 1.18 | L12: 1.18 | M12: =IF(A12<160,0,升级!J12/升级!C$3) -> 0 | O12: 26.035 | P12: 1.23 | Q12: 1.23 | R12: =IF(A12<160,0,升级!J12/升级!C$3) -> 0 | T12: 10 | U12: 2497.666667 | V12: 118 | W12: 59 | Y12: 2603.5 | Z12: 123 | AA12: 61.5
A13: 11 | B13: =升级!C13 -> 148 | C13: 1 | D13: =B13*D$1/3*C13 -> 7.4 | E13: =(VLOOKUP(INT(MAX(1,0.2*A13))*5,功法!B:E,4,FALSE)+(VLOOKUP(INT(MIN(60,MAX(1,0.2*A13+1)))*5,功法!B:E,4,FALSE)-VLOOKUP(INT(MAX(1,0.2*A13))*5,功法!B:E,4,FALSE))*MOD(A13,5)/5)*H13 -> 0.0040018 | F13: 0.06416666667 | G13: 156 | H13: 0.11 | J13: 31.49933333 | K13: 1.48 | L13: 1.48 | M13: =IF(A13<160,0,升级!J13/升级!C$3) -> 0 | O13: 33.202 | P13: 1.56 | Q13: 1.56 | R13: =IF(A13<160,0,升级!J13/升级!C$3) -> 0 | T13: 11 | U13: 3149.933333 | V13: 148 | W13: 74 | Y13: 3320.2 | Z13: 156 | AA13: 78
A14: 12 | B14: =升级!C14 -> 150 | C14: 1 | D14: =D13 -> 7.4 | E14: =(VLOOKUP(INT(MAX(1,0.2*A14))*5,功法!B:E,4,FALSE)+(VLOOKUP(INT(MIN(60,MAX(1,0.2*A14+1)))*5,功法!B:E,4,FALSE)-VLOOKUP(INT(MAX(1,0.2*A14))*5,功法!B:E,4,FALSE))*MOD(A14,5)/5)*H14 -> 0.0050932 | F14: 0.07 | G14: 158 | H14: 0.12 | J14: 32.1 | K14: 1.5 | L14: 1.5 | M14: =IF(A14<160,0,升级!J14/升级!C$3) -> 0 | O14: 33.812 | P14: 1.58 | Q14: 1.58 | R14: =IF(A14<160,0,升级!J14/升级!C$3) -> 0 | T14: 12 | U14: 3210 | V14: 150 | W14: 75 | Y14: 3381.2 | Z14: 158 | AA14: 79
A15: 13 | B15: =升级!C15 -> 154 | C15: 1 | D15: =D14 -> 7.4 | E15: =(VLOOKUP(INT(MAX(1,0.2*A15))*5,功法!B:E,4,FALSE)+(VLOOKUP(INT(MIN(60,MAX(1,0.2*A15+1)))*5,功法!B:E,4,FALSE)-VLOOKUP(INT(MAX(1,0.2*A15))*5,功法!B:E,4,FALSE))*MOD(A15,5)/5)*H15 -> 0.006305866667 | F15: 0.07583333333 | G15: 162 | H15: 0.13 | J15: 33.13566667 | K15: 1.54 | L15: 1.54 | M15: =IF(A15<160,0,升级!J15/升级!C$3) -> 0 | O15: 34.857 | P15: 1.62 | Q15: 1.62 | R15: =IF(A15<160,0,升级!J15/升级!C$3) -> 0 | T15: 13 | U15: 3313.566667 | V15: 154 | W15: 77 | Y15: 3485.7 | Z15: 162 | AA15: 81
A16: 14 | B16: =升级!C16 -> 156 | C16: 1 | D16: 7.4 | E16: =(VLOOKUP(INT(MAX(1,0.2*A16))*5,功法!B:E,4,FALSE)+(VLOOKUP(INT(MIN(60,MAX(1,0.2*A16+1)))*5,功法!B:E,4,FALSE)-VLOOKUP(INT(MAX(1,0.2*A16))*5,功法!B:E,4,FALSE))*MOD(A16,5)/5)*H16 -> 0.0076398 | F16: 0.08166666667 | G16: 165 | H16: 0.14 | J16: 33.748 | K16: 1.56 | L16: 1.56 | M16: =IF(A16<160,0,升级!J16/升级!C$3) -> 0 | O16: 35.695 | P16: 1.65 | Q16: 1.65 | R16: =IF(A16<160,0,升级!J16/升级!C$3) -> 0 | T16: 14 | U16: 3374.8 | V16: 156 | W16: 78 | Y16: 3569.5 | Z16: 165 | AA16: 82.5
A17: 15 | B17: =升级!C17 -> 158 | C17: 1 | D17: 7.4 | E17: =(VLOOKUP(INT(MAX(1,0.2*A17))*5,功法!B:E,4,FALSE)+(VLOOKUP(INT(MIN(60,MAX(1,0.2*A17+1)))*5,功法!B:E,4,FALSE)-VLOOKUP(INT(MAX(1,0.2*A17))*5,功法!B:E,4,FALSE))*MOD(A17,5)/5)*H17 -> 0.009095 | F17: 0.0875 | G17: 167 | H17: 0.15 | J17: 34.365 | K17: 1.58 | L17: 1.58 | M17: =IF(A17<160,0,升级!J17/升级!C$3) -> 0 | O17: 36.3225 | P17: 1.67 | Q17: 1.67 | R17: =IF(A17<160,0,升级!J17/升级!C$3) -> 0 | T17: 15 | U17: 3436.5 | V17: 158 | W17: 79 | Y17: 3632.25 | Z17: 167 | AA17: 83.5
A18: 16 | B18: =升级!C18 -> 160 | C18: 1 | D18: 7.4 | E18: =(VLOOKUP(INT(MAX(1,0.2*A18))*5,功法!B:E,4,FALSE)+(VLOOKUP(INT(MIN(60,MAX(1,0.2*A18+1)))*5,功法!B:E,4,FALSE)-VLOOKUP(INT(MAX(1,0.2*A18))*5,功法!B:E,4,FALSE))*MOD(A18,5)/5)*H18 -> 0.01067146667 | F18: 0.09333333333 | G18: 169 | H18: 0.16 | J18: 34.98666667 | K18: 1.6 | L18: 1.6 | M18: =IF(A18<160,0,升级!J18/升级!C$3) -> 0 | O18: 36.95466667 | P18: 1.69 | Q18: 1.69 | R18: =IF(A18<160,0,升级!J18/升级!C$3) -> 0 | T18: 16 | U18: 3498.666667 | V18: 160 | W18: 80 | Y18: 3695.466667 | Z18: 169 | AA18: 84.5
A19: 17 | B19: =升级!C19 -> 162 | C19: 1 | D19: 7.4 | E19: =(VLOOKUP(INT(MAX(1,0.2*A19))*5,功法!B:E,4,FALSE)+(VLOOKUP(INT(MIN(60,MAX(1,0.2*A19+1)))*5,功法!B:E,4,FALSE)-VLOOKUP(INT(MAX(1,0.2*A19))*5,功法!B:E,4,FALSE))*MOD(A19,5)/5)*H19 -> 0.0123692 | F19: 0.09916666667 | G19: 171 | H19: 0.17 | J19: 35.613 | K19: 1.62 | L19: 1.62 | M19: =IF(A19<160,0,升级!J19/升级!C$3) -> 0 | O19: 37.5915 | P19: 1.71 | Q19: 1.71 | R19: =IF(A19<160,0,升级!J19/升级!C$3) -> 0 | T19: 17 | U19: 3561.3 | V19: 162 | W19: 81 | Y19: 3759.15 | Z19: 171 | AA19: 85.5
A20: 18 | B20: =升级!C20 -> 164 | C20: 1 | D20: 7.4 | E20: =(VLOOKUP(INT(MAX(1,0.2*A20))*5,功法!B:E,4,FALSE)+(VLOOKUP(INT(MIN(60,MAX(1,0.2*A20+1)))*5,功法!B:E,4,FALSE)-VLOOKUP(INT(MAX(1,0.2*A20))*5,功法!B:E,4,FALSE))*MOD(A20,5)/5)*H20 -> 0.0141882 | F20: 0.105 | G20: 174 | H20: 0.18 | J20: 36.244 | K20: 1.64 | L20: 1.64 | M20: =IF(A20<160,0,升级!J20/升级!C$3) -> 0 | O20: 38.454 | P20: 1.74 | Q20: 1.74 | R20: =IF(A20<160,0,升级!J20/升级!C$3) -> 0 | T20: 18 | U20: 3624.4 | V20: 164 | W20: 82 | Y20: 3845.4 | Z20: 174 | AA20: 87
A21: 19 | B21: =升级!C21 -> 168 | C21: 1 | D21: 7.4 | E21: =(VLOOKUP(INT(MAX(1,0.2*A21))*5,功法!B:E,4,FALSE)+(VLOOKUP(INT(MIN(60,MAX(1,0.2*A21+1)))*5,功法!B:E,4,FALSE)-VLOOKUP(INT(MAX(1,0.2*A21))*5,功法!B:E,4,FALSE))*MOD(A21,5)/5)*H21 -> 0.01612846667 | F21: 0.1108333333 | G21: 178 | H21: 0.19 | J21: 37.324 | K21: 1.68 | L21: 1.68 | M21: =IF(A21<160,0,升级!J21/升级!C$3) -> 0 | O21: 39.54566667 | P21: 1.78 | Q21: 1.78 | R21: =IF(A21<160,0,升级!J21/升级!C$3) -> 0 | T21: 19 | U21: 3732.4 | V21: 168 | W21: 84 | Y21: 3954.566667 | Z21: 178 | AA21: 89
A22: 20 | B22: =升级!C22 -> 170 | C22: 1 | D22: 7.4 | E22: =(VLOOKUP(INT(MAX(1,0.2*A22))*5,功法!B:E,4,FALSE)+(VLOOKUP(INT(MIN(60,MAX(1,0.2*A22+1)))*5,功法!B:E,4,FALSE)-VLOOKUP(INT(MAX(1,0.2*A22))*5,功法!B:E,4,FALSE))*MOD(A22,5)/5)*H22 -> 0.01819 | F22: 0.1166666667 | G22: 181 | H22: 0.2 | J22: 37.96666667 | K22: 1.7 | L22: 1.7 | M22: =IF(A22<160,0,升级!J22/升级!C$3) -> 0 | O22: 40.42333333 | P22: 1.81 | Q22: 1.81 | R22: =IF(A22<160,0,升级!J22/升级!C$3) -> 0 | T22: 20 | U22: 3796.666667 | V22: 170 | W22: 85 | Y22: 4042.333333 | Z22: 181 | AA22: 90.5
A23: 21 | B23: =升级!C23 -> 220 | C23: 2 | D23: =B23*D$1/3*C23 -> 22 | E23: =(VLOOKUP(INT(MAX(1,0.2*A23))*5,功法!B:E,4,FALSE)+(VLOOKUP(INT(MIN(60,MAX(1,0.2*A23+1)))*5,功法!B:E,4,FALSE)-VLOOKUP(INT(MAX(1,0.2*A23))*5,功法!B:E,4,FALSE))*MOD(A23,5)/5)*H23 -> 0.0203728 | F23: 0.1225 | G23: 247 | H23: 0.21 | J23: 49.39 | K23: 2.2 | L23: 2.2 | M23: =IF(A23<160,0,升级!J23/升级!C$3) -> 0 | O23: 55.4515 | P23: 2.47 | Q23: 2.47 | R23: =IF(A23<160,0,升级!J23/升级!C$3) -> 0 | T23: 21 | U23: 4939 | V23: 220 | W23: 110 | Y23: 5545.15 | Z23: 247 | AA23: 123.5
A24: 22 | B24: =升级!C24 -> 224 | C24: 2 | D24: =D23 -> 22 | E24: =(VLOOKUP(INT(MAX(1,0.2*A24))*5,功法!B:E,4,FALSE)+(VLOOKUP(INT(MIN(60,MAX(1,0.2*A24+1)))*5,功法!B:E,4,FALSE)-VLOOKUP(INT(MAX(1,0.2*A24))*5,功法!B:E,4,FALSE))*MOD(A24,5)/5)*H24 -> 0.02267686667 | F24: 0.1283333333 | G24: 252 | H24: 0.22 | J24: 50.54933333 | K24: 2.24 | L24: 2.24 | M24: =IF(A24<160,0,升级!J24/升级!C$3) -> 0 | O24: 56.868 | P24: 2.52 | Q24: 2.52 | R24: =IF(A24<160,0,升级!J24/升级!C$3) -> 0 | T24: 22 | U24: 5054.933333 | V24: 224 | W24: 112 | Y24: 5686.8 | Z24: 252 | AA24: 126
A25: 23 | B25: =升级!C25 -> 228 | C25: 2 | D25: =D24 -> 22 | E25: =(VLOOKUP(INT(MAX(1,0.2*A25))*5,功法!B:E,4,FALSE)+(VLOOKUP(INT(MIN(60,MAX(1,0.2*A25+1)))*5,功法!B:E,4,FALSE)-VLOOKUP(INT(MAX(1,0.2*A25))*5,功法!B:E,4,FALSE))*MOD(A25,5)/5)*H25 -> 0.0251022 | F25: 0.1341666667 | G25: 256 | H25: 0.23 | J25: 51.718 | K25: 2.28 | L25: 2.28 | M25: =IF(A25<160,0,升级!J25/升级!C$3) -> 0 | O25: 58.06933333 | P25: 2.56 | Q25: 2.56 | R25: =IF(A25<160,0,升级!J25/升级!C$3) -> 0 | T25: 23 | U25: 5171.8 | V25: 228 | W25: 114 | Y25: 5806.933333 | Z25: 256 | AA25: 128
A26: 24 | B26: =升级!C26 -> 232 | C26: 2 | D26: 22 | E26: =(VLOOKUP(INT(MAX(1,0.2*A26))*5,功法!B:E,4,FALSE)+(VLOOKUP(INT(MIN(60,MAX(1,0.2*A26+1)))*5,功法!B:E,4,FALSE)-VLOOKUP(INT(MAX(1,0.2*A26))*5,功法!B:E,4,FALSE))*MOD(A26,5)/5)*H26 -> 0.0276488 | F26: 0.14 | G26: 261 | H26: 0.24 | J26: 52.896 | K26: 2.32 | L26: 2.32 | M26: =IF(A26<160,0,升级!J26/升级!C$3) -> 0 | O26: 59.508 | P26: 2.61 | Q26: 2.61 | R26: =IF(A26<160,0,升级!J26/升级!C$3) -> 0
A27: 25 | B27: =升级!C27 -> 234 | C27: 2 | D27: 22 | E27: =(VLOOKUP(INT(MAX(1,0.2*A27))*5,功法!B:E,4,FALSE)+(VLOOKUP(INT(MIN(60,MAX(1,0.2*A27+1)))*5,功法!B:E,4,FALSE)-VLOOKUP(INT(MAX(1,0.2*A27))*5,功法!B:E,4,FALSE))*MOD(A27,5)/5)*H27 -> 0.03031666667 | F27: 0.1458333333 | G27: 264 | H27: 0.25 | J27: 53.625 | K27: 2.34 | L27: 2.34 | M27: =IF(A27<160,0,升级!J27/升级!C$3) -> 0 | O27: 60.5 | P27: 2.64 | Q27: 2.64 | R27: =IF(A27<160,0,升级!J27/升级!C$3) -> 0
A28: 26 | B28: =升级!C28 -> 238 | C28: 2 | D28: 22 | E28: =(VLOOKUP(INT(MAX(1,0.2*A28))*5,功法!B:E,4,FALSE)+(VLOOKUP(INT(MIN(60,MAX(1,0.2*A28+1)))*5,功法!B:E,4,FALSE)-VLOOKUP(INT(MAX(1,0.2*A28))*5,功法!B:E,4,FALSE))*MOD(A28,5)/5)*H28 -> 0.0331058 | F28: 0.1516666667 | G28: 269 | H28: 0.26 | J28: 54.81933333 | K28: 2.38 | L28: 2.38 | M28: =IF(A28<160,0,升级!J28/升级!C$3) -> 0 | O28: 61.95966667 | P28: 2.69 | Q28: 2.69 | R28: =IF(A28<160,0,升级!J28/升级!C$3) -> 0
A29: 27 | B29: =升级!C29 -> 242 | C29: 2 | D29: 22 | E29: =(VLOOKUP(INT(MAX(1,0.2*A29))*5,功法!B:E,4,FALSE)+(VLOOKUP(INT(MIN(60,MAX(1,0.2*A29+1)))*5,功法!B:E,4,FALSE)-VLOOKUP(INT(MAX(1,0.2*A29))*5,功法!B:E,4,FALSE))*MOD(A29,5)/5)*H29 -> 0.0360162 | F29: 0.1575 | G29: 274 | H29: 0.27 | J29: 56.023 | K29: 2.42 | L29: 2.42 | M29: =IF(A29<160,0,升级!J29/升级!C$3) -> 0 | O29: 63.431 | P29: 2.74 | Q29: 2.74 | R29: =IF(A29<160,0,升级!J29/升级!C$3) -> 0
A30: 28 | B30: =升级!C30 -> 246 | C30: 2 | D30: 22 | E30: =(VLOOKUP(INT(MAX(1,0.2*A30))*5,功法!B:E,4,FALSE)+(VLOOKUP(INT(MIN(60,MAX(1,0.2*A30+1)))*5,功法!B:E,4,FALSE)-VLOOKUP(INT(MAX(1,0.2*A30))*5,功法!B:E,4,FALSE))*MOD(A30,5)/5)*H30 -> 0.03904786667 | F30: 0.1633333333 | G30: 278 | H30: 0.28 | J30: 57.236 | K30: 2.46 | L30: 2.46 | M30: =IF(A30<160,0,升级!J30/升级!C$3) -> 0 | O30: 64.68133333 | P30: 2.78 | Q30: 2.78 | R30: =IF(A30<160,0,升级!J30/升级!C$3) -> 0
A31: 29 | B31: =升级!C31 -> 248 | C31: 2 | D31: 22 | E31: =(VLOOKUP(INT(MAX(1,0.2*A31))*5,功法!B:E,4,FALSE)+(VLOOKUP(INT(MIN(60,MAX(1,0.2*A31+1)))*5,功法!B:E,4,FALSE)-VLOOKUP(INT(MAX(1,0.2*A31))*5,功法!B:E,4,FALSE))*MOD(A31,5)/5)*H31 -> 0.0422008 | F31: 0.1691666667 | G31: 281 | H31: 0.29 | J31: 57.99066667 | K31: 2.48 | L31: 2.48 | M31: =IF(A31<160,0,升级!J31/升级!C$3) -> 0 | O31: 65.70716667 | P31: 2.81 | Q31: 2.81 | R31: =IF(A31<160,0,升级!J31/升级!C$3) -> 0
A32: 30 | B32: =升级!C32 -> 252 | C32: 2 | D32: 22 | E32: =(VLOOKUP(INT(MAX(1,0.2*A32))*5,功法!B:E,4,FALSE)+(VLOOKUP(INT(MIN(60,MAX(1,0.2*A32+1)))*5,功法!B:E,4,FALSE)-VLOOKUP(INT(MAX(1,0.2*A32))*5,功法!B:E,4,FALSE))*MOD(A32,5)/5)*H32 -> 0.045475 | F32: 0.175 | G32: 286 | H32: 0.3 | J32: 59.22 | K32: 2.52 | L32: 2.52 | M32: =IF(A32<160,0,升级!J32/升级!C$3) -> 0 | O32: 67.21 | P32: 2.86 | Q32: 2.86 | R32: =IF(A32<160,0,升级!J32/升级!C$3) -> 0
A33: 31 | B33: =升级!C33 -> 378 | C33: 2 | D33: =B33*D$1/3*C33 -> 37.8 | E33: =(VLOOKUP(INT(MAX(1,0.2*A33))*5,功法!B:E,4,FALSE)+(VLOOKUP(INT(MIN(60,MAX(1,0.2*A33+1)))*5,功法!B:E,4,FALSE)-VLOOKUP(INT(MAX(1,0.2*A33))*5,功法!B:E,4,FALSE))*MOD(A33,5)/5)*H33 -> 0.04887046667 | F33: 0.1808333333 | G33: 436 | H33: 0.31 | J33: 89.271 | K33: 3.78 | L33: 3.78 | M33: =IF(A33<160,0,升级!J33/升级!C$3) -> 0 | O33: 102.9686667 | P33: 4.36 | Q33: 4.36 | R33: =IF(A33<160,0,升级!J33/升级!C$3) -> 0
A34: 32 | B34: =升级!C34 -> 384 | C34: 2 | D34: =D33 -> 37.8 | E34: =(VLOOKUP(INT(MAX(1,0.2*A34))*5,功法!B:E,4,FALSE)+(VLOOKUP(INT(MIN(60,MAX(1,0.2*A34+1)))*5,功法!B:E,4,FALSE)-VLOOKUP(INT(MAX(1,0.2*A34))*5,功法!B:E,4,FALSE))*MOD(A34,5)/5)*H34 -> 0.0523872 | F34: 0.1866666667 | G34: 444 | H34: 0.32 | J34: 91.136 | K34: 3.84 | L34: 3.84 | M34: =IF(A34<160,0,升级!J34/升级!C$3) -> 0 | O34: 105.376 | P34: 4.44 | Q34: 4.44 | R34: =IF(A34<160,0,升级!J34/升级!C$3) -> 0
A35: 33 | B35: =升级!C35 -> 390 | C35: 2 | D35: =D34 -> 37.8 | E35: =(VLOOKUP(INT(MAX(1,0.2*A35))*5,功法!B:E,4,FALSE)+(VLOOKUP(INT(MIN(60,MAX(1,0.2*A35+1)))*5,功法!B:E,4,FALSE)-VLOOKUP(INT(MAX(1,0.2*A35))*5,功法!B:E,4,FALSE))*MOD(A35,5)/5)*H35 -> 0.0560252 | F35: 0.1925 | G35: 452 | H35: 0.33 | J35: 93.015 | K35: 3.9 | L35: 3.9 | M35: =IF(A35<160,0,升级!J35/升级!C$3) -> 0 | O35: 107.802 | P35: 4.52 | Q35: 4.52 | R35: =IF(A35<160,0,升级!J35/升级!C$3) -> 0
A36: 34 | B36: =升级!C36 -> 396 | C36: 2 | D36: 37.8 | E36: =(VLOOKUP(INT(MAX(1,0.2*A36))*5,功法!B:E,4,FALSE)+(VLOOKUP(INT(MIN(60,MAX(1,0.2*A36+1)))*5,功法!B:E,4,FALSE)-VLOOKUP(INT(MAX(1,0.2*A36))*5,功法!B:E,4,FALSE))*MOD(A36,5)/5)*H36 -> 0.05978446667 | F36: 0.1983333333 | G36: 460 | H36: 0.34 | J36: 94.908 | K36: 3.96 | L36: 3.96 | M36: =IF(A36<160,0,升级!J36/升级!C$3) -> 0 | O36: 110.2466667 | P36: 4.6 | Q36: 4.6 | R36: =IF(A36<160,0,升级!J36/升级!C$3) -> 0
A37: 35 | B37: =升级!C37 -> 402 | C37: 2 | D37: 37.8 | E37: =(VLOOKUP(INT(MAX(1,0.2*A37))*5,功法!B:E,4,FALSE)+(VLOOKUP(INT(MIN(60,MAX(1,0.2*A37+1)))*5,功法!B:E,4,FALSE)-VLOOKUP(INT(MAX(1,0.2*A37))*5,功法!B:E,4,FALSE))*MOD(A37,5)/5)*H37 -> 0.063665 | F37: 0.2041666667 | G37: 468 | H37: 0.35 | J37: 96.815 | K37: 4.02 | L37: 4.02 | M37: =IF(A37<160,0,升级!J37/升级!C$3) -> 0 | O37: 112.71 | P37: 4.68 | Q37: 4.68 | R37: =IF(A37<160,0,升级!J37/升级!C$3) -> 0
A38: 36 | B38: =升级!C38 -> 408 | C38: 2 | D38: 37.8 | E38: =(VLOOKUP(INT(MAX(1,0.2*A38))*5,功法!B:E,4,FALSE)+(VLOOKUP(INT(MIN(60,MAX(1,0.2*A38+1)))*5,功法!B:E,4,FALSE)-VLOOKUP(INT(MAX(1,0.2*A38))*5,功法!B:E,4,FALSE))*MOD(A38,5)/5)*H38 -> 0.0676668 | F38: 0.21 | G38: 476 | H38: 0.36 | J38: 98.736 | K38: 4.08 | L38: 4.08 | M38: =IF(A38<160,0,升级!J38/升级!C$3) -> 0 | O38: 115.192 | P38: 4.76 | Q38: 4.76 | R38: =IF(A38<160,0,升级!J38/升级!C$3) -> 0
A39: 37 | B39: =升级!C39 -> 414 | C39: 2 | D39: 37.8 | E39: =(VLOOKUP(INT(MAX(1,0.2*A39))*5,功法!B:E,4,FALSE)+(VLOOKUP(INT(MIN(60,MAX(1,0.2*A39+1)))*5,功法!B:E,4,FALSE)-VLOOKUP(INT(MAX(1,0.2*A39))*5,功法!B:E,4,FALSE))*MOD(A39,5)/5)*H39 -> 0.07178986667 | F39: 0.2158333333 | G39: 484 | H39: 0.37 | J39: 100.671 | K39: 4.14 | L39: 4.14 | M39: =IF(A39<160,0,升级!J39/升级!C$3) -> 0 | O39: 117.6926667 | P39: 4.84 | Q39: 4.84 | R39: =IF(A39<160,0,升级!J39/升级!C$3) -> 0
A40: 38 | B40: =升级!C40 -> 420 | C40: 2 | D40: 37.8 | E40: =(VLOOKUP(INT(MAX(1,0.2*A40))*5,功法!B:E,4,FALSE)+(VLOOKUP(INT(MIN(60,MAX(1,0.2*A40+1)))*5,功法!B:E,4,FALSE)-VLOOKUP(INT(MAX(1,0.2*A40))*5,功法!B:E,4,FALSE))*MOD(A40,5)/5)*H40 -> 0.0760342 | F40: 0.2216666667 | G40: 493 | H40: 0.38 | J40: 102.62 | K40: 4.2 | L40: 4.2 | M40: =IF(A40<160,0,升级!J40/升级!C$3) -> 0 | O40: 120.4563333 | P40: 4.93 | Q40: 4.93 | R40: =IF(A40<160,0,升级!J40/升级!C$3) -> 0
A41: 39 | B41: =升级!C41 -> 426 | C41: 2 | D41: 37.8 | E41: =(VLOOKUP(INT(MAX(1,0.2*A41))*5,功法!B:E,4,FALSE)+(VLOOKUP(INT(MIN(60,MAX(1,0.2*A41+1)))*5,功法!B:E,4,FALSE)-VLOOKUP(INT(MAX(1,0.2*A41))*5,功法!B:E,4,FALSE))*MOD(A41,5)/5)*H41 -> 0.0803998 | F41: 0.2275 | G41: 501 | H41: 0.39 | J41: 104.583 | K41: 4.26 | L41: 4.26 | M41: =IF(A41<160,0,升级!J41/升级!C$3) -> 0 | O41: 122.9955 | P41: 5.01 | Q41: 5.01 | R41: =IF(A41<160,0,升级!J41/升级!C$3) -> 0
A42: 40 | B42: =升级!C42 -> 434 | C42: 2 | D42: 37.8 | E42: =(VLOOKUP(INT(MAX(1,0.2*A42))*5,功法!B:E,4,FALSE)+(VLOOKUP(INT(MIN(60,MAX(1,0.2*A42+1)))*5,功法!B:E,4,FALSE)-VLOOKUP(INT(MAX(1,0.2*A42))*5,功法!B:E,4,FALSE))*MOD(A42,5)/5)*H42 -> 0.08488666667 | F42: 0.2333333333 | G42: 512 | H42: 0.4 | J42: 107.0533333 | K42: 4.34 | L42: 4.34 | M42: =IF(A42<160,0,升级!J42/升级!C$3) -> 0 | O42: 126.2933333 | P42: 5.12 | Q42: 5.12 | R42: =IF(A42<160,0,升级!J42/升级!C$3) -> 0
A43: 41 | B43: =升级!C43 -> 564 | C43: 2 | D43: =B43*D$1/3*C43 -> 56.4 | E43: =(VLOOKUP(INT(MAX(1,0.2*A43))*5,功法!B:E,4,FALSE)+(VLOOKUP(INT(MIN(60,MAX(1,0.2*A43+1)))*5,功法!B:E,4,FALSE)-VLOOKUP(INT(MAX(1,0.2*A43))*5,功法!B:E,4,FALSE))*MOD(A43,5)/5)*H43 -> 0.0894948 | F43: 0.2391666667 | G43: 676 | H43: 0.41 | J43: 139.778 | K43: 5.64 | L43: 5.64 | M43: =IF(A43<160,0,升级!J43/升级!C$3) -> 0 | O43: 167.5353333 | P43: 6.76 | Q43: 6.76 | R43: =IF(A43<160,0,升级!J43/升级!C$3) -> 0
A44: 42 | B44: =升级!C44 -> 572 | C44: 2 | D44: =D43 -> 56.4 | E44: =(VLOOKUP(INT(MAX(1,0.2*A44))*5,功法!B:E,4,FALSE)+(VLOOKUP(INT(MIN(60,MAX(1,0.2*A44+1)))*5,功法!B:E,4,FALSE)-VLOOKUP(INT(MAX(1,0.2*A44))*5,功法!B:E,4,FALSE))*MOD(A44,5)/5)*H44 -> 0.0942242 | F44: 0.245 | G44: 688 | H44: 0.42 | J44: 142.428 | K44: 5.72 | L44: 5.72 | M44: =IF(A44<160,0,升级!J44/升级!C$3) -> 0 | O44: 171.312 | P44: 6.88 | Q44: 6.88 | R44: =IF(A44<160,0,升级!J44/升级!C$3) -> 0
A45: 43 | B45: =升级!C45 -> 580 | C45: 2 | D45: =D44 -> 56.4 | E45: =(VLOOKUP(INT(MAX(1,0.2*A45))*5,功法!B:E,4,FALSE)+(VLOOKUP(INT(MIN(60,MAX(1,0.2*A45+1)))*5,功法!B:E,4,FALSE)-VLOOKUP(INT(MAX(1,0.2*A45))*5,功法!B:E,4,FALSE))*MOD(A45,5)/5)*H45 -> 0.09907486667 | F45: 0.2508333333 | G45: 699 | H45: 0.43 | J45: 145.0966667 | K45: 5.8 | L45: 5.8 | M45: =IF(A45<160,0,升级!J45/升级!C$3) -> 0 | O45: 174.8665 | P45: 6.99 | Q45: 6.99 | R45: =IF(A45<160,0,升级!J45/升级!C$3) -> 0
A46: 44 | B46: =升级!C46 -> 588 | C46: 2 | D46: 56.4 | E46: =(VLOOKUP(INT(MAX(1,0.2*A46))*5,功法!B:E,4,FALSE)+(VLOOKUP(INT(MIN(60,MAX(1,0.2*A46+1)))*5,功法!B:E,4,FALSE)-VLOOKUP(INT(MAX(1,0.2*A46))*5,功法!B:E,4,FALSE))*MOD(A46,5)/5)*H46 -> 0.1040468 | F46: 0.2566666667 | G46: 711 | H46: 0.44 | J46: 147.784 | K46: 5.88 | L46: 5.88 | M46: =IF(A46<160,0,升级!J46/升级!C$3) -> 0 | O46: 178.698 | P46: 7.11 | Q46: 7.11 | R46: =IF(A46<160,0,升级!J46/升级!C$3) -> 0
A47: 45 | B47: =升级!C47 -> 598 | C47: 2 | D47: 56.4 | E47: =(VLOOKUP(INT(MAX(1,0.2*A47))*5,功法!B:E,4,FALSE)+(VLOOKUP(INT(MIN(60,MAX(1,0.2*A47+1)))*5,功法!B:E,4,FALSE)-VLOOKUP(INT(MAX(1,0.2*A47))*5,功法!B:E,4,FALSE))*MOD(A47,5)/5)*H47 -> 0.10914 | F47: 0.2625 | G47: 726 | H47: 0.45 | J47: 150.995 | K47: 5.98 | L47: 5.98 | M47: =IF(A47<160,0,升级!J47/升级!C$3) -> 0 | O47: 183.315 | P47: 7.26 | Q47: 7.26 | R47: =IF(A47<160,0,升级!J47/升级!C$3) -> 0
A48: 46 | B48: =升级!C48 -> 606 | C48: 2 | D48: 56.4 | E48: =(VLOOKUP(INT(MAX(1,0.2*A48))*5,功法!B:E,4,FALSE)+(VLOOKUP(INT(MIN(60,MAX(1,0.2*A48+1)))*5,功法!B:E,4,FALSE)-VLOOKUP(INT(MAX(1,0.2*A48))*5,功法!B:E,4,FALSE))*MOD(A48,5)/5)*H48 -> 0.1143544667 | F48: 0.2683333333 | G48: 738 | H48: 0.46 | J48: 153.722 | K48: 6.06 | L48: 6.06 | M48: =IF(A48<160,0,升级!J48/升级!C$3) -> 0 | O48: 187.206 | P48: 7.38 | Q48: 7.38 | R48: =IF(A48<160,0,升级!J48/升级!C$3) -> 0
A49: 47 | B49: =升级!C49 -> 616 | C49: 2 | D49: 56.4 | E49: =(VLOOKUP(INT(MAX(1,0.2*A49))*5,功法!B:E,4,FALSE)+(VLOOKUP(INT(MIN(60,MAX(1,0.2*A49+1)))*5,功法!B:E,4,FALSE)-VLOOKUP(INT(MAX(1,0.2*A49))*5,功法!B:E,4,FALSE))*MOD(A49,5)/5)*H49 -> 0.1196902 | F49: 0.2741666667 | G49: 753 | H49: 0.47 | J49: 156.9773333 | K49: 6.16 | L49: 6.16 | M49: =IF(A49<160,0,升级!J49/升级!C$3) -> 0 | O49: 191.8895 | P49: 7.53 | Q49: 7.53 | R49: =IF(A49<160,0,升级!J49/升级!C$3) -> 0
A50: 48 | B50: =升级!C50 -> 626 | C50: 2 | D50: 56.4 | E50: =(VLOOKUP(INT(MAX(1,0.2*A50))*5,功法!B:E,4,FALSE)+(VLOOKUP(INT(MIN(60,MAX(1,0.2*A50+1)))*5,功法!B:E,4,FALSE)-VLOOKUP(INT(MAX(1,0.2*A50))*5,功法!B:E,4,FALSE))*MOD(A50,5)/5)*H50 -> 0.1251472 | F50: 0.28 | G50: 768 | H50: 0.48 | J50: 160.256 | K50: 6.26 | L50: 6.26 | M50: =IF(A50<160,0,升级!J50/升级!C$3) -> 0 | O50: 196.608 | P50: 7.68 | Q50: 7.68 | R50: =IF(A50<160,0,升级!J50/升级!C$3) -> 0
A51: 49 | B51: =升级!C51 -> 634 | C51: 2 | D51: 56.4 | E51: =(VLOOKUP(INT(MAX(1,0.2*A51))*5,功法!B:E,4,FALSE)+(VLOOKUP(INT(MIN(60,MAX(1,0.2*A51+1)))*5,功法!B:E,4,FALSE)-VLOOKUP(INT(MAX(1,0.2*A51))*5,功法!B:E,4,FALSE))*MOD(A51,5)/5)*H51 -> 0.1307254667 | F51: 0.2858333333 | G51: 781 | H51: 0.49 | J51: 163.0436667 | K51: 6.34 | L51: 6.34 | M51: =IF(A51<160,0,升级!J51/升级!C$3) -> 0 | O51: 200.8471667 | P51: 7.81 | Q51: 7.81 | R51: =IF(A51<160,0,升级!J51/升级!C$3) -> 0
A52: 50 | B52: =升级!C52 -> 644 | C52: 2 | D52: 56.4 | E52: =(VLOOKUP(INT(MAX(1,0.2*A52))*5,功法!B:E,4,FALSE)+(VLOOKUP(INT(MIN(60,MAX(1,0.2*A52+1)))*5,功法!B:E,4,FALSE)-VLOOKUP(INT(MAX(1,0.2*A52))*5,功法!B:E,4,FALSE))*MOD(A52,5)/5)*H52 -> 0.136425 | F52: 0.2916666667 | G52: 796 | H52: 0.5 | J52: 166.3666667 | K52: 6.44 | L52: 6.44 | M52: =IF(A52<160,0,升级!J52/升级!C$3) -> 0 | O52: 205.6333333 | P52: 7.96 | Q52: 7.96 | R52: =IF(A52<160,0,升级!J52/升级!C$3) -> 0
A53: 51 | B53: =升级!C53 -> 838 | C53: 3 | D53: =B53*D$1/3*C53 -> 125.7 | E53: =(VLOOKUP(INT(MAX(1,0.2*A53))*5,功法!B:E,4,FALSE)+(VLOOKUP(INT(MIN(60,MAX(1,0.2*A53+1)))*5,功法!B:E,4,FALSE)-VLOOKUP(INT(MAX(1,0.2*A53))*5,功法!B:E,4,FALSE))*MOD(A53,5)/5)*H53 -> 0.1422458 | F53: 0.2975 | G53: 1101 | H53: 0.51 | J53: 217.461 | K53: 8.38 | L53: 8.38 | M53: =IF(A53<160,0,升级!J53/升级!C$3) -> 0 | O53: 285.7095 | P53: 11.01 | Q53: 11.01 | R53: =IF(A53<160,0,升级!J53/升级!C$3) -> 0
A54: 52 | B54: =升级!C54 -> 850 | C54: 3 | D54: =D53 -> 125.7 | E54: =(VLOOKUP(INT(MAX(1,0.2*A54))*5,功法!B:E,4,FALSE)+(VLOOKUP(INT(MIN(60,MAX(1,0.2*A54+1)))*5,功法!B:E,4,FALSE)-VLOOKUP(INT(MAX(1,0.2*A54))*5,功法!B:E,4,FALSE))*MOD(A54,5)/5)*H54 -> 0.1481878667 | F54: 0.3033333333 | G54: 1120 | H54: 0.52 | J54: 221.5666667 | K54: 8.5 | L54: 8.5 | M54: =IF(A54<160,0,升级!J54/升级!C$3) -> 0 | O54: 291.9466667 | P54: 11.2 | Q54: 11.2 | R54: =IF(A54<160,0,升级!J54/升级!C$3) -> 0
A55: 53 | B55: =升级!C55 -> 862 | C55: 3 | D55: =D54 -> 125.7 | E55: =(VLOOKUP(INT(MAX(1,0.2*A55))*5,功法!B:E,4,FALSE)+(VLOOKUP(INT(MIN(60,MAX(1,0.2*A55+1)))*5,功法!B:E,4,FALSE)-VLOOKUP(INT(MAX(1,0.2*A55))*5,功法!B:E,4,FALSE))*MOD(A55,5)/5)*H55 -> 0.1542512 | F55: 0.3091666667 | G55: 1140 | H55: 0.53 | J55: 225.7003333 | K55: 8.62 | L55: 8.62 | M55: =IF(A55<160,0,升级!J55/升级!C$3) -> 0 | O55: 298.49 | P55: 11.4 | Q55: 11.4 | R55: =IF(A55<160,0,升级!J55/升级!C$3) -> 0
A56: 54 | B56: =升级!C56 -> 876 | C56: 3 | D56: 125.7 | E56: =(VLOOKUP(INT(MAX(1,0.2*A56))*5,功法!B:E,4,FALSE)+(VLOOKUP(INT(MIN(60,MAX(1,0.2*A56+1)))*5,功法!B:E,4,FALSE)-VLOOKUP(INT(MAX(1,0.2*A56))*5,功法!B:E,4,FALSE))*MOD(A56,5)/5)*H56 -> 0.1604358 | F56: 0.315 | G56: 1162 | H56: 0.54 | J56: 230.388 | K56: 8.76 | L56: 8.76 | M56: =IF(A56<160,0,升级!J56/升级!C$3) -> 0 | O56: 305.606 | P56: 11.62 | Q56: 11.62 | R56: =IF(A56<160,0,升级!J56/升级!C$3) -> 0
A57: 55 | B57: =升级!C57 -> 888 | C57: 3 | D57: 125.7 | E57: =(VLOOKUP(INT(MAX(1,0.2*A57))*5,功法!B:E,4,FALSE)+(VLOOKUP(INT(MIN(60,MAX(1,0.2*A57+1)))*5,功法!B:E,4,FALSE)-VLOOKUP(INT(MAX(1,0.2*A57))*5,功法!B:E,4,FALSE))*MOD(A57,5)/5)*H57 -> 0.1667416667 | F57: 0.3208333333 | G57: 1183 | H57: 0.55 | J57: 234.58 | K57: 8.88 | L57: 8.88 | M57: =IF(A57<160,0,升级!J57/升级!C$3) -> 0 | O57: 312.5091667 | P57: 11.83 | Q57: 11.83 | R57: =IF(A57<160,0,升级!J57/升级!C$3) -> 0
A58: 56 | B58: =升级!C58 -> 902 | C58: 3 | D58: 125.7 | E58: =(VLOOKUP(INT(MAX(1,0.2*A58))*5,功法!B:E,4,FALSE)+(VLOOKUP(INT(MIN(60,MAX(1,0.2*A58+1)))*5,功法!B:E,4,FALSE)-VLOOKUP(INT(MAX(1,0.2*A58))*5,功法!B:E,4,FALSE))*MOD(A58,5)/5)*H58 -> 0.1731688 | F58: 0.3266666667 | G58: 1206 | H58: 0.56 | J58: 239.3306667 | K58: 9.02 | L58: 9.02 | M58: =IF(A58<160,0,升级!J58/升级!C$3) -> 0 | O58: 319.992 | P58: 12.06 | Q58: 12.06 | R58: =IF(A58<160,0,升级!J58/升级!C$3) -> 0
A59: 57 | B59: =升级!C59 -> 916 | C59: 3 | D59: 125.7 | E59: =(VLOOKUP(INT(MAX(1,0.2*A59))*5,功法!B:E,4,FALSE)+(VLOOKUP(INT(MIN(60,MAX(1,0.2*A59+1)))*5,功法!B:E,4,FALSE)-VLOOKUP(INT(MAX(1,0.2*A59))*5,功法!B:E,4,FALSE))*MOD(A59,5)/5)*H59 -> 0.1797172 | F59: 0.3325 | G59: 1229 | H59: 0.57 | J59: 244.114 | K59: 9.16 | L59: 9.16 | M59: =IF(A59<160,0,升级!J59/升级!C$3) -> 0 | O59: 327.5285 | P59: 12.29 | Q59: 12.29 | R59: =IF(A59<160,0,升级!J59/升级!C$3) -> 0
A60: 58 | B60: =升级!C60 -> 930 | C60: 3 | D60: 125.7 | E60: =(VLOOKUP(INT(MAX(1,0.2*A60))*5,功法!B:E,4,FALSE)+(VLOOKUP(INT(MIN(60,MAX(1,0.2*A60+1)))*5,功法!B:E,4,FALSE)-VLOOKUP(INT(MAX(1,0.2*A60))*5,功法!B:E,4,FALSE))*MOD(A60,5)/5)*H60 -> 0.1863868667 | F60: 0.3383333333 | G60: 1252 | H60: 0.58 | J60: 248.93 | K60: 9.3 | L60: 9.3 | M60: =IF(A60<160,0,升级!J60/升级!C$3) -> 0 | O60: 335.1186667 | P60: 12.52 | Q60: 12.52 | R60: =IF(A60<160,0,升级!J60/升级!C$3) -> 0
A61: 59 | B61: =升级!C61 -> 944 | C61: 3 | D61: 125.7 | E61: =(VLOOKUP(INT(MAX(1,0.2*A61))*5,功法!B:E,4,FALSE)+(VLOOKUP(INT(MIN(60,MAX(1,0.2*A61+1)))*5,功法!B:E,4,FALSE)-VLOOKUP(INT(MAX(1,0.2*A61))*5,功法!B:E,4,FALSE))*MOD(A61,5)/5)*H61 -> 0.1931778 | F61: 0.3441666667 | G61: 1276 | H61: 0.59 | J61: 253.7786667 | K61: 9.44 | L61: 9.44 | M61: =IF(A61<160,0,升级!J61/升级!C$3) -> 0 | O61: 343.0313333 | P61: 12.76 | Q61: 12.76 | R61: =IF(A61<160,0,升级!J61/升级!C$3) -> 0
A62: 60 | B62: =升级!C62 -> 958 | C62: 3 | D62: 125.7 | E62: =(VLOOKUP(INT(MAX(1,0.2*A62))*5,功法!B:E,4,FALSE)+(VLOOKUP(INT(MIN(60,MAX(1,0.2*A62+1)))*5,功法!B:E,4,FALSE)-VLOOKUP(INT(MAX(1,0.2*A62))*5,功法!B:E,4,FALSE))*MOD(A62,5)/5)*H62 -> 0.20009 | F62: 0.35 | G62: 1301 | H62: 0.6 | J62: 258.66 | K62: 9.58 | L62: 9.58 | M62: =IF(A62<160,0,升级!J62/升级!C$3) -> 0 | O62: 351.27 | P62: 13.01 | Q62: 13.01 | R62: =IF(A62<160,0,升级!J62/升级!C$3) -> 0
A63: 61 | B63: =升级!C63 -> 1436 | C63: 3 | D63: =B63*D$1/3*C63 -> 215.4 | E63: =(VLOOKUP(INT(MAX(1,0.2*A63))*5,功法!B:E,4,FALSE)+(VLOOKUP(INT(MIN(60,MAX(1,0.2*A63+1)))*5,功法!B:E,4,FALSE)-VLOOKUP(INT(MAX(1,0.2*A63))*5,功法!B:E,4,FALSE))*MOD(A63,5)/5)*H63 -> 0.2077741333 | F63: 0.3558333333 | G63: 1995 | H63: 0.61 | J63: 389.3953333 | K63: 14.36 | L63: 14.36 | M63: =IF(A63<160,0,升级!J63/升级!C$3) -> 0 | O63: 540.9775 | P63: 19.95 | Q63: 19.95 | R63: =IF(A63<160,0,升级!J63/升级!C$3) -> 0
A64: 62 | B64: =升级!C64 -> 1458 | C64: 3 | D64: =D63 -> 215.4 | E64: =(VLOOKUP(INT(MAX(1,0.2*A64))*5,功法!B:E,4,FALSE)+(VLOOKUP(INT(MIN(60,MAX(1,0.2*A64+1)))*5,功法!B:E,4,FALSE)-VLOOKUP(INT(MAX(1,0.2*A64))*5,功法!B:E,4,FALSE))*MOD(A64,5)/5)*H64 -> 0.2156008667 | F64: 0.3616666667 | G64: 2034 | H64: 0.62 | J64: 397.062 | K64: 14.58 | L64: 14.58 | M64: =IF(A64<160,0,升级!J64/升级!C$3) -> 0 | O64: 553.926 | P64: 20.34 | Q64: 20.34 | R64: =IF(A64<160,0,升级!J64/升级!C$3) -> 0
A65: 63 | B65: =升级!C65 -> 1480 | C65: 3 | D65: =D64 -> 215.4 | E65: =(VLOOKUP(INT(MAX(1,0.2*A65))*5,功法!B:E,4,FALSE)+(VLOOKUP(INT(MIN(60,MAX(1,0.2*A65+1)))*5,功法!B:E,4,FALSE)-VLOOKUP(INT(MAX(1,0.2*A65))*5,功法!B:E,4,FALSE))*MOD(A65,5)/5)*H65 -> 0.2235702 | F65: 0.3675 | G65: 2074 | H65: 0.63 | J65: 404.78 | K65: 14.8 | L65: 14.8 | M65: =IF(A65<160,0,升级!J65/升级!C$3) -> 0 | O65: 567.239 | P65: 20.74 | Q65: 20.74 | R65: =IF(A65<160,0,升级!J65/升级!C$3) -> 0
A66: 64 | B66: =升级!C66 -> 1502 | C66: 3 | D66: 215.4 | E66: =(VLOOKUP(INT(MAX(1,0.2*A66))*5,功法!B:E,4,FALSE)+(VLOOKUP(INT(MIN(60,MAX(1,0.2*A66+1)))*5,功法!B:E,4,FALSE)-VLOOKUP(INT(MAX(1,0.2*A66))*5,功法!B:E,4,FALSE))*MOD(A66,5)/5)*H66 -> 0.2316821333 | F66: 0.3733333333 | G66: 2115 | H66: 0.64 | J66: 412.5493333 | K66: 15.02 | L66: 15.02 | M66: =IF(A66<160,0,升级!J66/升级!C$3) -> 0 | O66: 580.92 | P66: 21.15 | Q66: 21.15 | R66: =IF(A66<160,0,升级!J66/升级!C$3) -> 0
A67: 65 | B67: =升级!C67 -> 1524 | C67: 3 | D67: 215.4 | E67: =(VLOOKUP(INT(MAX(1,0.2*A67))*5,功法!B:E,4,FALSE)+(VLOOKUP(INT(MIN(60,MAX(1,0.2*A67+1)))*5,功法!B:E,4,FALSE)-VLOOKUP(INT(MAX(1,0.2*A67))*5,功法!B:E,4,FALSE))*MOD(A67,5)/5)*H67 -> 0.2399366667 | F67: 0.3791666667 | G67: =ROUND((B67+D67)*(1+E67),0) -> 2157 | H67: 0.65 | J67: 420.37 | K67: =B67/B$3 -> 15.24 | L67: 15.24 | M67: =IF(A67<160,0,升级!J67/升级!C$3) -> 0 | O67: 594.9725 | P67: =G67/B$3 -> 21.57 | Q67: 21.57 | R67: =IF(A67<160,0,升级!J67/升级!C$3) -> 0
A68: 66 | B68: =升级!C68 -> 1546 | C68: 3 | D68: 215.4 | E68: =(VLOOKUP(INT(MAX(1,0.2*A68))*5,功法!B:E,4,FALSE)+(VLOOKUP(INT(MIN(60,MAX(1,0.2*A68+1)))*5,功法!B:E,4,FALSE)-VLOOKUP(INT(MAX(1,0.2*A68))*5,功法!B:E,4,FALSE))*MOD(A68,5)/5)*H68 -> 0.2506218 | F68: =F$1*$A68/300 -> 0.385 | G68: 2203 | H68: 0.66 | J68: =B68/B$3*(1+F68)*L$1 -> 428.242 | K68: 15.46 | L68: =K68 -> 15.46 | M68: =IF(A68<160,0,升级!J68/升级!C$3) -> 0 | O68: =G68/B$3*(1+F68)*L$1 -> 610.231 | P68: 22.03 | Q68: =P68 -> 22.03 | R68: =IF(A68<160,0,升级!J68/升级!C$3) -> 0
A69: 67 | B69: =升级!C69 -> 1570 | C69: 3 | D69: 215.4 | E69: =(VLOOKUP(INT(MAX(1,0.2*A69))*5,功法!B:E,4,FALSE)+(VLOOKUP(INT(MIN(60,MAX(1,0.2*A69+1)))*5,功法!B:E,4,FALSE)-VLOOKUP(INT(MAX(1,0.2*A69))*5,功法!B:E,4,FALSE))*MOD(A69,5)/5)*H69 -> 0.2615188667 | F69: 0.3908333333 | G69: 2252 | H69: 0.67 | J69: 436.7216667 | K69: 15.7 | L69: 15.7 | M69: =IF(A69<160,0,升级!J69/升级!C$3) -> 0 | O69: 626.4313333 | P69: 22.52 | Q69: 22.52 | R69: =IF(A69<160,0,升级!J69/升级!C$3) -> 0
A70: 68 | B70: =升级!C70 -> 1594 | C70: 3 | D70: 215.4 | E70: =(VLOOKUP(INT(MAX(1,0.2*A70))*5,功法!B:E,4,FALSE)+(VLOOKUP(INT(MIN(60,MAX(1,0.2*A70+1)))*5,功法!B:E,4,FALSE)-VLOOKUP(INT(MAX(1,0.2*A70))*5,功法!B:E,4,FALSE))*MOD(A70,5)/5)*H70 -> 0.2726278667 | F70: 0.3966666667 | G70: 2303 | H70: 0.68 | J70: 445.2573333 | K70: 15.94 | L70: 15.94 | M70: =IF(A70<160,0,升级!J70/升级!C$3) -> 0 | O70: 643.3046667 | P70: 23.03 | Q70: 23.03 | R70: =IF(A70<160,0,升级!J70/升级!C$3) -> 0
A71: 69 | B71: =升级!C71 -> 1618 | C71: 3 | D71: 215.4 | E71: =(VLOOKUP(INT(MAX(1,0.2*A71))*5,功法!B:E,4,FALSE)+(VLOOKUP(INT(MIN(60,MAX(1,0.2*A71+1)))*5,功法!B:E,4,FALSE)-VLOOKUP(INT(MAX(1,0.2*A71))*5,功法!B:E,4,FALSE))*MOD(A71,5)/5)*H71 -> 0.2839488 | F71: 0.4025 | G71: 2354 | H71: 0.69 | J71: 453.849 | K71: 16.18 | L71: 16.18 | M71: =IF(A71<160,0,升级!J71/升级!C$3) -> 0 | O71: 660.297 | P71: 23.54 | Q71: 23.54 | R71: =IF(A71<160,0,升级!J71/升级!C$3) -> 0
A72: 70 | B72: =升级!C72 -> 1642 | C72: 3 | D72: 215.4 | E72: =(VLOOKUP(INT(MAX(1,0.2*A72))*5,功法!B:E,4,FALSE)+(VLOOKUP(INT(MIN(60,MAX(1,0.2*A72+1)))*5,功法!B:E,4,FALSE)-VLOOKUP(INT(MAX(1,0.2*A72))*5,功法!B:E,4,FALSE))*MOD(A72,5)/5)*H72 -> 0.2954816667 | F72: 0.4083333333 | G72: 2406 | H72: 0.7 | J72: 462.4966667 | K72: 16.42 | L72: 16.42 | M72: =IF(A72<160,0,升级!J72/升级!C$3) -> 0 | O72: 677.69 | P72: 24.06 | Q72: 24.06 | R72: =IF(A72<160,0,升级!J72/升级!C$3) -> 0
A73: 71 | B73: =升级!C73 -> 2134 | C73: 3 | D73: =B73*D$1/3*C73 -> 320.1 | E73: =(VLOOKUP(INT(MAX(1,0.2*A73))*5,功法!B:E,4,FALSE)+(VLOOKUP(INT(MIN(60,MAX(1,0.2*A73+1)))*5,功法!B:E,4,FALSE)-VLOOKUP(INT(MAX(1,0.2*A73))*5,功法!B:E,4,FALSE))*MOD(A73,5)/5)*H73 -> 0.3072264667 | F73: 0.4141666667 | G73: 3208 | H73: 0.71 | J73: 603.5663333 | K73: 21.34 | L73: 21.34 | M73: =IF(A73<160,0,升级!J73/升级!C$3) -> 0 | O73: 907.3293333 | P73: 32.08 | Q73: 32.08 | R73: =IF(A73<160,0,升级!J73/升级!C$3) -> 0
A74: 72 | B74: =升级!C74 -> 2166 | C74: 3 | D74: =D73 -> 320.1 | E74: =(VLOOKUP(INT(MAX(1,0.2*A74))*5,功法!B:E,4,FALSE)+(VLOOKUP(INT(MIN(60,MAX(1,0.2*A74+1)))*5,功法!B:E,4,FALSE)-VLOOKUP(INT(MAX(1,0.2*A74))*5,功法!B:E,4,FALSE))*MOD(A74,5)/5)*H74 -> 0.3191832 | F74: 0.42 | G74: 3280 | H74: 0.72 | J74: 615.144 | K74: 21.66 | L74: 21.66 | M74: =IF(A74<160,0,升级!J74/升级!C$3) -> 0 | O74: 931.52 | P74: 32.8 | Q74: 32.8 | R74: =IF(A74<160,0,升级!J74/升级!C$3) -> 0
A75: 73 | B75: =升级!C75 -> 2198 | C75: 3 | D75: =D74 -> 320.1 | E75: =(VLOOKUP(INT(MAX(1,0.2*A75))*5,功法!B:E,4,FALSE)+(VLOOKUP(INT(MIN(60,MAX(1,0.2*A75+1)))*5,功法!B:E,4,FALSE)-VLOOKUP(INT(MAX(1,0.2*A75))*5,功法!B:E,4,FALSE))*MOD(A75,5)/5)*H75 -> 0.3313518667 | F75: 0.4258333333 | G75: 3352 | H75: 0.73 | J75: 626.7963333 | K75: 21.98 | L75: 21.98 | M75: =IF(A75<160,0,升级!J75/升级!C$3) -> 0 | O75: 955.8786667 | P75: 33.52 | Q75: 33.52 | R75: =IF(A75<160,0,升级!J75/升级!C$3) -> 0
A76: 74 | B76: =升级!C76 -> 2232 | C76: 3 | D76: 320.1 | E76: =(VLOOKUP(INT(MAX(1,0.2*A76))*5,功法!B:E,4,FALSE)+(VLOOKUP(INT(MIN(60,MAX(1,0.2*A76+1)))*5,功法!B:E,4,FALSE)-VLOOKUP(INT(MAX(1,0.2*A76))*5,功法!B:E,4,FALSE))*MOD(A76,5)/5)*H76 -> 0.3437324667 | F76: 0.4316666667 | G76: 3429 | H76: 0.74 | J76: 639.096 | K76: 22.32 | L76: 22.32 | M76: =IF(A76<160,0,升级!J76/升级!C$3) -> 0 | O76: 981.837 | P76: 34.29 | Q76: 34.29 | R76: =IF(A76<160,0,升级!J76/升级!C$3) -> 0
A77: 75 | B77: =升级!C77 -> 2266 | C77: 3 | D77: 320.1 | E77: =(VLOOKUP(INT(MAX(1,0.2*A77))*5,功法!B:E,4,FALSE)+(VLOOKUP(INT(MIN(60,MAX(1,0.2*A77+1)))*5,功法!B:E,4,FALSE)-VLOOKUP(INT(MAX(1,0.2*A77))*5,功法!B:E,4,FALSE))*MOD(A77,5)/5)*H77 -> 0.356325 | F77: 0.4375 | G77: 3508 | H77: 0.75 | J77: 651.475 | K77: 22.66 | L77: 22.66 | M77: =IF(A77<160,0,升级!J77/升级!C$3) -> 0 | O77: 1008.55 | P77: 35.08 | Q77: 35.08 | R77: =IF(A77<160,0,升级!J77/升级!C$3) -> 0
A78: 76 | B78: =升级!C78 -> 2300 | C78: 3 | D78: 320.1 | E78: =(VLOOKUP(INT(MAX(1,0.2*A78))*5,功法!B:E,4,FALSE)+(VLOOKUP(INT(MIN(60,MAX(1,0.2*A78+1)))*5,功法!B:E,4,FALSE)-VLOOKUP(INT(MAX(1,0.2*A78))*5,功法!B:E,4,FALSE))*MOD(A78,5)/5)*H78 -> 0.3691294667 | F78: 0.4433333333 | G78: 3587 | H78: 0.76 | J78: 663.9333333 | K78: 23 | L78: 23 | M78: =IF(A78<160,0,升级!J78/升级!C$3) -> 0 | O78: 1035.447333 | P78: 35.87 | Q78: 35.87 | R78: =IF(A78<160,0,升级!J78/升级!C$3) -> 0
A79: 77 | B79: =升级!C79 -> 2334 | C79: 3 | D79: 320.1 | E79: =(VLOOKUP(INT(MAX(1,0.2*A79))*5,功法!B:E,4,FALSE)+(VLOOKUP(INT(MIN(60,MAX(1,0.2*A79+1)))*5,功法!B:E,4,FALSE)-VLOOKUP(INT(MAX(1,0.2*A79))*5,功法!B:E,4,FALSE))*MOD(A79,5)/5)*H79 -> 0.3821458667 | F79: 0.4491666667 | G79: 3668 | H79: 0.77 | J79: 676.471 | K79: 23.34 | L79: 23.34 | M79: =IF(A79<160,0,升级!J79/升级!C$3) -> 0 | O79: 1063.108667 | P79: 36.68 | Q79: 36.68 | R79: =IF(A79<160,0,升级!J79/升级!C$3) -> 0
A80: 78 | B80: =升级!C80 -> 2368 | C80: 3 | D80: 320.1 | E80: =(VLOOKUP(INT(MAX(1,0.2*A80))*5,功法!B:E,4,FALSE)+(VLOOKUP(INT(MIN(60,MAX(1,0.2*A80+1)))*5,功法!B:E,4,FALSE)-VLOOKUP(INT(MAX(1,0.2*A80))*5,功法!B:E,4,FALSE))*MOD(A80,5)/5)*H80 -> 0.3953742 | F80: 0.455 | G80: 3751 | H80: 0.78 | J80: 689.088 | K80: 23.68 | L80: 23.68 | M80: =IF(A80<160,0,升级!J80/升级!C$3) -> 0 | O80: 1091.541 | P80: 37.51 | Q80: 37.51 | R80: =IF(A80<160,0,升级!J80/升级!C$3) -> 0
A81: 79 | B81: =升级!C81 -> 2404 | C81: 3 | D81: 320.1 | E81: =(VLOOKUP(INT(MAX(1,0.2*A81))*5,功法!B:E,4,FALSE)+(VLOOKUP(INT(MIN(60,MAX(1,0.2*A81+1)))*5,功法!B:E,4,FALSE)-VLOOKUP(INT(MAX(1,0.2*A81))*5,功法!B:E,4,FALSE))*MOD(A81,5)/5)*H81 -> 0.4088144667 | F81: 0.4608333333 | G81: 3838 | H81: 0.79 | J81: 702.3686667 | K81: 24.04 | L81: 24.04 | M81: =IF(A81<160,0,升级!J81/升级!C$3) -> 0 | O81: 1121.335667 | P81: 38.38 | Q81: 38.38 | R81: =IF(A81<160,0,升级!J81/升级!C$3) -> 0
A82: 80 | B82: =升级!C82 -> 2440 | C82: 3 | D82: 320.1 | E82: =(VLOOKUP(INT(MAX(1,0.2*A82))*5,功法!B:E,4,FALSE)+(VLOOKUP(INT(MIN(60,MAX(1,0.2*A82+1)))*5,功法!B:E,4,FALSE)-VLOOKUP(INT(MAX(1,0.2*A82))*5,功法!B:E,4,FALSE))*MOD(A82,5)/5)*H82 -> 0.4224666667 | F82: 0.4666666667 | G82: 3926 | H82: 0.8 | J82: 715.7333333 | K82: 24.4 | L82: 24.4 | M82: =IF(A82<160,0,升级!J82/升级!C$3) -> 0 | O82: 1151.626667 | P82: 39.26 | Q82: 39.26 | R82: =IF(A82<160,0,升级!J82/升级!C$3) -> 0
A83: 81 | B83: =升级!C83 -> 3172 | C83: 4 | D83: =B83*D$1/3*C83 -> 634.4 | E83: =(VLOOKUP(INT(MAX(1,0.2*A83))*5,功法!B:E,4,FALSE)+(VLOOKUP(INT(MIN(60,MAX(1,0.2*A83+1)))*5,功法!B:E,4,FALSE)-VLOOKUP(INT(MAX(1,0.2*A83))*5,功法!B:E,4,FALSE))*MOD(A83,5)/5)*H83 -> 0.4363308 | F83: 0.4725 | G83: 5467 | H83: 0.81 | J83: 934.154 | K83: 31.72 | L83: 31.72 | M83: =IF(A83<160,0,升级!J83/升级!C$3) -> 0 | O83: 1610.0315 | P83: 54.67 | Q83: 54.67 | R83: =IF(A83<160,0,升级!J83/升级!C$3) -> 0
A84: 82 | B84: =升级!C84 -> 3220 | C84: 4 | D84: =D83 -> 634.4 | E84: =(VLOOKUP(INT(MAX(1,0.2*A84))*5,功法!B:E,4,FALSE)+(VLOOKUP(INT(MIN(60,MAX(1,0.2*A84+1)))*5,功法!B:E,4,FALSE)-VLOOKUP(INT(MAX(1,0.2*A84))*5,功法!B:E,4,FALSE))*MOD(A84,5)/5)*H84 -> 0.4504068667 | F84: 0.4783333333 | G84: 5590 | H84: 0.82 | J84: 952.0466667 | K84: 32.2 | L84: 32.2 | M84: =IF(A84<160,0,升级!J84/升级!C$3) -> 0 | O84: 1652.776667 | P84: 55.9 | Q84: 55.9 | R84: =IF(A84<160,0,升级!J84/升级!C$3) -> 0
A85: 83 | B85: =升级!C85 -> 3268 | C85: 4 | D85: =D84 -> 634.4 | E85: =(VLOOKUP(INT(MAX(1,0.2*A85))*5,功法!B:E,4,FALSE)+(VLOOKUP(INT(MIN(60,MAX(1,0.2*A85+1)))*5,功法!B:E,4,FALSE)-VLOOKUP(INT(MAX(1,0.2*A85))*5,功法!B:E,4,FALSE))*MOD(A85,5)/5)*H85 -> 0.4646948667 | F85: 0.4841666667 | G85: 5716 | H85: 0.83 | J85: 970.0513333 | K85: 32.68 | L85: 32.68 | M85: =IF(A85<160,0,升级!J85/升级!C$3) -> 0 | O85: 1696.699333 | P85: 57.16 | Q85: 57.16 | R85: =IF(A85<160,0,升级!J85/升级!C$3) -> 0
A86: 84 | B86: =升级!C86 -> 3318 | C86: 4 | D86: 634.4 | E86: =(VLOOKUP(INT(MAX(1,0.2*A86))*5,功法!B:E,4,FALSE)+(VLOOKUP(INT(MIN(60,MAX(1,0.2*A86+1)))*5,功法!B:E,4,FALSE)-VLOOKUP(INT(MAX(1,0.2*A86))*5,功法!B:E,4,FALSE))*MOD(A86,5)/5)*H86 -> 0.4791948 | F86: 0.49 | G86: 5846 | H86: 0.84 | J86: 988.764 | K86: 33.18 | L86: 33.18 | M86: =IF(A86<160,0,升级!J86/升级!C$3) -> 0 | O86: 1742.108 | P86: 58.46 | Q86: 58.46 | R86: =IF(A86<160,0,升级!J86/升级!C$3) -> 0
A87: 85 | B87: =升级!C87 -> 3368 | C87: 4 | D87: 634.4 | E87: =(VLOOKUP(INT(MAX(1,0.2*A87))*5,功法!B:E,4,FALSE)+(VLOOKUP(INT(MIN(60,MAX(1,0.2*A87+1)))*5,功法!B:E,4,FALSE)-VLOOKUP(INT(MAX(1,0.2*A87))*5,功法!B:E,4,FALSE))*MOD(A87,5)/5)*H87 -> 0.4939066667 | F87: 0.4958333333 | G87: 5979 | H87: 0.85 | J87: 1007.593333 | K87: 33.68 | L87: 33.68 | M87: =IF(A87<160,0,升级!J87/升级!C$3) -> 0 | O87: 1788.7175 | P87: 59.79 | Q87: 59.79 | R87: =IF(A87<160,0,升级!J87/升级!C$3) -> 0
A88: 86 | B88: =升级!C88 -> 3418 | C88: 4 | D88: 634.4 | E88: =(VLOOKUP(INT(MAX(1,0.2*A88))*5,功法!B:E,4,FALSE)+(VLOOKUP(INT(MIN(60,MAX(1,0.2*A88+1)))*5,功法!B:E,4,FALSE)-VLOOKUP(INT(MAX(1,0.2*A88))*5,功法!B:E,4,FALSE))*MOD(A88,5)/5)*H88 -> 0.5088304667 | F88: 0.5016666667 | G88: 6114 | H88: 0.86 | J88: 1026.539333 | K88: 34.18 | L88: 34.18 | M88: =IF(A88<160,0,升级!J88/升级!C$3) -> 0 | O88: 1836.238 | P88: 61.14 | Q88: 61.14 | R88: =IF(A88<160,0,升级!J88/升级!C$3) -> 0
A89: 87 | B89: =升级!C89 -> 3468 | C89: 4 | D89: 634.4 | E89: =(VLOOKUP(INT(MAX(1,0.2*A89))*5,功法!B:E,4,FALSE)+(VLOOKUP(INT(MIN(60,MAX(1,0.2*A89+1)))*5,功法!B:E,4,FALSE)-VLOOKUP(INT(MAX(1,0.2*A89))*5,功法!B:E,4,FALSE))*MOD(A89,5)/5)*H89 -> 0.5239662 | F89: 0.5075 | G89: 6252 | H89: 0.87 | J89: 1045.602 | K89: 34.68 | L89: 34.68 | M89: =IF(A89<160,0,升级!J89/升级!C$3) -> 0 | O89: 1884.978 | P89: 62.52 | Q89: 62.52 | R89: =IF(A89<160,0,升级!J89/升级!C$3) -> 0
A90: 88 | B90: =升级!C90 -> 3520 | C90: 4 | D90: 634.4 | E90: =(VLOOKUP(INT(MAX(1,0.2*A90))*5,功法!B:E,4,FALSE)+(VLOOKUP(INT(MIN(60,MAX(1,0.2*A90+1)))*5,功法!B:E,4,FALSE)-VLOOKUP(INT(MAX(1,0.2*A90))*5,功法!B:E,4,FALSE))*MOD(A90,5)/5)*H90 -> 0.5393138667 | F90: 0.5133333333 | G90: 6395 | H90: 0.88 | J90: 1065.386667 | K90: 35.2 | L90: 35.2 | M90: =IF(A90<160,0,升级!J90/升级!C$3) -> 0 | O90: 1935.553333 | P90: 63.95 | Q90: 63.95 | R90: =IF(A90<160,0,升级!J90/升级!C$3) -> 0
A91: 89 | B91: =升级!C91 -> 3574 | C91: 4 | D91: 634.4 | E91: =(VLOOKUP(INT(MAX(1,0.2*A91))*5,功法!B:E,4,FALSE)+(VLOOKUP(INT(MIN(60,MAX(1,0.2*A91+1)))*5,功法!B:E,4,FALSE)-VLOOKUP(INT(MAX(1,0.2*A91))*5,功法!B:E,4,FALSE))*MOD(A91,5)/5)*H91 -> 0.5548734667 | F91: 0.5191666667 | G91: 6544 | H91: 0.89 | J91: 1085.900333 | K91: 35.74 | L91: 35.74 | M91: =IF(A91<160,0,升级!J91/升级!C$3) -> 0 | O91: 1988.285333 | P91: 65.44 | Q91: 65.44 | R91: =IF(A91<160,0,升级!J91/升级!C$3) -> 0
A92: 90 | B92: =升级!C92 -> 3628 | C92: 4 | D92: 634.4 | E92: =(VLOOKUP(INT(MAX(1,0.2*A92))*5,功法!B:E,4,FALSE)+(VLOOKUP(INT(MIN(60,MAX(1,0.2*A92+1)))*5,功法!B:E,4,FALSE)-VLOOKUP(INT(MAX(1,0.2*A92))*5,功法!B:E,4,FALSE))*MOD(A92,5)/5)*H92 -> 0.570645 | F92: 0.525 | G92: 6695 | H92: 0.9 | J92: 1106.54 | K92: 36.28 | L92: 36.28 | M92: =IF(A92<160,0,升级!J92/升级!C$3) -> 0 | O92: 2041.975 | P92: 66.95 | Q92: 66.95 | R92: =IF(A92<160,0,升级!J92/升级!C$3) -> 0
A93: 91 | B93: =升级!C93 -> 5442 | C93: 4 | D93: =B93*D$1/3*C93 -> 1088.4 | E93: =(VLOOKUP(INT(MAX(1,0.2*A93))*5,功法!B:E,4,FALSE)+(VLOOKUP(INT(MIN(60,MAX(1,0.2*A93+1)))*5,功法!B:E,4,FALSE)-VLOOKUP(INT(MAX(1,0.2*A93))*5,功法!B:E,4,FALSE))*MOD(A93,5)/5)*H93 -> 0.5866284667 | F93: 0.5308333333 | G93: 10361 | H93: 0.91 | J93: 1666.159 | K93: 54.42 | L93: 54.42 | M93: =IF(A93<160,0,升级!J93/升级!C$3) -> 0 | O93: 3172.192833 | P93: 103.61 | Q93: 103.61 | R93: =IF(A93<160,0,升级!J93/升级!C$3) -> 0
A94: 92 | B94: =升级!C94 -> 5522 | C94: 4 | D94: =D93 -> 1088.4 | E94: =(VLOOKUP(INT(MAX(1,0.2*A94))*5,功法!B:E,4,FALSE)+(VLOOKUP(INT(MIN(60,MAX(1,0.2*A94+1)))*5,功法!B:E,4,FALSE)-VLOOKUP(INT(MAX(1,0.2*A94))*5,功法!B:E,4,FALSE))*MOD(A94,5)/5)*H94 -> 0.6028238667 | F94: 0.5366666667 | G94: 10595 | H94: 0.92 | J94: 1697.094667 | K94: 55.22 | L94: 55.22 | M94: =IF(A94<160,0,升级!J94/升级!C$3) -> 0 | O94: 3256.196667 | P94: 105.95 | Q94: 105.95 | R94: =IF(A94<160,0,升级!J94/升级!C$3) -> 0
A95: 93 | B95: =升级!C95 -> 5606 | C95: 4 | D95: =D94 -> 1088.4 | E95: =(VLOOKUP(INT(MAX(1,0.2*A95))*5,功法!B:E,4,FALSE)+(VLOOKUP(INT(MIN(60,MAX(1,0.2*A95+1)))*5,功法!B:E,4,FALSE)-VLOOKUP(INT(MAX(1,0.2*A95))*5,功法!B:E,4,FALSE))*MOD(A95,5)/5)*H95 -> 0.6192312 | F95: 0.5425 | G95: 10840 | H95: 0.93 | J95: 1729.451 | K95: 56.06 | L95: 56.06 | M95: =IF(A95<160,0,升级!J95/升级!C$3) -> 0 | O95: 3344.14 | P95: 108.4 | Q95: 108.4 | R95: =IF(A95<160,0,升级!J95/升级!C$3) -> 0
A96: 94 | B96: =升级!C96 -> 5690 | C96: 4 | D96: 1088.4 | E96: =(VLOOKUP(INT(MAX(1,0.2*A96))*5,功法!B:E,4,FALSE)+(VLOOKUP(INT(MIN(60,MAX(1,0.2*A96+1)))*5,功法!B:E,4,FALSE)-VLOOKUP(INT(MAX(1,0.2*A96))*5,功法!B:E,4,FALSE))*MOD(A96,5)/5)*H96 -> 0.6358504667 | F96: 0.5483333333 | G96: 11088 | H96: 0.94 | J96: 1762.003333 | K96: 56.9 | L96: 56.9 | M96: =IF(A96<160,0,升级!J96/升级!C$3) -> 0 | O96: 3433.584 | P96: 110.88 | Q96: 110.88 | R96: =IF(A96<160,0,升级!J96/升级!C$3) -> 0
A97: 95 | B97: =升级!C97 -> 5774 | C97: 4 | D97: 1088.4 | E97: =(VLOOKUP(INT(MAX(1,0.2*A97))*5,功法!B:E,4,FALSE)+(VLOOKUP(INT(MIN(60,MAX(1,0.2*A97+1)))*5,功法!B:E,4,FALSE)-VLOOKUP(INT(MAX(1,0.2*A97))*5,功法!B:E,4,FALSE))*MOD(A97,5)/5)*H97 -> 0.6526816667 | F97: 0.5541666667 | G97: 11341 | H97: 0.95 | J97: 1794.751667 | K97: 57.74 | L97: 57.74 | M97: =IF(A97<160,0,升级!J97/升级!C$3) -> 0 | O97: 3525.160833 | P97: 113.41 | Q97: 113.41 | R97: =IF(A97<160,0,升级!J97/升级!C$3) -> 0
A98: 96 | B98: =升级!C98 -> 5862 | C98: 4 | D98: 1088.4 | E98: =(VLOOKUP(INT(MAX(1,0.2*A98))*5,功法!B:E,4,FALSE)+(VLOOKUP(INT(MIN(60,MAX(1,0.2*A98+1)))*5,功法!B:E,4,FALSE)-VLOOKUP(INT(MAX(1,0.2*A98))*5,功法!B:E,4,FALSE))*MOD(A98,5)/5)*H98 -> 0.6697248 | F98: 0.56 | G98: 11605 | H98: 0.96 | J98: 1828.944 | K98: 58.62 | L98: 58.62 | M98: =IF(A98<160,0,升级!J98/升级!C$3) -> 0 | O98: 3620.76 | P98: 116.05 | Q98: 116.05 | R98: =IF(A98<160,0,升级!J98/升级!C$3) -> 0
A99: 97 | B99: =升级!C99 -> 5950 | C99: 4 | D99: 1088.4 | E99: =(VLOOKUP(INT(MAX(1,0.2*A99))*5,功法!B:E,4,FALSE)+(VLOOKUP(INT(MIN(60,MAX(1,0.2*A99+1)))*5,功法!B:E,4,FALSE)-VLOOKUP(INT(MAX(1,0.2*A99))*5,功法!B:E,4,FALSE))*MOD(A99,5)/5)*H99 -> 0.6869798667 | F99: 0.5658333333 | G99: 11874 | H99: 0.97 | J99: 1863.341667 | K99: 59.5 | L99: 59.5 | M99: =IF(A99<160,0,升级!J99/升级!C$3) -> 0 | O99: 3718.541 | P99: 118.74 | Q99: 118.74 | R99: =IF(A99<160,0,升级!J99/升级!C$3) -> 0
A100: 98 | B100: =升级!C100 -> 6038 | C100: 4 | D100: 1088.4 | E100: =(VLOOKUP(INT(MAX(1,0.2*A100))*5,功法!B:E,4,FALSE)+(VLOOKUP(INT(MIN(60,MAX(1,0.2*A100+1)))*5,功法!B:E,4,FALSE)-VLOOKUP(INT(MAX(1,0.2*A100))*5,功法!B:E,4,FALSE))*MOD(A100,5)/5)*H100 -> 0.7044468667 | F100: 0.5716666667 | G100: 12147 | H100: 0.98 | J100: 1897.944667 | K100: 60.38 | L100: 60.38 | M100: =IF(A100<160,0,升级!J100/升级!C$3) -> 0 | O100: 3818.207 | P100: 121.47 | Q100: 121.47 | R100: =IF(A100<160,0,升级!J100/升级!C$3) -> 0
A101: 99 | B101: =升级!C101 -> 6130 | C101: 4 | D101: 1088.4 | E101: =(VLOOKUP(INT(MAX(1,0.2*A101))*5,功法!B:E,4,FALSE)+(VLOOKUP(INT(MIN(60,MAX(1,0.2*A101+1)))*5,功法!B:E,4,FALSE)-VLOOKUP(INT(MAX(1,0.2*A101))*5,功法!B:E,4,FALSE))*MOD(A101,5)/5)*H101 -> 0.7221258 | F101: 0.5775 | G101: 12431 | H101: 0.99 | J101: 1934.015 | K101: 61.3 | L101: 61.3 | M101: =IF(A101<160,0,升级!J101/升级!C$3) -> 0 | O101: 3921.9805 | P101: 124.31 | Q101: 124.31 | R101: =IF(A101<160,0,升级!J101/升级!C$3) -> 0
A102: 100 | B102: =升级!C102 -> 6222 | C102: 4 | D102: 1088.4 | E102: =(VLOOKUP(INT(MAX(1,0.2*A102))*5,功法!B:E,4,FALSE)+(VLOOKUP(INT(MIN(60,MAX(1,0.2*A102+1)))*5,功法!B:E,4,FALSE)-VLOOKUP(INT(MAX(1,0.2*A102))*5,功法!B:E,4,FALSE))*MOD(A102,5)/5)*H102 -> 0.7400166667 | F102: 0.5833333333 | G102: 12720 | H102: 1 | J102: 1970.3 | K102: 62.22 | L102: 62.22 | M102: =IF(A102<160,0,升级!J102/升级!C$3) -> 0 | O102: 4028 | P102: 127.2 | Q102: 127.2 | R102: =IF(A102<160,0,升级!J102/升级!C$3) -> 0
A103: 101 | B103: =升级!C103 -> 8088 | C103: 4 | D103: =B103*D$1/3*C103 -> 1617.6 | E103: =(VLOOKUP(INT(MAX(1,0.2*A103))*5,功法!B:E,4,FALSE)+(VLOOKUP(INT(MIN(60,MAX(1,0.2*A103+1)))*5,功法!B:E,4,FALSE)-VLOOKUP(INT(MAX(1,0.2*A103))*5,功法!B:E,4,FALSE))*MOD(A103,5)/5)*H103 -> 0.7506133333 | F103: 0.5891666667 | G103: 16991 | H103: 1 | J103: 2570.636 | K103: 80.88 | L103: 80.88 | M103: =IF(A103<160,0,升级!J103/升级!C$3) -> 0 | O103: 5400.306167 | P103: 169.91 | Q103: 169.91 | R103: =IF(A103<160,0,升级!J103/升级!C$3) -> 0
A104: 102 | B104: =升级!C104 -> 8208 | C104: 4 | D104: =D103 -> 1617.6 | E104: =(VLOOKUP(INT(MAX(1,0.2*A104))*5,功法!B:E,4,FALSE)+(VLOOKUP(INT(MIN(60,MAX(1,0.2*A104+1)))*5,功法!B:E,4,FALSE)-VLOOKUP(INT(MAX(1,0.2*A104))*5,功法!B:E,4,FALSE))*MOD(A104,5)/5)*H104 -> 0.76121 | F104: 0.595 | G104: 17305 | H104: 1 | J104: 2618.352 | K104: 82.08 | L104: 82.08 | M104: =IF(A104<160,0,升级!J104/升级!C$3) -> 0 | O104: 5520.295 | P104: 173.05 | Q104: 173.05 | R104: =IF(A104<160,0,升级!J104/升级!C$3) -> 0
A105: 103 | B105: =升级!C105 -> 8332 | C105: 4 | D105: =D104 -> 1617.6 | E105: =(VLOOKUP(INT(MAX(1,0.2*A105))*5,功法!B:E,4,FALSE)+(VLOOKUP(INT(MIN(60,MAX(1,0.2*A105+1)))*5,功法!B:E,4,FALSE)-VLOOKUP(INT(MAX(1,0.2*A105))*5,功法!B:E,4,FALSE))*MOD(A105,5)/5)*H105 -> 0.7718066667 | F105: 0.6008333333 | G105: 17629 | H105: 1 | J105: 2667.628667 | K105: 83.32 | L105: 83.32 | M105: =IF(A105<160,0,升级!J105/升级!C$3) -> 0 | O105: 5644.218167 | P105: 176.29 | Q105: 176.29 | R105: =IF(A105<160,0,升级!J105/升级!C$3) -> 0
A106: 104 | B106: =升级!C106 -> 8458 | C106: 4 | D106: 1617.6 | E106: =(VLOOKUP(INT(MAX(1,0.2*A106))*5,功法!B:E,4,FALSE)+(VLOOKUP(INT(MIN(60,MAX(1,0.2*A106+1)))*5,功法!B:E,4,FALSE)-VLOOKUP(INT(MAX(1,0.2*A106))*5,功法!B:E,4,FALSE))*MOD(A106,5)/5)*H106 -> 0.7824033333 | F106: 0.6066666667 | G106: 17959 | H106: 1 | J106: 2717.837333 | K106: 84.58 | L106: 84.58 | M106: =IF(A106<160,0,升级!J106/升级!C$3) -> 0 | O106: 5770.825333 | P106: 179.59 | Q106: 179.59 | R106: =IF(A106<160,0,升级!J106/升级!C$3) -> 0
A107: 105 | B107: =升级!C107 -> 8584 | C107: 4 | D107: 1617.6 | E107: =(VLOOKUP(INT(MAX(1,0.2*A107))*5,功法!B:E,4,FALSE)+(VLOOKUP(INT(MIN(60,MAX(1,0.2*A107+1)))*5,功法!B:E,4,FALSE)-VLOOKUP(INT(MAX(1,0.2*A107))*5,功法!B:E,4,FALSE))*MOD(A107,5)/5)*H107 -> 0.793 | F107: 0.6125 | G107: 18291 | H107: 1 | J107: 2768.34 | K107: 85.84 | L107: 85.84 | M107: =IF(A107<160,0,升级!J107/升级!C$3) -> 0 | O107: 5898.8475 | P107: 182.91 | Q107: 182.91 | R107: =IF(A107<160,0,升级!J107/升级!C$3) -> 0
A108: 106 | B108: =升级!C108 -> 8712 | C108: 4 | D108: 1617.6 | E108: =(VLOOKUP(INT(MAX(1,0.2*A108))*5,功法!B:E,4,FALSE)+(VLOOKUP(INT(MIN(60,MAX(1,0.2*A108+1)))*5,功法!B:E,4,FALSE)-VLOOKUP(INT(MAX(1,0.2*A108))*5,功法!B:E,4,FALSE))*MOD(A108,5)/5)*H108 -> 0.8035966667 | F108: 0.6183333333 | G108: 18630 | H108: 1 | J108: 2819.784 | K108: 87.12 | L108: 87.12 | M108: =IF(A108<160,0,升级!J108/升级!C$3) -> 0 | O108: 6029.91 | P108: 186.3 | Q108: 186.3 | R108: =IF(A108<160,0,升级!J108/升级!C$3) -> 0
A109: 107 | B109: =升级!C109 -> 8844 | C109: 4 | D109: 1617.6 | E109: =(VLOOKUP(INT(MAX(1,0.2*A109))*5,功法!B:E,4,FALSE)+(VLOOKUP(INT(MIN(60,MAX(1,0.2*A109+1)))*5,功法!B:E,4,FALSE)-VLOOKUP(INT(MAX(1,0.2*A109))*5,功法!B:E,4,FALSE))*MOD(A109,5)/5)*H109 -> 0.8141933333 | F109: 0.6241666667 | G109: 18979 | H109: 1 | J109: 2872.826 | K109: 88.44 | L109: 88.44 | M109: =IF(A109<160,0,升级!J109/升级!C$3) -> 0 | O109: 6165.011833 | P109: 189.79 | Q109: 189.79 | R109: =IF(A109<160,0,升级!J109/升级!C$3) -> 0
A110: 108 | B110: =升级!C110 -> 8976 | C110: 4 | D110: 1617.6 | E110: =(VLOOKUP(INT(MAX(1,0.2*A110))*5,功法!B:E,4,FALSE)+(VLOOKUP(INT(MIN(60,MAX(1,0.2*A110+1)))*5,功法!B:E,4,FALSE)-VLOOKUP(INT(MAX(1,0.2*A110))*5,功法!B:E,4,FALSE))*MOD(A110,5)/5)*H110 -> 0.82479 | F110: 0.63 | G110: 19331 | H110: 1 | J110: 2926.176 | K110: 89.76 | L110: 89.76 | M110: =IF(A110<160,0,升级!J110/升级!C$3) -> 0 | O110: 6301.906 | P110: 193.31 | Q110: 193.31 | R110: =IF(A110<160,0,升级!J110/升级!C$3) -> 0
A111: 109 | B111: =升级!C111 -> 9110 | C111: 4 | D111: 1617.6 | E111: =(VLOOKUP(INT(MAX(1,0.2*A111))*5,功法!B:E,4,FALSE)+(VLOOKUP(INT(MIN(60,MAX(1,0.2*A111+1)))*5,功法!B:E,4,FALSE)-VLOOKUP(INT(MAX(1,0.2*A111))*5,功法!B:E,4,FALSE))*MOD(A111,5)/5)*H111 -> 0.8353866667 | F111: 0.6358333333 | G111: 19689 | H111: 1 | J111: 2980.488333 | K111: 91.1 | L111: 91.1 | M111: =IF(A111<160,0,升级!J111/升级!C$3) -> 0 | O111: 6441.5845 | P111: 196.89 | Q111: 196.89 | R111: =IF(A111<160,0,升级!J111/升级!C$3) -> 0
A112: 110 | B112: =升级!C112 -> 9248 | C112: 4 | D112: 1617.6 | E112: =(VLOOKUP(INT(MAX(1,0.2*A112))*5,功法!B:E,4,FALSE)+(VLOOKUP(INT(MIN(60,MAX(1,0.2*A112+1)))*5,功法!B:E,4,FALSE)-VLOOKUP(INT(MAX(1,0.2*A112))*5,功法!B:E,4,FALSE))*MOD(A112,5)/5)*H112 -> 0.8459833333 | F112: 0.6416666667 | G112: 20058 | H112: 1 | J112: 3036.426667 | K112: 92.48 | L112: 92.48 | M112: =IF(A112<160,0,升级!J112/升级!C$3) -> 0 | O112: 6585.71 | P112: 200.58 | Q112: 200.58 | R112: =IF(A112<160,0,升级!J112/升级!C$3) -> 0
A113: 111 | B113: =升级!C113 -> 12022 | C113: 4 | D113: =B113*D$1/3*C113 -> 2404.4 | E113: =(VLOOKUP(INT(MAX(1,0.2*A113))*5,功法!B:E,4,FALSE)+(VLOOKUP(INT(MIN(60,MAX(1,0.2*A113+1)))*5,功法!B:E,4,FALSE)-VLOOKUP(INT(MAX(1,0.2*A113))*5,功法!B:E,4,FALSE))*MOD(A113,5)/5)*H113 -> 0.85658 | F113: 0.6475 | G113: 26784 | H113: 1 | J113: 3961.249 | K113: 120.22 | L113: 120.22 | M113: =IF(A113<160,0,升级!J113/升级!C$3) -> 0 | O113: 8825.328 | P113: 267.84 | Q113: 267.84 | R113: =IF(A113<160,0,升级!J113/升级!C$3) -> 0
A114: 112 | B114: =升级!C114 -> 12202 | C114: 4 | D114: =D113 -> 2404.4 | E114: =(VLOOKUP(INT(MAX(1,0.2*A114))*5,功法!B:E,4,FALSE)+(VLOOKUP(INT(MIN(60,MAX(1,0.2*A114+1)))*5,功法!B:E,4,FALSE)-VLOOKUP(INT(MAX(1,0.2*A114))*5,功法!B:E,4,FALSE))*MOD(A114,5)/5)*H114 -> 0.8671766667 | F114: 0.6533333333 | G114: 27273 | H114: 1 | J114: 4034.794667 | K114: 122.02 | L114: 122.02 | M114: =IF(A114<160,0,升级!J114/升级!C$3) -> 0 | O114: 9018.272 | P114: 272.73 | Q114: 272.73 | R114: =IF(A114<160,0,升级!J114/升级!C$3) -> 0
A115: 113 | B115: =升级!C115 -> 12384 | C115: 4 | D115: =D114 -> 2404.4 | E115: =(VLOOKUP(INT(MAX(1,0.2*A115))*5,功法!B:E,4,FALSE)+(VLOOKUP(INT(MIN(60,MAX(1,0.2*A115+1)))*5,功法!B:E,4,FALSE)-VLOOKUP(INT(MAX(1,0.2*A115))*5,功法!B:E,4,FALSE))*MOD(A115,5)/5)*H115 -> 0.8777733333 | F115: 0.6591666667 | G115: 27769 | H115: 1 | J115: 4109.424 | K115: 123.84 | L115: 123.84 | M115: =IF(A115<160,0,升级!J115/升级!C$3) -> 0 | O115: 9214.679833 | P115: 277.69 | Q115: 277.69 | R115: =IF(A115<160,0,升级!J115/升级!C$3) -> 0
A116: 114 | B116: =升级!C116 -> 12570 | C116: 4 | D116: 2404.4 | E116: =(VLOOKUP(INT(MAX(1,0.2*A116))*5,功法!B:E,4,FALSE)+(VLOOKUP(INT(MIN(60,MAX(1,0.2*A116+1)))*5,功法!B:E,4,FALSE)-VLOOKUP(INT(MAX(1,0.2*A116))*5,功法!B:E,4,FALSE))*MOD(A116,5)/5)*H116 -> 0.88837 | F116: 0.665 | G116: 28277 | H116: 1 | J116: 4185.81 | K116: 125.7 | L116: 125.7 | M116: =IF(A116<160,0,升级!J116/升级!C$3) -> 0 | O116: 9416.241 | P116: 282.77 | Q116: 282.77 | R116: =IF(A116<160,0,升级!J116/升级!C$3) -> 0
A117: 115 | B117: =升级!C117 -> 12760 | C117: 4 | D117: 2404.4 | E117: =(VLOOKUP(INT(MAX(1,0.2*A117))*5,功法!B:E,4,FALSE)+(VLOOKUP(INT(MIN(60,MAX(1,0.2*A117+1)))*5,功法!B:E,4,FALSE)-VLOOKUP(INT(MAX(1,0.2*A117))*5,功法!B:E,4,FALSE))*MOD(A117,5)/5)*H117 -> 0.8989666667 | F117: 0.6708333333 | G117: 28797 | H117: 1 | J117: 4263.966667 | K117: 127.6 | L117: 127.6 | M117: =IF(A117<160,0,升级!J117/升级!C$3) -> 0 | O117: 9622.9975 | P117: 287.97 | Q117: 287.97 | R117: =IF(A117<160,0,升级!J117/升级!C$3) -> 0
A118: 116 | B118: =升级!C118 -> 12950 | C118: 4 | D118: 2404.4 | E118: =(VLOOKUP(INT(MAX(1,0.2*A118))*5,功法!B:E,4,FALSE)+(VLOOKUP(INT(MIN(60,MAX(1,0.2*A118+1)))*5,功法!B:E,4,FALSE)-VLOOKUP(INT(MAX(1,0.2*A118))*5,功法!B:E,4,FALSE))*MOD(A118,5)/5)*H118 -> 0.9095633333 | F118: 0.6766666667 | G118: 29320 | H118: 1 | J118: 4342.566667 | K118: 129.5 | L118: 129.5 | M118: =IF(A118<160,0,升级!J118/升级!C$3) -> 0 | O118: 9831.973333 | P118: 293.2 | Q118: 293.2 | R118: =IF(A118<160,0,升级!J118/升级!C$3) -> 0
A119: 117 | B119: =升级!C119 -> 13144 | C119: 4 | D119: 2404.4 | E119: =(VLOOKUP(INT(MAX(1,0.2*A119))*5,功法!B:E,4,FALSE)+(VLOOKUP(INT(MIN(60,MAX(1,0.2*A119+1)))*5,功法!B:E,4,FALSE)-VLOOKUP(INT(MAX(1,0.2*A119))*5,功法!B:E,4,FALSE))*MOD(A119,5)/5)*H119 -> 0.92016 | F119: 0.6825 | G119: 29855 | H119: 1 | J119: 4422.956 | K119: 131.44 | L119: 131.44 | M119: =IF(A119<160,0,升级!J119/升级!C$3) -> 0 | O119: 10046.2075 | P119: 298.55 | Q119: 298.55 | R119: =IF(A119<160,0,升级!J119/升级!C$3) -> 0
A120: 118 | B120: =升级!C120 -> 13342 | C120: 4 | D120: 2404.4 | E120: =(VLOOKUP(INT(MAX(1,0.2*A120))*5,功法!B:E,4,FALSE)+(VLOOKUP(INT(MIN(60,MAX(1,0.2*A120+1)))*5,功法!B:E,4,FALSE)-VLOOKUP(INT(MAX(1,0.2*A120))*5,功法!B:E,4,FALSE))*MOD(A120,5)/5)*H120 -> 0.9307566667 | F120: 0.6883333333 | G120: 30402 | H120: 1 | J120: 4505.148667 | K120: 133.42 | L120: 133.42 | M120: =IF(A120<160,0,升级!J120/升级!C$3) -> 0 | O120: 10265.742 | P120: 304.02 | Q120: 304.02 | R120: =IF(A120<160,0,升级!J120/升级!C$3) -> 0
A121: 119 | B121: =升级!C121 -> 13542 | C121: 4 | D121: 2404.4 | E121: =(VLOOKUP(INT(MAX(1,0.2*A121))*5,功法!B:E,4,FALSE)+(VLOOKUP(INT(MIN(60,MAX(1,0.2*A121+1)))*5,功法!B:E,4,FALSE)-VLOOKUP(INT(MAX(1,0.2*A121))*5,功法!B:E,4,FALSE))*MOD(A121,5)/5)*H121 -> 0.9413533333 | F121: 0.6941666667 | G121: 30958 | H121: 1 | J121: 4588.481 | K121: 135.42 | L121: 135.42 | M121: =IF(A121<160,0,升级!J121/升级!C$3) -> 0 | O121: 10489.60233 | P121: 309.58 | Q121: 309.58 | R121: =IF(A121<160,0,升级!J121/升级!C$3) -> 0
A122: 120 | B122: =升级!C122 -> 13746 | C122: 4 | D122: 2404.4 | E122: =(VLOOKUP(INT(MAX(1,0.2*A122))*5,功法!B:E,4,FALSE)+(VLOOKUP(INT(MIN(60,MAX(1,0.2*A122+1)))*5,功法!B:E,4,FALSE)-VLOOKUP(INT(MAX(1,0.2*A122))*5,功法!B:E,4,FALSE))*MOD(A122,5)/5)*H122 -> 0.95195 | F122: 0.7 | G122: 31525 | H122: 1 | J122: 4673.64 | K122: 137.46 | L122: 137.46 | M122: =IF(A122<160,0,升级!J122/升级!C$3) -> 0 | O122: 10718.5 | P122: 315.25 | Q122: 315.25 | R122: =IF(A122<160,0,升级!J122/升级!C$3) -> 0 | T122: 23 | U122: =$B$3*J122 -> 467364 | V122: =$B$3*K122 -> 13746 | W122: =$B$3*L122*0.5 -> 6873 | Y122: =$B$3*O122*Y$2/100 -> 1071850 | Z122: =$B$3*P122*Z$2/100 -> 31525 | AA122: =$B$3*Q122*AA$2/100 -> 15762.5
A123: 121 | B123: =升级!C123 -> 20618 | C123: 4 | D123: =B123*D$1/3*C123 -> 4123.6 | E123: =(VLOOKUP(INT(MAX(1,0.2*A123))*5,功法!B:E,4,FALSE)+(VLOOKUP(INT(MIN(60,MAX(1,0.2*A123+1)))*5,功法!B:E,4,FALSE)-VLOOKUP(INT(MAX(1,0.2*A123))*5,功法!B:E,4,FALSE))*MOD(A123,5)/5)*H123 -> 0.9608133333 | F123: 0.7058333333 | G123: 48514 | H123: 1 | J123: 7034.174333 | K123: 206.18 | L123: 206.18 | M123: =IF(A123<160,0,升级!J123/升级!C$3) -> 0 | O123: 16551.35967 | P123: 485.14 | Q123: 485.14 | R123: =IF(A123<160,0,升级!J123/升级!C$3) -> 0 | U123: =5900*0.5 -> 2950 | V123: =179.7*1.5 -> 269.55 | W123: =89.85*2 -> 179.7
A124: 122 | B124: =升级!C124 -> 20928 | C124: 4 | D124: =D123 -> 4123.6 | E124: =(VLOOKUP(INT(MAX(1,0.2*A124))*5,功法!B:E,4,FALSE)+(VLOOKUP(INT(MIN(60,MAX(1,0.2*A124+1)))*5,功法!B:E,4,FALSE)-VLOOKUP(INT(MAX(1,0.2*A124))*5,功法!B:E,4,FALSE))*MOD(A124,5)/5)*H124 -> 0.9696766667 | F124: 0.7116666667 | G124: 49344 | H124: 1 | J124: 7164.352 | K124: 209.28 | L124: 209.28 | M124: =IF(A124<160,0,升级!J124/升级!C$3) -> 0 | O124: 16892.096 | P124: 493.44 | Q124: 493.44 | R124: =IF(A124<160,0,升级!J124/升级!C$3) -> 0 | U124: =U122+U123 -> 470314 | V124: 14015.55 | W124: 7052.7
A125: 123 | B125: =升级!C125 -> 21242 | C125: 4 | D125: =D124 -> 4123.6 | E125: =(VLOOKUP(INT(MAX(1,0.2*A125))*5,功法!B:E,4,FALSE)+(VLOOKUP(INT(MIN(60,MAX(1,0.2*A125+1)))*5,功法!B:E,4,FALSE)-VLOOKUP(INT(MAX(1,0.2*A125))*5,功法!B:E,4,FALSE))*MOD(A125,5)/5)*H125 -> 0.97854 | F125: 0.7175 | G125: 50187 | H125: 1 | J125: 7296.627 | K125: 212.42 | L125: 212.42 | M125: =IF(A125<160,0,升级!J125/升级!C$3) -> 0 | O125: 17239.2345 | P125: 501.87 | Q125: 501.87 | R125: =IF(A125<160,0,升级!J125/升级!C$3) -> 0 | U125: =U124*1.737 -> 816935.418 | V125: =V124*1.737 -> 24345.01035 | W125: =W124*1.737 -> 12250.5399
A126: 124 | B126: =升级!C126 -> 21560 | C126: 4 | D126: 4123.6 | E126: =(VLOOKUP(INT(MAX(1,0.2*A126))*5,功法!B:E,4,FALSE)+(VLOOKUP(INT(MIN(60,MAX(1,0.2*A126+1)))*5,功法!B:E,4,FALSE)-VLOOKUP(INT(MAX(1,0.2*A126))*5,功法!B:E,4,FALSE))*MOD(A126,5)/5)*H126 -> 0.9874033333 | F126: 0.7233333333 | G126: 51044 | H126: 1 | J126: 7431.013333 | K126: 215.6 | L126: 215.6 | M126: =IF(A126<160,0,升级!J126/升级!C$3) -> 0 | O126: 17593.16533 | P126: 510.44 | Q126: 510.44 | R126: =IF(A126<160,0,升级!J126/升级!C$3) -> 0
A127: 125 | B127: =升级!C127 -> 21884 | C127: 4 | D127: 4123.6 | E127: =(VLOOKUP(INT(MAX(1,0.2*A127))*5,功法!B:E,4,FALSE)+(VLOOKUP(INT(MIN(60,MAX(1,0.2*A127+1)))*5,功法!B:E,4,FALSE)-VLOOKUP(INT(MAX(1,0.2*A127))*5,功法!B:E,4,FALSE))*MOD(A127,5)/5)*H127 -> 0.9962666667 | F127: 0.7291666667 | G127: 51918 | H127: 1 | J127: 7568.216667 | K127: 218.84 | L127: 218.84 | M127: =IF(A127<160,0,升级!J127/升级!C$3) -> 0 | O127: 17954.975 | P127: 519.18 | Q127: 519.18 | R127: =IF(A127<160,0,升级!J127/升级!C$3) -> 0
A128: 126 | B128: =升级!C128 -> 22212 | C128: 4 | D128: 4123.6 | E128: =(VLOOKUP(INT(MAX(1,0.2*A128))*5,功法!B:E,4,FALSE)+(VLOOKUP(INT(MIN(60,MAX(1,0.2*A128+1)))*5,功法!B:E,4,FALSE)-VLOOKUP(INT(MAX(1,0.2*A128))*5,功法!B:E,4,FALSE))*MOD(A128,5)/5)*H128 -> 1.00318 | F128: 0.735 | G128: 52755 | H128: 1 | J128: 7707.564 | K128: 222.12 | L128: 222.12 | M128: =IF(A128<160,0,升级!J128/升级!C$3) -> 0 | O128: 18305.985 | P128: 527.55 | Q128: 527.55 | R128: =IF(A128<160,0,升级!J128/升级!C$3) -> 0
A129: 127 | B129: =升级!C129 -> 22544 | C129: 4 | D129: 4123.6 | E129: =(VLOOKUP(INT(MAX(1,0.2*A129))*5,功法!B:E,4,FALSE)+(VLOOKUP(INT(MIN(60,MAX(1,0.2*A129+1)))*5,功法!B:E,4,FALSE)-VLOOKUP(INT(MAX(1,0.2*A129))*5,功法!B:E,4,FALSE))*MOD(A129,5)/5)*H129 -> 1.010093333 | F129: 0.7408333333 | G129: 53604 | H129: 1 | J129: 7849.069333 | K129: 225.44 | L129: 225.44 | M129: =IF(A129<160,0,升级!J129/升级!C$3) -> 0 | O129: 18663.126 | P129: 536.04 | Q129: 536.04 | R129: =IF(A129<160,0,升级!J129/升级!C$3) -> 0
A130: 128 | B130: =升级!C130 -> 22882 | C130: 4 | D130: 4123.6 | E130: =(VLOOKUP(INT(MAX(1,0.2*A130))*5,功法!B:E,4,FALSE)+(VLOOKUP(INT(MIN(60,MAX(1,0.2*A130+1)))*5,功法!B:E,4,FALSE)-VLOOKUP(INT(MAX(1,0.2*A130))*5,功法!B:E,4,FALSE))*MOD(A130,5)/5)*H130 -> 1.017006667 | F130: 0.7466666667 | G130: 54470 | H130: 1 | J130: 7993.445333 | K130: 228.82 | L130: 228.82 | M130: =IF(A130<160,0,升级!J130/升级!C$3) -> 0 | O130: 19028.18667 | P130: 544.7 | Q130: 544.7 | R130: =IF(A130<160,0,升级!J130/升级!C$3) -> 0
A131: 129 | B131: =升级!C131 -> 23226 | C131: 4 | D131: 4123.6 | E131: =(VLOOKUP(INT(MAX(1,0.2*A131))*5,功法!B:E,4,FALSE)+(VLOOKUP(INT(MIN(60,MAX(1,0.2*A131+1)))*5,功法!B:E,4,FALSE)-VLOOKUP(INT(MAX(1,0.2*A131))*5,功法!B:E,4,FALSE))*MOD(A131,5)/5)*H131 -> 1.02392 | F131: 0.7525 | G131: =ROUND((B131+D131)*(1+E131),0) -> 55353 | H131: 1 | J131: 8140.713 | K131: =B131/B$3 -> 232.26 | L131: 232.26 | M131: =IF(A131<160,0,升级!J131/升级!C$3) -> 0 | O131: 19401.2265 | P131: =G131/B$3 -> 553.53 | Q131: 553.53 | R131: =IF(A131<160,0,升级!J131/升级!C$3) -> 0
A132: 130 | B132: =升级!C132 -> 23574 | C132: 4 | D132: 4123.6 | E132: =(VLOOKUP(INT(MAX(1,0.2*A132))*5,功法!B:E,4,FALSE)+(VLOOKUP(INT(MIN(60,MAX(1,0.2*A132+1)))*5,功法!B:E,4,FALSE)-VLOOKUP(INT(MAX(1,0.2*A132))*5,功法!B:E,4,FALSE))*MOD(A132,5)/5)*H132 -> 1.030833333 | F132: =F$1*$A132/300 -> 0.7583333333 | G132: 56249 | H132: 1 | J132: =B132/B$3*(1+F132)*L$1 -> 8290.19 | K132: 235.74 | L132: =K132 -> 235.74 | M132: =IF(A132<160,0,升级!J132/升级!C$3) -> 0 | O132: =G132/B$3*(1+F132)*L$1 -> 19780.89833 | P132: 562.49 | Q132: =P132 -> 562.49 | R132: =IF(A132<160,0,升级!J132/升级!C$3) -> 0
A133: 131 | B133: =升级!C133 -> 30646 | C133: 4 | D133: =B133*D$1/3*C133 -> 6129.2 | E133: =(VLOOKUP(INT(MAX(1,0.2*A133))*5,功法!B:E,4,FALSE)+(VLOOKUP(INT(MIN(60,MAX(1,0.2*A133+1)))*5,功法!B:E,4,FALSE)-VLOOKUP(INT(MAX(1,0.2*A133))*5,功法!B:E,4,FALSE))*MOD(A133,5)/5)*H133 -> 1.037746667 | F133: 0.7641666667 | G133: 74939 | H133: 1 | J133: 10812.93033 | K133: 306.46 | L133: 306.46 | M133: =IF(A133<160,0,升级!J133/升级!C$3) -> 0 | O133: 26440.97717 | P133: 749.39 | Q133: 749.39 | R133: =IF(A133<160,0,升级!J133/升级!C$3) -> 0
A134: 132 | B134: =升级!C134 -> 31106 | C134: 4 | D134: =D133 -> 6129.2 | E134: =(VLOOKUP(INT(MAX(1,0.2*A134))*5,功法!B:E,4,FALSE)+(VLOOKUP(INT(MIN(60,MAX(1,0.2*A134+1)))*5,功法!B:E,4,FALSE)-VLOOKUP(INT(MAX(1,0.2*A134))*5,功法!B:E,4,FALSE))*MOD(A134,5)/5)*H134 -> 1.04466 | F134: 0.77 | G134: 76133 | H134: 1 | J134: 11011.524 | K134: 311.06 | L134: 311.06 | M134: =IF(A134<160,0,升级!J134/升级!C$3) -> 0 | O134: 26951.082 | P134: 761.33 | Q134: 761.33 | R134: =IF(A134<160,0,升级!J134/升级!C$3) -> 0
A135: 133 | B135: =升级!C135 -> 31572 | C135: 4 | D135: =D134 -> 6129.2 | E135: =(VLOOKUP(INT(MAX(1,0.2*A135))*5,功法!B:E,4,FALSE)+(VLOOKUP(INT(MIN(60,MAX(1,0.2*A135+1)))*5,功法!B:E,4,FALSE)-VLOOKUP(INT(MAX(1,0.2*A135))*5,功法!B:E,4,FALSE))*MOD(A135,5)/5)*H135 -> 1.051573333 | F135: 0.7758333333 | G135: 77347 | H135: 1 | J135: 11213.322 | K135: 315.72 | L135: 315.72 | M135: =IF(A135<160,0,升级!J135/升级!C$3) -> 0 | O135: 27471.07617 | P135: 773.47 | Q135: 773.47 | R135: =IF(A135<160,0,升级!J135/升级!C$3) -> 0
A136: 134 | B136: =升级!C136 -> 32046 | C136: 4 | D136: 6129.2 | E136: =(VLOOKUP(INT(MAX(1,0.2*A136))*5,功法!B:E,4,FALSE)+(VLOOKUP(INT(MIN(60,MAX(1,0.2*A136+1)))*5,功法!B:E,4,FALSE)-VLOOKUP(INT(MAX(1,0.2*A136))*5,功法!B:E,4,FALSE))*MOD(A136,5)/5)*H136 -> 1.058486667 | F136: 0.7816666667 | G136: 78583 | H136: 1 | J136: 11419.058 | K136: 320.46 | L136: 320.46 | M136: =IF(A136<160,0,升级!J136/升级!C$3) -> 0 | O136: 28001.74233 | P136: 785.83 | Q136: 785.83 | R136: =IF(A136<160,0,升级!J136/升级!C$3) -> 0
A137: 135 | B137: =升级!C137 -> 32528 | C137: 4 | D137: 6129.2 | E137: =(VLOOKUP(INT(MAX(1,0.2*A137))*5,功法!B:E,4,FALSE)+(VLOOKUP(INT(MIN(60,MAX(1,0.2*A137+1)))*5,功法!B:E,4,FALSE)-VLOOKUP(INT(MAX(1,0.2*A137))*5,功法!B:E,4,FALSE))*MOD(A137,5)/5)*H137 -> 1.0654 | F137: 0.7875 | G137: 79843 | H137: 1 | J137: 11628.76 | K137: 325.28 | L137: 325.28 | M137: =IF(A137<160,0,升级!J137/升级!C$3) -> 0 | O137: 28543.8725 | P137: 798.43 | Q137: 798.43 | R137: =IF(A137<160,0,升级!J137/升级!C$3) -> 0
A138: 136 | B138: =升级!C138 -> 33016 | C138: 4 | D138: 6129.2 | E138: =(VLOOKUP(INT(MAX(1,0.2*A138))*5,功法!B:E,4,FALSE)+(VLOOKUP(INT(MIN(60,MAX(1,0.2*A138+1)))*5,功法!B:E,4,FALSE)-VLOOKUP(INT(MAX(1,0.2*A138))*5,功法!B:E,4,FALSE))*MOD(A138,5)/5)*H138 -> 1.072313333 | F138: 0.7933333333 | G138: 81121 | H138: 1 | J138: 11841.73867 | K138: 330.16 | L138: 330.16 | M138: =IF(A138<160,0,升级!J138/升级!C$3) -> 0 | O138: 29095.39867 | P138: 811.21 | Q138: 811.21 | R138: =IF(A138<160,0,升级!J138/升级!C$3) -> 0
A139: 137 | B139: =升级!C139 -> 33510 | C139: 4 | D139: 6129.2 | E139: =(VLOOKUP(INT(MAX(1,0.2*A139))*5,功法!B:E,4,FALSE)+(VLOOKUP(INT(MIN(60,MAX(1,0.2*A139+1)))*5,功法!B:E,4,FALSE)-VLOOKUP(INT(MAX(1,0.2*A139))*5,功法!B:E,4,FALSE))*MOD(A139,5)/5)*H139 -> 1.079226667 | F139: 0.7991666667 | G139: 82419 | H139: 1 | J139: 12058.015 | K139: 335.1 | L139: 335.1 | M139: =IF(A139<160,0,升级!J139/升级!C$3) -> 0 | O139: 29657.1035 | P139: 824.19 | Q139: 824.19 | R139: =IF(A139<160,0,升级!J139/升级!C$3) -> 0
A140: 138 | B140: =升级!C140 -> 34012 | C140: 4 | D140: 6129.2 | E140: =(VLOOKUP(INT(MAX(1,0.2*A140))*5,功法!B:E,4,FALSE)+(VLOOKUP(INT(MIN(60,MAX(1,0.2*A140+1)))*5,功法!B:E,4,FALSE)-VLOOKUP(INT(MAX(1,0.2*A140))*5,功法!B:E,4,FALSE))*MOD(A140,5)/5)*H140 -> 1.08614 | F140: 0.805 | G140: 83740 | H140: 1 | J140: 12278.332 | K140: 340.12 | L140: 340.12 | M140: =IF(A140<160,0,升级!J140/升级!C$3) -> 0 | O140: 30230.14 | P140: 837.4 | Q140: 837.4 | R140: =IF(A140<160,0,升级!J140/升级!C$3) -> 0
A141: 139 | B141: =升级!C141 -> 34524 | C141: 4 | D141: 6129.2 | E141: =(VLOOKUP(INT(MAX(1,0.2*A141))*5,功法!B:E,4,FALSE)+(VLOOKUP(INT(MIN(60,MAX(1,0.2*A141+1)))*5,功法!B:E,4,FALSE)-VLOOKUP(INT(MAX(1,0.2*A141))*5,功法!B:E,4,FALSE))*MOD(A141,5)/5)*H141 -> 1.093053333 | F141: 0.8108333333 | G141: 85089 | H141: 1 | J141: 12503.442 | K141: 345.24 | L141: 345.24 | M141: =IF(A141<160,0,升级!J141/升级!C$3) -> 0 | O141: 30816.3995 | P141: 850.89 | Q141: 850.89 | R141: =IF(A141<160,0,升级!J141/升级!C$3) -> 0
A142: 140 | B142: =升级!C142 -> 35042 | C142: 4 | D142: 6129.2 | E142: =(VLOOKUP(INT(MAX(1,0.2*A142))*5,功法!B:E,4,FALSE)+(VLOOKUP(INT(MIN(60,MAX(1,0.2*A142+1)))*5,功法!B:E,4,FALSE)-VLOOKUP(INT(MAX(1,0.2*A142))*5,功法!B:E,4,FALSE))*MOD(A142,5)/5)*H142 -> 1.099966667 | F142: 0.8166666667 | G142: 86458 | H142: 1 | J142: 12731.92667 | K142: 350.42 | L142: 350.42 | M142: =IF(A142<160,0,升级!J142/升级!C$3) -> 0 | O142: 31413.07333 | P142: 864.58 | Q142: 864.58 | R142: =IF(A142<160,0,升级!J142/升级!C$3) -> 0
A143: 141 | B143: =升级!C143 -> 45554 | C143: 4 | D143: =B143*D$1/3*C143 -> 9110.8 | E143: =(VLOOKUP(INT(MAX(1,0.2*A143))*5,功法!B:E,4,FALSE)+(VLOOKUP(INT(MIN(60,MAX(1,0.2*A143+1)))*5,功法!B:E,4,FALSE)-VLOOKUP(INT(MAX(1,0.2*A143))*5,功法!B:E,4,FALSE))*MOD(A143,5)/5)*H143 -> 1.10688 | F143: 0.8225 | G143: 115172 | H143: 1 | J143: 16604.433 | K143: 455.54 | L143: 455.54 | M143: =IF(A143<160,0,升级!J143/升级!C$3) -> 0 | O143: 41980.194 | P143: 1151.72 | Q143: 1151.72 | R143: =IF(A143<160,0,升级!J143/升级!C$3) -> 0
A144: 142 | B144: =升级!C144 -> 46236 | C144: 4 | D144: =D143 -> 9110.8 | E144: =(VLOOKUP(INT(MAX(1,0.2*A144))*5,功法!B:E,4,FALSE)+(VLOOKUP(INT(MIN(60,MAX(1,0.2*A144+1)))*5,功法!B:E,4,FALSE)-VLOOKUP(INT(MAX(1,0.2*A144))*5,功法!B:E,4,FALSE))*MOD(A144,5)/5)*H144 -> 1.113793333 | F144: 0.8283333333 | G144: 116992 | H144: 1 | J144: 16906.964 | K144: 462.36 | L144: 462.36 | M144: =IF(A144<160,0,升级!J144/升级!C$3) -> 0 | O144: 42780.07467 | P144: 1169.92 | Q144: 1169.92 | R144: =IF(A144<160,0,升级!J144/升级!C$3) -> 0
A145: 143 | B145: =升级!C145 -> 46930 | C145: 4 | D145: =D144 -> 9110.8 | E145: =(VLOOKUP(INT(MAX(1,0.2*A145))*5,功法!B:E,4,FALSE)+(VLOOKUP(INT(MIN(60,MAX(1,0.2*A145+1)))*5,功法!B:E,4,FALSE)-VLOOKUP(INT(MAX(1,0.2*A145))*5,功法!B:E,4,FALSE))*MOD(A145,5)/5)*H145 -> 1.120706667 | F145: 0.8341666667 | G145: 118846 | H145: 1 | J145: 17215.48833 | K145: 469.3 | L145: 469.3 | M145: =IF(A145<160,0,升级!J145/升级!C$3) -> 0 | O145: 43596.67433 | P145: 1188.46 | Q145: 1188.46 | R145: =IF(A145<160,0,升级!J145/升级!C$3) -> 0
A146: 144 | B146: =升级!C146 -> 47634 | C146: 4 | D146: 9110.8 | E146: =(VLOOKUP(INT(MAX(1,0.2*A146))*5,功法!B:E,4,FALSE)+(VLOOKUP(INT(MIN(60,MAX(1,0.2*A146+1)))*5,功法!B:E,4,FALSE)-VLOOKUP(INT(MAX(1,0.2*A146))*5,功法!B:E,4,FALSE))*MOD(A146,5)/5)*H146 -> 1.12762 | F146: 0.84 | G146: 120731 | H146: 1 | J146: 17529.312 | K146: 476.34 | L146: 476.34 | M146: =IF(A146<160,0,升级!J146/升级!C$3) -> 0 | O146: 44429.008 | P146: 1207.31 | Q146: 1207.31 | R146: =IF(A146<160,0,升级!J146/升级!C$3) -> 0
A147: 145 | B147: =升级!C147 -> 48348 | C147: 4 | D147: 9110.8 | E147: =(VLOOKUP(INT(MAX(1,0.2*A147))*5,功法!B:E,4,FALSE)+(VLOOKUP(INT(MIN(60,MAX(1,0.2*A147+1)))*5,功法!B:E,4,FALSE)-VLOOKUP(INT(MAX(1,0.2*A147))*5,功法!B:E,4,FALSE))*MOD(A147,5)/5)*H147 -> 1.134533333 | F147: 0.8458333333 | G147: 122648 | H147: 1 | J147: 17848.47 | K147: 483.48 | L147: 483.48 | M147: =IF(A147<160,0,升级!J147/升级!C$3) -> 0 | O147: 45277.55333 | P147: 1226.48 | Q147: 1226.48 | R147: =IF(A147<160,0,升级!J147/升级!C$3) -> 0
A148: 146 | B148: =升级!C148 -> 49074 | C148: 4 | D148: 9110.8 | E148: =(VLOOKUP(INT(MAX(1,0.2*A148))*5,功法!B:E,4,FALSE)+(VLOOKUP(INT(MIN(60,MAX(1,0.2*A148+1)))*5,功法!B:E,4,FALSE)-VLOOKUP(INT(MAX(1,0.2*A148))*5,功法!B:E,4,FALSE))*MOD(A148,5)/5)*H148 -> 1.141446667 | F148: 0.8516666667 | G148: 124600 | H148: 1 | J148: 18173.738 | K148: 490.74 | L148: 490.74 | M148: =IF(A148<160,0,升级!J148/升级!C$3) -> 0 | O148: 46143.53333 | P148: 1246 | Q148: 1246 | R148: =IF(A148<160,0,升级!J148/升级!C$3) -> 0
A149: 147 | B149: =升级!C149 -> 49810 | C149: 4 | D149: 9110.8 | E149: =(VLOOKUP(INT(MAX(1,0.2*A149))*5,功法!B:E,4,FALSE)+(VLOOKUP(INT(MIN(60,MAX(1,0.2*A149+1)))*5,功法!B:E,4,FALSE)-VLOOKUP(INT(MAX(1,0.2*A149))*5,功法!B:E,4,FALSE))*MOD(A149,5)/5)*H149 -> 1.14836 | F149: 0.8575 | G149: 126583 | H149: 1 | J149: 18504.415 | K149: 498.1 | L149: 498.1 | M149: =IF(A149<160,0,升级!J149/升级!C$3) -> 0 | O149: 47025.5845 | P149: 1265.83 | Q149: 1265.83 | R149: =IF(A149<160,0,升级!J149/升级!C$3) -> 0
A150: 148 | B150: =升级!C150 -> 50558 | C150: 4 | D150: 9110.8 | E150: =(VLOOKUP(INT(MAX(1,0.2*A150))*5,功法!B:E,4,FALSE)+(VLOOKUP(INT(MIN(60,MAX(1,0.2*A150+1)))*5,功法!B:E,4,FALSE)-VLOOKUP(INT(MAX(1,0.2*A150))*5,功法!B:E,4,FALSE))*MOD(A150,5)/5)*H150 -> 1.155273333 | F150: 0.8633333333 | G150: 128603 | H150: 1 | J150: 18841.28133 | K150: 505.58 | L150: 505.58 | M150: =IF(A150<160,0,升级!J150/升级!C$3) -> 0 | O150: 47926.05133 | P150: 1286.03 | Q150: 1286.03 | R150: =IF(A150<160,0,升级!J150/升级!C$3) -> 0
A151: 149 | B151: =升级!C151 -> 51316 | C151: 4 | D151: 9110.8 | E151: =(VLOOKUP(INT(MAX(1,0.2*A151))*5,功法!B:E,4,FALSE)+(VLOOKUP(INT(MIN(60,MAX(1,0.2*A151+1)))*5,功法!B:E,4,FALSE)-VLOOKUP(INT(MAX(1,0.2*A151))*5,功法!B:E,4,FALSE))*MOD(A151,5)/5)*H151 -> 1.162186667 | F151: 0.8691666667 | G151: 130654 | H151: 1 | J151: 19183.63133 | K151: 513.16 | L151: 513.16 | M151: =IF(A151<160,0,升级!J151/升级!C$3) -> 0 | O151: 48842.82033 | P151: 1306.54 | Q151: 1306.54 | R151: =IF(A151<160,0,升级!J151/升级!C$3) -> 0
A152: 150 | B152: =升级!C152 -> 52086 | C152: 4 | D152: 9110.8 | E152: =(VLOOKUP(INT(MAX(1,0.2*A152))*5,功法!B:E,4,FALSE)+(VLOOKUP(INT(MIN(60,MAX(1,0.2*A152+1)))*5,功法!B:E,4,FALSE)-VLOOKUP(INT(MAX(1,0.2*A152))*5,功法!B:E,4,FALSE))*MOD(A152,5)/5)*H152 -> 1.1691 | F152: 0.875 | G152: 132742 | H152: 1 | J152: 19532.25 | K152: 520.86 | L152: 520.86 | M152: =IF(A152<160,0,升级!J152/升级!C$3) -> 0 | O152: 49778.25 | P152: 1327.42 | Q152: 1327.42 | R152: =IF(A152<160,0,升级!J152/升级!C$3) -> 0
A153: 151 | B153: =升级!C153 -> 78128 | C153: 4 | D153: =B153*D$1/3*C153 -> 15625.6 | E153: =(VLOOKUP(INT(MAX(1,0.2*A153))*5,功法!B:E,4,FALSE)+(VLOOKUP(INT(MIN(60,MAX(1,0.2*A153+1)))*5,功法!B:E,4,FALSE)-VLOOKUP(INT(MAX(1,0.2*A153))*5,功法!B:E,4,FALSE))*MOD(A153,5)/5)*H153 -> 1.176013333 | F153: 0.8808333333 | G153: 204009 | H153: 1 | J153: 29389.14933 | K153: 781.28 | L153: 781.28 | M153: =IF(A153<160,0,升级!J153/升级!C$3) -> 0 | O153: 76741.3855 | P153: 2040.09 | Q153: 2040.09 | R153: =IF(A153<160,0,升级!J153/升级!C$3) -> 0
A154: 152 | B154: =升级!C154 -> 79300 | C154: 4 | D154: =D153 -> 15625.6 | E154: =(VLOOKUP(INT(MAX(1,0.2*A154))*5,功法!B:E,4,FALSE)+(VLOOKUP(INT(MIN(60,MAX(1,0.2*A154+1)))*5,功法!B:E,4,FALSE)-VLOOKUP(INT(MAX(1,0.2*A154))*5,功法!B:E,4,FALSE))*MOD(A154,5)/5)*H154 -> 1.182926667 | F154: 0.8866666667 | G154: 207216 | H154: 1 | J154: 29922.53333 | K154: 793 | L154: 793 | M154: =IF(A154<160,0,升级!J154/升级!C$3) -> 0 | O154: 78189.504 | P154: 2072.16 | Q154: 2072.16 | R154: =IF(A154<160,0,升级!J154/升级!C$3) -> 0
A155: 153 | B155: =升级!C155 -> 80490 | C155: 4 | D155: =D154 -> 15625.6 | E155: =(VLOOKUP(INT(MAX(1,0.2*A155))*5,功法!B:E,4,FALSE)+(VLOOKUP(INT(MIN(60,MAX(1,0.2*A155+1)))*5,功法!B:E,4,FALSE)-VLOOKUP(INT(MAX(1,0.2*A155))*5,功法!B:E,4,FALSE))*MOD(A155,5)/5)*H155 -> 1.18984 | F155: 0.8925 | G155: 210478 | H155: 1 | J155: 30465.465 | K155: 804.9 | L155: 804.9 | M155: =IF(A155<160,0,升级!J155/升级!C$3) -> 0 | O155: 79665.923 | P155: 2104.78 | Q155: 2104.78 | R155: =IF(A155<160,0,升级!J155/升级!C$3) -> 0
A156: 154 | B156: =升级!C156 -> 81696 | C156: 4 | D156: 15625.6 | E156: =(VLOOKUP(INT(MAX(1,0.2*A156))*5,功法!B:E,4,FALSE)+(VLOOKUP(INT(MIN(60,MAX(1,0.2*A156+1)))*5,功法!B:E,4,FALSE)-VLOOKUP(INT(MAX(1,0.2*A156))*5,功法!B:E,4,FALSE))*MOD(A156,5)/5)*H156 -> 1.196753333 | F156: 0.8983333333 | G156: 213792 | H156: 1 | J156: 31017.248 | K156: 816.96 | L156: 816.96 | M156: =IF(A156<160,0,升级!J156/升级!C$3) -> 0 | O156: 81169.696 | P156: 2137.92 | Q156: 2137.92 | R156: =IF(A156<160,0,升级!J156/升级!C$3) -> 0
A157: 155 | B157: =升级!C157 -> 82922 | C157: 4 | D157: 15625.6 | E157: =(VLOOKUP(INT(MAX(1,0.2*A157))*5,功法!B:E,4,FALSE)+(VLOOKUP(INT(MIN(60,MAX(1,0.2*A157+1)))*5,功法!B:E,4,FALSE)-VLOOKUP(INT(MAX(1,0.2*A157))*5,功法!B:E,4,FALSE))*MOD(A157,5)/5)*H157 -> 1.203666667 | F157: 0.9041666667 | G157: 217166 | H157: 1 | J157: 31579.46167 | K157: 829.22 | L157: 829.22 | M157: =IF(A157<160,0,升级!J157/升级!C$3) -> 0 | O157: 82704.05167 | P157: 2171.66 | Q157: 2171.66 | R157: =IF(A157<160,0,升级!J157/升级!C$3) -> 0
A158: 156 | B158: =升级!C158 -> 84166 | C158: 4 | D158: 15625.6 | E158: =(VLOOKUP(INT(MAX(1,0.2*A158))*5,功法!B:E,4,FALSE)+(VLOOKUP(INT(MIN(60,MAX(1,0.2*A158+1)))*5,功法!B:E,4,FALSE)-VLOOKUP(INT(MAX(1,0.2*A158))*5,功法!B:E,4,FALSE))*MOD(A158,5)/5)*H158 -> 1.21058 | F158: 0.91 | G158: 220597 | H158: 1 | J158: 32151.412 | K158: 841.66 | L158: 841.66 | M158: =IF(A158<160,0,升级!J158/升级!C$3) -> 0 | O158: 84268.054 | P158: 2205.97 | Q158: 2205.97 | R158: =IF(A158<160,0,升级!J158/升级!C$3) -> 0
A159: 157 | B159: =升级!C159 -> 85428 | C159: 4 | D159: 15625.6 | E159: =(VLOOKUP(INT(MAX(1,0.2*A159))*5,功法!B:E,4,FALSE)+(VLOOKUP(INT(MIN(60,MAX(1,0.2*A159+1)))*5,功法!B:E,4,FALSE)-VLOOKUP(INT(MAX(1,0.2*A159))*5,功法!B:E,4,FALSE))*MOD(A159,5)/5)*H159 -> 1.217493333 | F159: 0.9158333333 | G159: 224086 | H159: 1 | J159: 32733.162 | K159: 854.28 | L159: 854.28 | M159: =IF(A159<160,0,升级!J159/升级!C$3) -> 0 | O159: 85862.28567 | P159: 2240.86 | Q159: 2240.86 | R159: =IF(A159<160,0,升级!J159/升级!C$3) -> 0
A160: 158 | B160: =升级!C160 -> 86710 | C160: 4 | D160: 15625.6 | E160: =(VLOOKUP(INT(MAX(1,0.2*A160))*5,功法!B:E,4,FALSE)+(VLOOKUP(INT(MIN(60,MAX(1,0.2*A160+1)))*5,功法!B:E,4,FALSE)-VLOOKUP(INT(MAX(1,0.2*A160))*5,功法!B:E,4,FALSE))*MOD(A160,5)/5)*H160 -> 1.224406667 | F160: 0.9216666667 | G160: 227636 | H160: 1 | J160: 33325.54333 | K160: 867.1 | L160: 867.1 | M160: =IF(A160<160,0,升级!J160/升级!C$3) -> 0 | O160: 87488.10267 | P160: 2276.36 | Q160: 2276.36 | R160: =IF(A160<160,0,升级!J160/升级!C$3) -> 0
A161: 159 | B161: =升级!C161 -> 88010 | C161: 4 | D161: 15625.6 | E161: =(VLOOKUP(INT(MAX(1,0.2*A161))*5,功法!B:E,4,FALSE)+(VLOOKUP(INT(MIN(60,MAX(1,0.2*A161+1)))*5,功法!B:E,4,FALSE)-VLOOKUP(INT(MAX(1,0.2*A161))*5,功法!B:E,4,FALSE))*MOD(A161,5)/5)*H161 -> 1.23132 | F161: 0.9275 | G161: 231244 | H161: 1 | J161: 33927.855 | K161: 880.1 | L161: 880.1 | M161: =IF(A161<160,0,升级!J161/升级!C$3) -> 0 | O161: 89144.562 | P161: 2312.44 | Q161: 2312.44 | R161: =IF(A161<160,0,升级!J161/升级!C$3) -> 0
A162: 160 | B162: =升级!C162 -> 89330 | C162: 4 | D162: 15625.6 | E162: =(VLOOKUP(INT(MAX(1,0.2*A162))*5,功法!B:E,4,FALSE)+(VLOOKUP(INT(MIN(60,MAX(1,0.2*A162+1)))*5,功法!B:E,4,FALSE)-VLOOKUP(INT(MAX(1,0.2*A162))*5,功法!B:E,4,FALSE))*MOD(A162,5)/5)*H162 -> 1.238233333 | F162: 0.9333333333 | G162: 234915 | H162: 1 | J162: 34540.93333 | K162: 893.3 | L162: 893.3 | M162: =IF(A162<160,0,升级!J162/升级!C$3) -> 4698.3 | O162: 90833.8 | P162: 2349.15 | Q162: 2349.15 | R162: =IF(A162<160,0,升级!J162/升级!C$3) -> 4698.3
A163: 161 | B163: =升级!C163 -> 116130 | C163: 4 | D163: =B163*D$1/3*C163 -> 23226 | E163: =(VLOOKUP(INT(MAX(1,0.2*A163))*5,功法!B:E,4,FALSE)+(VLOOKUP(INT(MIN(60,MAX(1,0.2*A163+1)))*5,功法!B:E,4,FALSE)-VLOOKUP(INT(MAX(1,0.2*A163))*5,功法!B:E,4,FALSE))*MOD(A163,5)/5)*H163 -> 1.245146667 | F163: 0.9391666667 | G163: 312875 | H163: 1 | J163: 45039.085 | K163: 1161.3 | L163: 1161.3 | M163: =IF(A163<160,0,升级!J163/升级!C$3) -> 6257.5 | O163: 121343.3542 | P163: 3128.75 | Q163: 3128.75 | R163: =IF(A163<160,0,升级!J163/升级!C$3) -> 6257.5
A164: 162 | B164: =升级!C164 -> 117872 | C164: 4 | D164: =D163 -> 23226 | E164: =(VLOOKUP(INT(MAX(1,0.2*A164))*5,功法!B:E,4,FALSE)+(VLOOKUP(INT(MIN(60,MAX(1,0.2*A164+1)))*5,功法!B:E,4,FALSE)-VLOOKUP(INT(MAX(1,0.2*A164))*5,功法!B:E,4,FALSE))*MOD(A164,5)/5)*H164 -> 1.25206 | F164: 0.945 | G164: 317761 | H164: 1 | J164: 45852.208 | K164: 1178.72 | L164: 1178.72 | M164: =IF(A164<160,0,升级!J164/升级!C$3) -> 6355.22 | O164: 123609.029 | P164: 3177.61 | Q164: 3177.61 | R164: =IF(A164<160,0,升级!J164/升级!C$3) -> 6355.22
A165: 163 | B165: =升级!C165 -> 119640 | C165: 4 | D165: =D164 -> 23226 | E165: =(VLOOKUP(INT(MAX(1,0.2*A165))*5,功法!B:E,4,FALSE)+(VLOOKUP(INT(MIN(60,MAX(1,0.2*A165+1)))*5,功法!B:E,4,FALSE)-VLOOKUP(INT(MAX(1,0.2*A165))*5,功法!B:E,4,FALSE))*MOD(A165,5)/5)*H165 -> 1.258973333 | F165: 0.9508333333 | G165: 322730 | H165: 1 | J165: 46679.54 | K165: 1196.4 | L165: 1196.4 | M165: =IF(A165<160,0,升级!J165/升级!C$3) -> 6454.6 | O165: 125918.4883 | P165: 3227.3 | Q165: 3227.3 | R165: =IF(A165<160,0,升级!J165/升级!C$3) -> 6454.6
A166: 164 | B166: =升级!C166 -> 121434 | C166: 4 | D166: 23226 | E166: =(VLOOKUP(INT(MAX(1,0.2*A166))*5,功法!B:E,4,FALSE)+(VLOOKUP(INT(MIN(60,MAX(1,0.2*A166+1)))*5,功法!B:E,4,FALSE)-VLOOKUP(INT(MAX(1,0.2*A166))*5,功法!B:E,4,FALSE))*MOD(A166,5)/5)*H166 -> 1.265886667 | F166: 0.9566666667 | G166: 327783 | H166: 1 | J166: 47521.172 | K166: 1214.34 | L166: 1214.34 | M166: =IF(A166<160,0,升级!J166/升级!C$3) -> 6555.66 | O166: 128272.414 | P166: 3277.83 | Q166: 3277.83 | R166: =IF(A166<160,0,升级!J166/升级!C$3) -> 6555.66
A167: 165 | B167: =升级!C167 -> 123256 | C167: 4 | D167: 23226 | E167: =(VLOOKUP(INT(MAX(1,0.2*A167))*5,功法!B:E,4,FALSE)+(VLOOKUP(INT(MIN(60,MAX(1,0.2*A167+1)))*5,功法!B:E,4,FALSE)-VLOOKUP(INT(MAX(1,0.2*A167))*5,功法!B:E,4,FALSE))*MOD(A167,5)/5)*H167 -> 1.2728 | F167: 0.9625 | G167: 332924 | H167: 1 | J167: 48377.98 | K167: 1232.56 | L167: 1232.56 | M167: =IF(A167<160,0,升级!J167/升级!C$3) -> 6658.48 | O167: 130672.67 | P167: 3329.24 | Q167: 3329.24 | R167: =IF(A167<160,0,升级!J167/升级!C$3) -> 6658.48
A168: 166 | B168: =升级!C168 -> 125104 | C168: 4 | D168: 23226 | E168: =(VLOOKUP(INT(MAX(1,0.2*A168))*5,功法!B:E,4,FALSE)+(VLOOKUP(INT(MIN(60,MAX(1,0.2*A168+1)))*5,功法!B:E,4,FALSE)-VLOOKUP(INT(MAX(1,0.2*A168))*5,功法!B:E,4,FALSE))*MOD(A168,5)/5)*H168 -> 1.279713333 | F168: 0.9683333333 | G168: 338150 | H168: 1 | J168: 49249.27467 | K168: 1251.04 | L168: 1251.04 | M168: =IF(A168<160,0,升级!J168/升级!C$3) -> 6763 | O168: 133118.3833 | P168: 3381.5 | Q168: 3381.5 | R168: =IF(A168<160,0,升级!J168/升级!C$3) -> 6763
A169: 167 | B169: =升级!C169 -> 126982 | C169: 4 | D169: 23226 | E169: =(VLOOKUP(INT(MAX(1,0.2*A169))*5,功法!B:E,4,FALSE)+(VLOOKUP(INT(MIN(60,MAX(1,0.2*A169+1)))*5,功法!B:E,4,FALSE)-VLOOKUP(INT(MAX(1,0.2*A169))*5,功法!B:E,4,FALSE))*MOD(A169,5)/5)*H169 -> 1.286626667 | F169: 0.9741666667 | G169: 343470 | H169: 1 | J169: 50136.72633 | K169: 1269.82 | L169: 1269.82 | M169: =IF(A169<160,0,升级!J169/升级!C$3) -> 6869.4 | O169: 135613.405 | P169: 3434.7 | Q169: 3434.7 | R169: =IF(A169<160,0,升级!J169/升级!C$3) -> 6869.4
A170: 168 | B170: =升级!C170 -> 128886 | C170: 4 | D170: 23226 | E170: =(VLOOKUP(INT(MAX(1,0.2*A170))*5,功法!B:E,4,FALSE)+(VLOOKUP(INT(MIN(60,MAX(1,0.2*A170+1)))*5,功法!B:E,4,FALSE)-VLOOKUP(INT(MAX(1,0.2*A170))*5,功法!B:E,4,FALSE))*MOD(A170,5)/5)*H170 -> 1.29354 | F170: 0.98 | G170: 348875 | H170: 1 | J170: 51038.856 | K170: 1288.86 | L170: 1288.86 | M170: =IF(A170<160,0,升级!J170/升级!C$3) -> 6977.5 | O170: 138154.5 | P170: 3488.75 | Q170: 3488.75 | R170: =IF(A170<160,0,升级!J170/升级!C$3) -> 6977.5
A171: 169 | B171: =升级!C171 -> 130820 | C171: 4 | D171: 23226 | E171: =(VLOOKUP(INT(MAX(1,0.2*A171))*5,功法!B:E,4,FALSE)+(VLOOKUP(INT(MIN(60,MAX(1,0.2*A171+1)))*5,功法!B:E,4,FALSE)-VLOOKUP(INT(MAX(1,0.2*A171))*5,功法!B:E,4,FALSE))*MOD(A171,5)/5)*H171 -> 1.300453333 | F171: 0.9858333333 | G171: 354376 | H171: 1 | J171: 51957.34333 | K171: 1308.2 | L171: 1308.2 | M171: =IF(A171<160,0,升级!J171/升级!C$3) -> 7087.52 | O171: 140746.3347 | P171: 3543.76 | Q171: 3543.76 | R171: =IF(A171<160,0,升级!J171/升级!C$3) -> 7087.52
A172: 170 | B172: =升级!C172 -> 132782 | C172: 4 | D172: 23226 | E172: =(VLOOKUP(INT(MAX(1,0.2*A172))*5,功法!B:E,4,FALSE)+(VLOOKUP(INT(MIN(60,MAX(1,0.2*A172+1)))*5,功法!B:E,4,FALSE)-VLOOKUP(INT(MAX(1,0.2*A172))*5,功法!B:E,4,FALSE))*MOD(A172,5)/5)*H172 -> 1.307366667 | F172: 0.9916666667 | G172: 359968 | H172: 1 | J172: 52891.49667 | K172: 1327.82 | L172: 1327.82 | M172: =IF(A172<160,0,升级!J172/升级!C$3) -> 7919.3 | O172: 143387.2533 | P172: 3599.68 | Q172: 3599.68 | R172: =IF(A172<160,0,升级!J172/升级!C$3) -> 7919.3
A173: 171 | B173: =升级!C173 -> 172616 | C173: 4 | D173: =B173*D$1/3*C173 -> 34523.2 | E173: =(VLOOKUP(INT(MAX(1,0.2*A173))*5,功法!B:E,4,FALSE)+(VLOOKUP(INT(MIN(60,MAX(1,0.2*A173+1)))*5,功法!B:E,4,FALSE)-VLOOKUP(INT(MAX(1,0.2*A173))*5,功法!B:E,4,FALSE))*MOD(A173,5)/5)*H173 -> 1.31428 | F173: 0.9975 | G173: 479378 | H173: 1 | J173: 68960.092 | K173: 1726.16 | L173: 1726.16 | M173: =IF(A173<160,0,升级!J173/升级!C$3) -> 10546.32 | O173: 191511.511 | P173: 4793.78 | Q173: 4793.78 | R173: =IF(A173<160,0,升级!J173/升级!C$3) -> 10546.32
A174: 172 | B174: =升级!C174 -> 175206 | C174: 4 | D174: =D173 -> 34523.2 | E174: =(VLOOKUP(INT(MAX(1,0.2*A174))*5,功法!B:E,4,FALSE)+(VLOOKUP(INT(MIN(60,MAX(1,0.2*A174+1)))*5,功法!B:E,4,FALSE)-VLOOKUP(INT(MAX(1,0.2*A174))*5,功法!B:E,4,FALSE))*MOD(A174,5)/5)*H174 -> 1.321193333 | F174: 1.003333333 | G174: 486822 | H174: 1 | J174: 70199.204 | K174: 1752.06 | L174: 1752.06 | M174: =IF(A174<160,0,升级!J174/升级!C$3) -> 10710.08 | O174: 195053.348 | P174: 4868.22 | Q174: 4868.22 | R174: =IF(A174<160,0,升级!J174/升级!C$3) -> 10710.08
A175: 173 | B175: =升级!C175 -> 177834 | C175: 4 | D175: =D174 -> 34523.2 | E175: =(VLOOKUP(INT(MAX(1,0.2*A175))*5,功法!B:E,4,FALSE)+(VLOOKUP(INT(MIN(60,MAX(1,0.2*A175+1)))*5,功法!B:E,4,FALSE)-VLOOKUP(INT(MAX(1,0.2*A175))*5,功法!B:E,4,FALSE))*MOD(A175,5)/5)*H175 -> 1.328106667 | F175: 1.009166667 | G175: 494390 | H175: 1 | J175: 71459.629 | K175: 1778.34 | L175: 1778.34 | M175: =IF(A175<160,0,升级!J175/升级!C$3) -> 10876.58 | O175: 198662.3817 | P175: 4943.9 | Q175: 4943.9 | R175: =IF(A175<160,0,升级!J175/升级!C$3) -> 10876.58
A176: 174 | B176: =升级!C176 -> 180500 | C176: 4 | D176: 34523.2 | E176: =(VLOOKUP(INT(MAX(1,0.2*A176))*5,功法!B:E,4,FALSE)+(VLOOKUP(INT(MIN(60,MAX(1,0.2*A176+1)))*5,功法!B:E,4,FALSE)-VLOOKUP(INT(MAX(1,0.2*A176))*5,功法!B:E,4,FALSE))*MOD(A176,5)/5)*H176 -> 1.33502 | F176: 1.015 | G176: 502083 | H176: 1 | J176: 72741.5 | K176: 1805 | L176: 1805 | M176: =IF(A176<160,0,升级!J176/升级!C$3) -> 11045.83 | O176: 202339.449 | P176: 5020.83 | Q176: 5020.83 | R176: =IF(A176<160,0,升级!J176/升级!C$3) -> 11045.83
A177: 175 | B177: =升级!C177 -> 183208 | C177: 4 | D177: 34523.2 | E177: =(VLOOKUP(INT(MAX(1,0.2*A177))*5,功法!B:E,4,FALSE)+(VLOOKUP(INT(MIN(60,MAX(1,0.2*A177+1)))*5,功法!B:E,4,FALSE)-VLOOKUP(INT(MAX(1,0.2*A177))*5,功法!B:E,4,FALSE))*MOD(A177,5)/5)*H177 -> 1.341933333 | F177: 1.020833333 | G177: 509912 | H177: 1 | J177: 74046.56667 | K177: 1832.08 | L177: 1832.08 | M177: =IF(A177<160,0,升级!J177/升级!C$3) -> 11218.06 | O177: 206089.4333 | P177: 5099.12 | Q177: 5099.12 | R177: =IF(A177<160,0,升级!J177/升级!C$3) -> 11218.06
A178: 176 | B178: =升级!C178 -> 185956 | C178: 4 | D178: 34523.2 | E178: =(VLOOKUP(INT(MAX(1,0.2*A178))*5,功法!B:E,4,FALSE)+(VLOOKUP(INT(MIN(60,MAX(1,0.2*A178+1)))*5,功法!B:E,4,FALSE)-VLOOKUP(INT(MAX(1,0.2*A178))*5,功法!B:E,4,FALSE))*MOD(A178,5)/5)*H178 -> 1.348846667 | F178: 1.026666667 | G178: 517872 | H178: 1 | J178: 75374.16533 | K178: 1859.56 | L178: 1859.56 | M178: =IF(A178<160,0,升级!J178/升级!C$3) -> 11393.18 | O178: 209910.784 | P178: 5178.72 | Q178: 5178.72 | R178: =IF(A178<160,0,升级!J178/升级!C$3) -> 11393.18
A179: 177 | B179: =升级!C179 -> 188746 | C179: 4 | D179: 34523.2 | E179: =(VLOOKUP(INT(MAX(1,0.2*A179))*5,功法!B:E,4,FALSE)+(VLOOKUP(INT(MIN(60,MAX(1,0.2*A179+1)))*5,功法!B:E,4,FALSE)-VLOOKUP(INT(MAX(1,0.2*A179))*5,功法!B:E,4,FALSE))*MOD(A179,5)/5)*H179 -> 1.35576 | F179: 1.0325 | G179: 525969 | H179: 1 | J179: 76725.249 | K179: 1887.46 | L179: 1887.46 | M179: =IF(A179<160,0,升级!J179/升级!C$3) -> 11571.32 | O179: 213806.3985 | P179: 5259.69 | Q179: 5259.69 | R179: =IF(A179<160,0,升级!J179/升级!C$3) -> 11571.32
A180: 178 | B180: =升级!C180 -> 191576 | C180: 4 | D180: 34523.2 | E180: =(VLOOKUP(INT(MAX(1,0.2*A180))*5,功法!B:E,4,FALSE)+(VLOOKUP(INT(MIN(60,MAX(1,0.2*A180+1)))*5,功法!B:E,4,FALSE)-VLOOKUP(INT(MAX(1,0.2*A180))*5,功法!B:E,4,FALSE))*MOD(A180,5)/5)*H180 -> 1.362673333 | F180: 1.038333333 | G180: 534199 | H180: 1 | J180: 78099.14933 | K180: 1915.76 | L180: 1915.76 | M180: =IF(A180<160,0,升级!J180/升级!C$3) -> 11752.38 | O180: 217775.1257 | P180: 5341.99 | Q180: 5341.99 | R180: =IF(A180<160,0,升级!J180/升级!C$3) -> 11752.38
A181: 179 | B181: =升级!C181 -> 194450 | C181: 4 | D181: 34523.2 | E181: =(VLOOKUP(INT(MAX(1,0.2*A181))*5,功法!B:E,4,FALSE)+(VLOOKUP(INT(MIN(60,MAX(1,0.2*A181+1)))*5,功法!B:E,4,FALSE)-VLOOKUP(INT(MAX(1,0.2*A181))*5,功法!B:E,4,FALSE))*MOD(A181,5)/5)*H181 -> 1.369586667 | F181: 1.044166667 | G181: 542572 | H181: 1 | J181: 79497.64167 | K181: 1944.5 | L181: 1944.5 | M181: =IF(A181<160,0,升级!J181/升级!C$3) -> 11936.58 | O181: 221821.5193 | P181: 5425.72 | Q181: 5425.72 | R181: =IF(A181<160,0,升级!J181/升级!C$3) -> 11936.58
A182: 180 | B182: =升级!C182 -> 197368 | C182: 4 | D182: 34523.2 | E182: =(VLOOKUP(INT(MAX(1,0.2*A182))*5,功法!B:E,4,FALSE)+(VLOOKUP(INT(MIN(60,MAX(1,0.2*A182+1)))*5,功法!B:E,4,FALSE)-VLOOKUP(INT(MAX(1,0.2*A182))*5,功法!B:E,4,FALSE))*MOD(A182,5)/5)*H182 -> 1.3765 | F182: 1.05 | G182: 551089 | H182: 1 | J182: 80920.88 | K182: 1973.68 | L182: 1973.68 | M182: =IF(A182<160,0,升级!J182/升级!C$3) -> 13226.14 | O182: 225946.49 | P182: 5510.89 | Q182: 5510.89 | R182: =IF(A182<160,0,升级!J182/升级!C$3) -> 13226.14
A183: 181 | B183: =升级!C183 -> 296052 | C183: 4 | D183: =B183*D$1/3*C183 -> 59210.4 | E183: =(VLOOKUP(INT(MAX(1,0.2*A183))*5,功法!B:E,4,FALSE)+(VLOOKUP(INT(MIN(60,MAX(1,0.2*A183+1)))*5,功法!B:E,4,FALSE)-VLOOKUP(INT(MAX(1,0.2*A183))*5,功法!B:E,4,FALSE))*MOD(A183,5)/5)*H183 -> 1.385813333 | F183: 1.055833333 | G183: 847590 | H183: 1 | J183: 121726.714 | K183: 2960.52 | L183: 2960.52 | M183: =IF(A183<160,0,升级!J183/升级!C$3) -> 20342.16 | O183: 348500.755 | P183: 8475.9 | Q183: 8475.9 | R183: =IF(A183<160,0,升级!J183/升级!C$3) -> 20342.16
A184: 182 | B184: =升级!C184 -> 300492 | C184: 4 | D184: =D183 -> 59210.4 | E184: =(VLOOKUP(INT(MAX(1,0.2*A184))*5,功法!B:E,4,FALSE)+(VLOOKUP(INT(MIN(60,MAX(1,0.2*A184+1)))*5,功法!B:E,4,FALSE)-VLOOKUP(INT(MAX(1,0.2*A184))*5,功法!B:E,4,FALSE))*MOD(A184,5)/5)*H184 -> 1.395126667 | F184: 1.061666667 | G184: 861533 | H184: 1 | J184: 123902.868 | K184: 3004.92 | L184: 3004.92 | M184: =IF(A184<160,0,升级!J184/升级!C$3) -> 20676.79 | O184: 355238.7737 | P184: 8615.33 | Q184: 8615.33 | R184: =IF(A184<160,0,升级!J184/升级!C$3) -> 20676.79
A185: 183 | B185: =升级!C185 -> 305000 | C185: 4 | D185: =D184 -> 59210.4 | E185: =(VLOOKUP(INT(MAX(1,0.2*A185))*5,功法!B:E,4,FALSE)+(VLOOKUP(INT(MIN(60,MAX(1,0.2*A185+1)))*5,功法!B:E,4,FALSE)-VLOOKUP(INT(MAX(1,0.2*A185))*5,功法!B:E,4,FALSE))*MOD(A185,5)/5)*H185 -> 1.40444 | F185: 1.0675 | G185: 875722 | H185: 1 | J185: 126117.5 | K185: 3050 | L185: 3050 | M185: =IF(A185<160,0,升级!J185/升级!C$3) -> 21017.33 | O185: 362111.047 | P185: 8757.22 | Q185: 8757.22 | R185: =IF(A185<160,0,升级!J185/升级!C$3) -> 21017.33
A186: 184 | B186: =升级!C186 -> 309574 | C186: 4 | D186: 59210.4 | E186: =(VLOOKUP(INT(MAX(1,0.2*A186))*5,功法!B:E,4,FALSE)+(VLOOKUP(INT(MIN(60,MAX(1,0.2*A186+1)))*5,功法!B:E,4,FALSE)-VLOOKUP(INT(MAX(1,0.2*A186))*5,功法!B:E,4,FALSE))*MOD(A186,5)/5)*H186 -> 1.413753333 | F186: 1.073333333 | G186: 890155 | H186: 1 | J186: 128370.0187 | K186: 3095.74 | L186: 3095.74 | M186: =IF(A186<160,0,升级!J186/升级!C$3) -> 21363.72 | O186: 369117.6067 | P186: 8901.55 | Q186: 8901.55 | R186: =IF(A186<160,0,升级!J186/升级!C$3) -> 21363.72
A187: 185 | B187: =升级!C187 -> 314218 | C187: 4 | D187: 59210.4 | E187: =(VLOOKUP(INT(MAX(1,0.2*A187))*5,功法!B:E,4,FALSE)+(VLOOKUP(INT(MIN(60,MAX(1,0.2*A187+1)))*5,功法!B:E,4,FALSE)-VLOOKUP(INT(MAX(1,0.2*A187))*5,功法!B:E,4,FALSE))*MOD(A187,5)/5)*H187 -> 1.423066667 | F187: 1.079166667 | G187: 904842 | H187: 1 | J187: 130662.3183 | K187: 3142.18 | L187: 3142.18 | M187: =IF(A187<160,0,升级!J187/升级!C$3) -> 21716.21 | O187: 376263.465 | P187: 9048.42 | Q187: 9048.42 | R187: =IF(A187<160,0,升级!J187/升级!C$3) -> 21716.21
A188: 186 | B188: =升级!C188 -> 318932 | C188: 4 | D188: 59210.4 | E188: =(VLOOKUP(INT(MAX(1,0.2*A188))*5,功法!B:E,4,FALSE)+(VLOOKUP(INT(MIN(60,MAX(1,0.2*A188+1)))*5,功法!B:E,4,FALSE)-VLOOKUP(INT(MAX(1,0.2*A188))*5,功法!B:E,4,FALSE))*MOD(A188,5)/5)*H188 -> 1.43338 | F188: 1.085 | G188: 920164 | H188: 1 | J188: 132994.644 | K188: 3189.32 | L188: 3189.32 | M188: =IF(A188<160,0,升级!J188/升级!C$3) -> 22083.94 | O188: 383708.388 | P188: 9201.64 | Q188: 9201.64 | R188: =IF(A188<160,0,升级!J188/升级!C$3) -> 22083.94
A189: 187 | B189: =升级!C189 -> 323716 | C189: 4 | D189: 59210.4 | E189: =(VLOOKUP(INT(MAX(1,0.2*A189))*5,功法!B:E,4,FALSE)+(VLOOKUP(INT(MIN(60,MAX(1,0.2*A189+1)))*5,功法!B:E,4,FALSE)-VLOOKUP(INT(MAX(1,0.2*A189))*5,功法!B:E,4,FALSE))*MOD(A189,5)/5)*H189 -> 1.443693333 | F189: 1.090833333 | G189: 935755 | H189: 1 | J189: 135367.2407 | K189: 3237.16 | L189: 3237.16 | M189: =IF(A189<160,0,升级!J189/升级!C$3) -> 22458.12 | O189: 391301.5492 | P189: 9357.55 | Q189: 9357.55 | R189: =IF(A189<160,0,升级!J189/升级!C$3) -> 22458.12
A190: 188 | B190: =升级!C190 -> 328570 | C190: 4 | D190: 59210.4 | E190: =(VLOOKUP(INT(MAX(1,0.2*A190))*5,功法!B:E,4,FALSE)+(VLOOKUP(INT(MIN(60,MAX(1,0.2*A190+1)))*5,功法!B:E,4,FALSE)-VLOOKUP(INT(MAX(1,0.2*A190))*5,功法!B:E,4,FALSE))*MOD(A190,5)/5)*H190 -> 1.454006667 | F190: 1.096666667 | G190: 951616 | H190: 1 | J190: 137780.3533 | K190: 3285.7 | L190: 3285.7 | M190: =IF(A190<160,0,升级!J190/升级!C$3) -> 22838.78 | O190: 399044.3093 | P190: 9516.16 | Q190: 9516.16 | R190: =IF(A190<160,0,升级!J190/升级!C$3) -> 22838.78
A191: 189 | B191: =升级!C191 -> 333500 | C191: 4 | D191: 59210.4 | E191: =(VLOOKUP(INT(MAX(1,0.2*A191))*5,功法!B:E,4,FALSE)+(VLOOKUP(INT(MIN(60,MAX(1,0.2*A191+1)))*5,功法!B:E,4,FALSE)-VLOOKUP(INT(MAX(1,0.2*A191))*5,功法!B:E,4,FALSE))*MOD(A191,5)/5)*H191 -> 1.46432 | F191: 1.1025 | G191: 967764 | H191: 1 | J191: 140236.75 | K191: 3335 | L191: 3335 | M191: =IF(A191<160,0,升级!J191/升级!C$3) -> 23226.34 | O191: 406944.762 | P191: 9677.64 | Q191: 9677.64 | R191: =IF(A191<160,0,升级!J191/升级!C$3) -> 23226.34
A192: 190 | B192: =升级!C192 -> 338502 | C192: 4 | D192: 59210.4 | E192: =(VLOOKUP(INT(MAX(1,0.2*A192))*5,功法!B:E,4,FALSE)+(VLOOKUP(INT(MIN(60,MAX(1,0.2*A192+1)))*5,功法!B:E,4,FALSE)-VLOOKUP(INT(MAX(1,0.2*A192))*5,功法!B:E,4,FALSE))*MOD(A192,5)/5)*H192 -> 1.474633333 | F192: 1.108333333 | G192: 984192 | H192: 1 | J192: 142735.01 | K192: 3385.02 | L192: 3385.02 | M192: =IF(A192<160,0,升级!J192/升级!C$3) -> 25588.99 | O192: 415000.96 | P192: 9841.92 | Q192: 9841.92 | R192: =IF(A192<160,0,升级!J192/升级!C$3) -> 25588.99
A193: 191 | B193: =升级!C193 -> 440052 | C193: 4 | D193: =B193*D$1/3*C193 -> 88010.4 | E193: =(VLOOKUP(INT(MAX(1,0.2*A193))*5,功法!B:E,4,FALSE)+(VLOOKUP(INT(MIN(60,MAX(1,0.2*A193+1)))*5,功法!B:E,4,FALSE)-VLOOKUP(INT(MAX(1,0.2*A193))*5,功法!B:E,4,FALSE))*MOD(A193,5)/5)*H193 -> 1.484946667 | F193: 1.114166667 | G193: 1312207 | H193: 1 | J193: 186068.654 | K193: 4400.52 | L193: 4400.52 | M193: =IF(A193<160,0,升级!J193/升级!C$3) -> 34117.38 | O193: 554844.8598 | P193: 13122.07 | Q193: 13122.07 | R193: =IF(A193<160,0,升级!J193/升级!C$3) -> 34117.38
A194: 192 | B194: =升级!C194 -> 446654 | C194: 4 | D194: =D193 -> 88010.4 | E194: =(VLOOKUP(INT(MAX(1,0.2*A194))*5,功法!B:E,4,FALSE)+(VLOOKUP(INT(MIN(60,MAX(1,0.2*A194+1)))*5,功法!B:E,4,FALSE)-VLOOKUP(INT(MAX(1,0.2*A194))*5,功法!B:E,4,FALSE))*MOD(A194,5)/5)*H194 -> 1.49526 | F194: 1.12 | G194: 1334127 | H194: 1 | J194: 189381.296 | K194: 4466.54 | L194: 4466.54 | M194: =IF(A194<160,0,升级!J194/升级!C$3) -> 34687.3 | O194: 565669.848 | P194: 13341.27 | Q194: 13341.27 | R194: =IF(A194<160,0,升级!J194/升级!C$3) -> 34687.3
A195: 193 | B195: =升级!C195 -> 453352 | C195: 4 | D195: =D194 -> 88010.4 | E195: =(VLOOKUP(INT(MAX(1,0.2*A195))*5,功法!B:E,4,FALSE)+(VLOOKUP(INT(MIN(60,MAX(1,0.2*A195+1)))*5,功法!B:E,4,FALSE)-VLOOKUP(INT(MAX(1,0.2*A195))*5,功法!B:E,4,FALSE))*MOD(A195,5)/5)*H195 -> 1.505573333 | F195: 1.125833333 | G195: =ROUND((B195+D195)*(1+E195),0) -> 1356423 | H195: 1 | J195: 192750.1587 | K195: =B195/B$3 -> 4533.52 | L195: 4533.52 | M195: =IF(A195<160,0,升级!J195/升级!C$3) -> 35267 | O195: 576705.8455 | P195: =G195/B$3 -> 13564.23 | Q195: 13564.23 | R195: =IF(A195<160,0,升级!J195/升级!C$3) -> 35267
A196: 194 | B196: =升级!C196 -> 460154 | C196: 4 | D196: 88010.4 | E196: =(VLOOKUP(INT(MAX(1,0.2*A196))*5,功法!B:E,4,FALSE)+(VLOOKUP(INT(MIN(60,MAX(1,0.2*A196+1)))*5,功法!B:E,4,FALSE)-VLOOKUP(INT(MAX(1,0.2*A196))*5,功法!B:E,4,FALSE))*MOD(A196,5)/5)*H196 -> 1.515886667 | F196: =F$1*$A196/300 -> 1.131666667 | G196: 1379120 | H196: 1 | J196: =B196/B$3*(1+F196)*L$1 -> 196178.9887 | K196: 4601.54 | L196: =K196 -> 4601.54 | M196: =IF(A196<160,0,升级!J196/升级!C$3) -> 35857.12 | O196: =G196/B$3*(1+F196)*L$1 -> 587964.8267 | P196: 13791.2 | Q196: =P196 -> 13791.2 | R196: =IF(A196<160,0,升级!J196/升级!C$3) -> 35857.12
A197: 195 | B197: =升级!C197 -> 467056 | C197: 4 | D197: 88010.4 | E197: =(VLOOKUP(INT(MAX(1,0.2*A197))*5,功法!B:E,4,FALSE)+(VLOOKUP(INT(MIN(60,MAX(1,0.2*A197+1)))*5,功法!B:E,4,FALSE)-VLOOKUP(INT(MAX(1,0.2*A197))*5,功法!B:E,4,FALSE))*MOD(A197,5)/5)*H197 -> 1.5262 | F197: 1.1375 | G197: 1402209 | H197: 1 | J197: 199666.44 | K197: 4670.56 | L197: 4670.56 | M197: =IF(A197<160,0,升级!J197/升级!C$3) -> 36457.43 | O197: 599444.3475 | P197: 14022.09 | Q197: 14022.09 | R197: =IF(A197<160,0,升级!J197/升级!C$3) -> 36457.43
A198: 196 | B198: =升级!C198 -> 474062 | C198: 4 | D198: 88010.4 | E198: =(VLOOKUP(INT(MAX(1,0.2*A198))*5,功法!B:E,4,FALSE)+(VLOOKUP(INT(MIN(60,MAX(1,0.2*A198+1)))*5,功法!B:E,4,FALSE)-VLOOKUP(INT(MAX(1,0.2*A198))*5,功法!B:E,4,FALSE))*MOD(A198,5)/5)*H198 -> 1.536513333 | F198: 1.143333333 | G198: 1425704 | H198: 1 | J198: 203214.5773 | K198: 4740.62 | L198: 4740.62 | M198: =IF(A198<160,0,升级!J198/升级!C$3) -> 37068.3 | O198: 611151.7813 | P198: 14257.04 | Q198: 14257.04 | R198: =IF(A198<160,0,升级!J198/升级!C$3) -> 37068.3
A199: 197 | B199: =升级!C199 -> 481172 | C199: 4 | D199: 88010.4 | E199: =(VLOOKUP(INT(MAX(1,0.2*A199))*5,功法!B:E,4,FALSE)+(VLOOKUP(INT(MIN(60,MAX(1,0.2*A199+1)))*5,功法!B:E,4,FALSE)-VLOOKUP(INT(MAX(1,0.2*A199))*5,功法!B:E,4,FALSE))*MOD(A199,5)/5)*H199 -> 1.546826667 | F199: 1.149166667 | G199: 1449609 | H199: 1 | J199: 206823.7647 | K199: 4811.72 | L199: 4811.72 | M199: =IF(A199<160,0,升级!J199/升级!C$3) -> 37689.83 | O199: 623090.2685 | P199: 14496.09 | Q199: 14496.09 | R199: =IF(A199<160,0,升级!J199/升级!C$3) -> 37689.83
A200: 198 | B200: =升级!C200 -> 488390 | C200: 4 | D200: 88010.4 | E200: =(VLOOKUP(INT(MAX(1,0.2*A200))*5,功法!B:E,4,FALSE)+(VLOOKUP(INT(MIN(60,MAX(1,0.2*A200+1)))*5,功法!B:E,4,FALSE)-VLOOKUP(INT(MAX(1,0.2*A200))*5,功法!B:E,4,FALSE))*MOD(A200,5)/5)*H200 -> 1.55714 | F200: 1.155 | G200: 1473937 | H200: 1 | J200: 210496.09 | K200: 4883.9 | L200: 4883.9 | M200: =IF(A200<160,0,升级!J200/升级!C$3) -> 38322.36 | O200: 635266.847 | P200: 14739.37 | Q200: 14739.37 | R200: =IF(A200<160,0,升级!J200/升级!C$3) -> 38322.36
... 102 more rows

Sheet 升级
B1: =B302 -> 2238115440 | N1: =SUBTOTAL(9,N3:N999) -> 5254
A2: 等级 | B2: 生命 | C2: 攻击 | D2: 防御 | E2: 防御系数 | F2: 涨幅 | H2: 神识上限 | I2: 护盾百分比 | J2: 护盾 | K2: =D302 -> 20346504 | L2: 标准免伤 | M2: 0.5 | N2: 停留时长
A3: 1 | B3: =C3*20*(1+主表!F3) -> 2011.666667 | C3: =D3*2 -> 100 | D3: =ROUND(E3*M$2,0) -> 50 | E3: 100 | H3: 1000 | N3: 1
A4: 2 | B4: =C4*20*(1+主表!F4) -> 2063.8 | C4: =D4*2 -> 102 | D4: =ROUND(MAX(D3+1,E4*M$2),0) -> 51 | E4: =E3*(1+F4) -> 101.5 | F4: 0.015 | H4: 1000 | N4: 1 | Q4: 1
A5: 3 | B5: =C5*20*(1+主表!F5) -> 2116.4 | C5: 104 | D5: 52 | E5: =E4*(1+F5) -> 103.0225 | F5: =F$4 -> 0.015 | H5: 1000 | N5: 1 | Q5: 3
A6: 4 | B6: =C6*20*(1+主表!F6) -> 2169.466667 | C6: 106 | D6: 53 | E6: 104.5678375 | F6: =F$4 -> 0.015 | H6: 1000 | N6: 1 | Q6: 9
A7: 5 | B7: =C7*20*(1+主表!F7) -> 2223 | C7: 108 | D7: 54 | E7: 106.1363551 | F7: =F$4 -> 0.015 | H7: 1000 | N7: 1 | Q7: 27
A8: 6 | B8: =C8*20*(1+主表!F8) -> 2277 | C8: 110 | D8: 55 | E8: 107.7284004 | F8: =F$4 -> 0.015 | H8: 1000 | N8: 1
A9: 7 | B9: =C9*20*(1+主表!F9) -> 2331.466667 | C9: 112 | D9: 56 | E9: 109.3443264 | F9: 0.015 | H9: 1000 | N9: 1
A10: 8 | B10: =C10*20*(1+主表!F10) -> 2386.4 | C10: 114 | D10: 57 | E10: 110.9844913 | F10: 0.015 | H10: 1000 | N10: 1
A11: 9 | B11: =C11*20*(1+主表!F11) -> 2441.8 | C11: 116 | D11: 58 | E11: 112.6492587 | F11: 0.015 | H11: 1000 | N11: 1
A12: 10 | B12: =C12*20*(1+主表!F12) -> 2497.666667 | C12: 118 | D12: 59 | E12: 114.3389975 | F12: 0.015 | H12: 1000 | N12: 1
A13: 11 | B13: =C13*20*(1+主表!F13) -> 3149.933333 | C13: 148 | D13: 74 | E13: 148.6406968 | F13: 0.3 | H13: 1000 | N13: =N3+1 -> 2 | Q13: 446 | R13: =(Q13+Q14)*(1+Q15) -> 1270.5
A14: 12 | B14: =C14*20*(1+主表!F14) -> 3210 | C14: 150 | D14: 75 | E14: 150.8703073 | F14: 0.015 | H14: 1000 | N14: =N4+1 -> 2 | Q14: 280
A15: 13 | B15: =C15*20*(1+主表!F15) -> 3313.566667 | C15: 154 | D15: 77 | E15: 153.1333619 | F15: 0.015 | H15: 1000 | N15: 2 | Q15: 0.75
A16: 14 | B16: =C16*20*(1+主表!F16) -> 3374.8 | C16: 156 | D16: 78 | E16: 155.4303623 | F16: 0.015 | H16: 1000 | N16: 2
A17: 15 | B17: =C17*20*(1+主表!F17) -> 3436.5 | C17: 158 | D17: 79 | E17: 157.7618177 | F17: 0.015 | H17: 1000 | N17: 2
A18: 16 | B18: =C18*20*(1+主表!F18) -> 3498.666667 | C18: 160 | D18: 80 | E18: 160.128245 | F18: 0.015 | H18: 1000 | N18: 2
A19: 17 | B19: =C19*20*(1+主表!F19) -> 3561.3 | C19: 162 | D19: 81 | E19: 162.5301687 | F19: 0.015 | H19: 1000 | N19: 2
A20: 18 | B20: =C20*20*(1+主表!F20) -> 3624.4 | C20: 164 | D20: 82 | E20: 164.9681212 | F20: 0.015 | H20: 1000 | N20: 2
A21: 19 | B21: =C21*20*(1+主表!F21) -> 3732.4 | C21: 168 | D21: 84 | E21: 167.442643 | F21: 0.015 | H21: 1000 | N21: 2
A22: 20 | B22: =C22*20*(1+主表!F22) -> 3796.666667 | C22: 170 | D22: 85 | E22: 169.9542827 | F22: 0.015 | H22: 1000 | N22: 2
A23: 21 | B23: =C23*20*(1+主表!F23) -> 4939 | C23: 220 | D23: 110 | E23: 220.9405675 | F23: =F$13 -> 0.3 | H23: 1000 | N23: 3
A24: 22 | B24: =C24*20*(1+主表!F24) -> 5054.933333 | C24: 224 | D24: 112 | E24: 224.254676 | F24: 0.015 | H24: 1000 | N24: 3
A25: 23 | B25: =C25*20*(1+主表!F25) -> 5171.8 | C25: 228 | D25: 114 | E25: 227.6184961 | F25: 0.015 | H25: 1000 | N25: 3
A26: 24 | B26: =C26*20*(1+主表!F26) -> 5289.6 | C26: 232 | D26: 116 | E26: 231.0327735 | F26: 0.015 | H26: 1000 | N26: 3
A27: 25 | B27: =C27*20*(1+主表!F27) -> 5362.5 | C27: 234 | D27: 117 | E27: 234.4982652 | F27: 0.015 | H27: 1000 | N27: 3
A28: 26 | B28: =C28*20*(1+主表!F28) -> 5481.933333 | C28: 238 | D28: 119 | E28: 238.0157391 | F28: 0.015 | H28: 1000 | N28: 3
A29: 27 | B29: =C29*20*(1+主表!F29) -> 5602.3 | C29: 242 | D29: 121 | E29: 241.5859752 | F29: 0.015 | H29: 1000 | N29: 3
A30: 28 | B30: =C30*20*(1+主表!F30) -> 5723.6 | C30: 246 | D30: 123 | E30: 245.2097648 | F30: 0.015 | H30: 1000 | N30: 3
A31: 29 | B31: =C31*20*(1+主表!F31) -> 5799.066667 | C31: 248 | D31: 124 | E31: 248.8879113 | F31: 0.015 | H31: 1000 | N31: 3
A32: 30 | B32: =C32*20*(1+主表!F32) -> 5922 | C32: 252 | D32: 126 | E32: 252.62123 | F32: 0.015 | H32: 1000 | N32: 3
A33: 31 | B33: =C33*20*(1+主表!F33) -> 8927.1 | C33: 378 | D33: 189 | E33: 378.931845 | F33: 0.5 | H33: 1100 | N33: 4
A34: 32 | B34: =C34*20*(1+主表!F34) -> 9113.6 | C34: 384 | D34: 192 | E34: 384.6158227 | F34: 0.015 | H34: 1100 | N34: 4
A35: 33 | B35: =C35*20*(1+主表!F35) -> 9301.5 | C35: 390 | D35: 195 | E35: 390.38506 | F35: 0.015 | H35: 1100 | N35: 4
A36: 34 | B36: =C36*20*(1+主表!F36) -> 9490.8 | C36: 396 | D36: 198 | E36: 396.2408359 | F36: 0.015 | H36: 1100 | N36: 4
A37: 35 | B37: =C37*20*(1+主表!F37) -> 9681.5 | C37: 402 | D37: 201 | E37: 402.1844484 | F37: 0.015 | H37: 1100 | N37: 4
A38: 36 | B38: =C38*20*(1+主表!F38) -> 9873.6 | C38: 408 | D38: 204 | E38: 408.2172152 | F38: 0.015 | H38: 1100 | N38: 4
A39: 37 | B39: =C39*20*(1+主表!F39) -> 10067.1 | C39: 414 | D39: 207 | E39: 414.3404734 | F39: 0.015 | H39: 1100 | N39: 4
A40: 38 | B40: =C40*20*(1+主表!F40) -> 10262 | C40: 420 | D40: 210 | E40: 420.5555805 | F40: 0.015 | H40: 1100 | N40: 4
A41: 39 | B41: =C41*20*(1+主表!F41) -> 10458.3 | C41: 426 | D41: 213 | E41: 426.8639142 | F41: 0.015 | H41: 1100 | N41: 4
A42: 40 | B42: =C42*20*(1+主表!F42) -> 10705.33333 | C42: 434 | D42: 217 | E42: 433.2668729 | F42: 0.015 | H42: 1100 | N42: 4
A43: 41 | B43: =C43*20*(1+主表!F43) -> 13977.8 | C43: 564 | D43: 282 | E43: 563.2469348 | F43: =F$13 -> 0.3 | H43: 1100 | N43: 5
A44: 42 | B44: =C44*20*(1+主表!F44) -> 14242.8 | C44: 572 | D44: 286 | E44: 571.6956388 | F44: 0.015 | H44: 1100 | N44: 5
A45: 43 | B45: =C45*20*(1+主表!F45) -> 14509.66667 | C45: 580 | D45: 290 | E45: 580.2710734 | F45: 0.015 | H45: 1100 | N45: 5
A46: 44 | B46: =C46*20*(1+主表!F46) -> 14778.4 | C46: 588 | D46: 294 | E46: 588.9751395 | F46: 0.015 | H46: 1100 | N46: 5
A47: 45 | B47: =C47*20*(1+主表!F47) -> 15099.5 | C47: 598 | D47: 299 | E47: 597.8097666 | F47: 0.015 | H47: 1100 | N47: 5
A48: 46 | B48: =C48*20*(1+主表!F48) -> 15372.2 | C48: 606 | D48: 303 | E48: 606.7769131 | F48: 0.015 | H48: 1100 | N48: 5
A49: 47 | B49: =C49*20*(1+主表!F49) -> 15697.73333 | C49: 616 | D49: 308 | E49: 615.8785668 | F49: 0.015 | H49: 1100 | N49: 5
A50: 48 | B50: =C50*20*(1+主表!F50) -> 16025.6 | C50: 626 | D50: 313 | E50: 625.1167453 | F50: 0.015 | H50: 1100 | N50: 5
A51: 49 | B51: =C51*20*(1+主表!F51) -> 16304.36667 | C51: 634 | D51: 317 | E51: 634.4934965 | F51: 0.015 | H51: 1100 | N51: 5
A52: 50 | B52: =C52*20*(1+主表!F52) -> 16636.66667 | C52: 644 | D52: 322 | E52: 644.0108989 | F52: 0.015 | H52: 1100 | N52: 5
A53: 51 | B53: =C53*20*(1+主表!F53) -> 21746.1 | C53: 838 | D53: 419 | E53: 837.2141686 | F53: =F$13 -> 0.3 | H53: 1100 | N53: 6
A54: 52 | B54: =C54*20*(1+主表!F54) -> 22156.66667 | C54: 850 | D54: 425 | E54: 849.7723811 | F54: 0.015 | H54: 1100 | N54: 6
A55: 53 | B55: =C55*20*(1+主表!F55) -> 22570.03333 | C55: 862 | D55: 431 | E55: 862.5189668 | F55: 0.015 | H55: 1100 | N55: 6
A56: 54 | B56: =C56*20*(1+主表!F56) -> 23038.8 | C56: 876 | D56: 438 | E56: 875.4567513 | F56: 0.015 | H56: 1100 | N56: 6
A57: 55 | B57: =C57*20*(1+主表!F57) -> 23458 | C57: 888 | D57: 444 | E57: 888.5886026 | F57: 0.015 | H57: 1100 | N57: 6
A58: 56 | B58: =C58*20*(1+主表!F58) -> 23933.06667 | C58: 902 | D58: 451 | E58: 901.9174316 | F58: 0.015 | H58: 1100 | N58: 6
A59: 57 | B59: =C59*20*(1+主表!F59) -> 24411.4 | C59: 916 | D59: 458 | E59: 915.4461931 | F59: 0.015 | H59: 1100 | N59: 6
A60: 58 | B60: =C60*20*(1+主表!F60) -> 24893 | C60: 930 | D60: 465 | E60: 929.177886 | F60: 0.015 | H60: 1100 | N60: 6
A61: 59 | B61: =C61*20*(1+主表!F61) -> 25377.86667 | C61: 944 | D61: 472 | E61: 943.1155543 | F61: 0.015 | H61: 1100 | N61: 6
A62: 60 | B62: =C62*20*(1+主表!F62) -> 25866 | C62: 958 | D62: 479 | E62: 957.2622876 | F62: 0.015 | H62: 1100 | N62: 6
A63: 61 | B63: =C63*20*(1+主表!F63) -> 38939.53333 | C63: 1436 | D63: 718 | E63: 1435.893431 | F63: =F$33 -> 0.5 | H63: 1200 | N63: 7
A64: 62 | B64: =C64*20*(1+主表!F64) -> 39706.2 | C64: 1458 | D64: 729 | E64: 1457.431833 | F64: 0.015 | H64: 1200 | N64: 7
A65: 63 | B65: =C65*20*(1+主表!F65) -> 40478 | C65: 1480 | D65: 740 | E65: 1479.29331 | F65: 0.015 | H65: 1200 | N65: 7
A66: 64 | B66: =C66*20*(1+主表!F66) -> 41254.93333 | C66: 1502 | D66: 751 | E66: 1501.48271 | F66: 0.015 | H66: 1200 | N66: 7
A67: 65 | B67: =C67*20*(1+主表!F67) -> 42037 | C67: 1524 | D67: 762 | E67: 1524.004951 | F67: 0.015 | H67: 1200 | N67: 7
A68: 66 | B68: =C68*20*(1+主表!F68) -> 42824.2 | C68: =D68*2 -> 1546 | D68: =ROUND(MAX(D67+1,E68*M$2),0) -> 773 | E68: 1546.865025 | F68: 0.015 | H68: 1200 | N68: 7
A69: 67 | B69: =C69*20*(1+主表!F69) -> 43672.16667 | C69: 1570 | D69: 785 | E69: =E68*(1+F69) -> 1570.068 | F69: 0.015 | H69: 1200 | N69: 7
A70: 68 | B70: =C70*20*(1+主表!F70) -> 44525.73333 | C70: 1594 | D70: 797 | E70: 1593.61902 | F70: =F$4 -> 0.015 | H70: 1200 | N70: 7
A71: 69 | B71: =C71*20*(1+主表!F71) -> 45384.9 | C71: 1618 | D71: 809 | E71: 1617.523306 | F71: 0.015 | H71: 1200 | N71: 7
A72: 70 | B72: =C72*20*(1+主表!F72) -> 46249.66667 | C72: 1642 | D72: 821 | E72: 1641.786155 | F72: 0.015 | H72: 1200 | N72: 7
A73: 71 | B73: =C73*20*(1+主表!F73) -> 60356.63333 | C73: 2134 | D73: 1067 | E73: 2134.322002 | F73: =F$13 -> 0.3 | H73: 1200 | N73: 8
A74: 72 | B74: =C74*20*(1+主表!F74) -> 61514.4 | C74: 2166 | D74: 1083 | E74: 2166.336832 | F74: =F$4 -> 0.015 | H74: 1200 | N74: 8
A75: 73 | B75: =C75*20*(1+主表!F75) -> 62679.63333 | C75: 2198 | D75: 1099 | E75: 2198.831884 | F75: 0.015 | H75: 1200 | N75: 8
A76: 74 | B76: =C76*20*(1+主表!F76) -> 63909.6 | C76: 2232 | D76: 1116 | E76: 2231.814363 | F76: 0.015 | H76: 1200 | N76: 8
A77: 75 | B77: =C77*20*(1+主表!F77) -> 65147.5 | C77: 2266 | D77: 1133 | E77: 2265.291578 | F77: 0.015 | H77: 1200 | N77: 8
A78: 76 | B78: =C78*20*(1+主表!F78) -> 66393.33333 | C78: 2300 | D78: 1150 | E78: 2299.270952 | F78: 0.015 | H78: 1200 | N78: =N68+1 -> 8
A79: 77 | B79: =C79*20*(1+主表!F79) -> 67647.1 | C79: 2334 | D79: 1167 | E79: 2333.760016 | F79: 0.015 | H79: 1200 | N79: 8
A80: 78 | B80: =C80*20*(1+主表!F80) -> 68908.8 | C80: 2368 | D80: 1184 | E80: 2368.766416 | F80: 0.015 | H80: 1200 | N80: 8
A81: 79 | B81: =C81*20*(1+主表!F81) -> 70236.86667 | C81: 2404 | D81: 1202 | E81: 2404.297912 | F81: 0.015 | H81: 1200 | N81: 8
A82: 80 | B82: =C82*20*(1+主表!F82) -> 71573.33333 | C82: 2440 | D82: 1220 | E82: 2440.362381 | F82: 0.015 | H82: 1200 | N82: 8
A83: 81 | B83: =C83*20*(1+主表!F83) -> 93415.4 | C83: 3172 | D83: 1586 | E83: 3172.471095 | F83: =F$13 -> 0.3 | H83: 1200 | N83: 9
A84: 82 | B84: =C84*20*(1+主表!F84) -> 95204.66667 | C84: 3220 | D84: 1610 | E84: 3220.058162 | F84: 0.015 | H84: 1200 | N84: 9
A85: 83 | B85: =C85*20*(1+主表!F85) -> 97005.13333 | C85: 3268 | D85: 1634 | E85: 3268.359034 | F85: 0.015 | H85: 1200 | N85: 9
A86: 84 | B86: =C86*20*(1+主表!F86) -> 98876.4 | C86: 3318 | D86: 1659 | E86: 3317.38442 | F86: 0.015 | H86: 1200 | N86: 9
A87: 85 | B87: =C87*20*(1+主表!F87) -> 100759.3333 | C87: 3368 | D87: 1684 | E87: 3367.145186 | F87: 0.015 | H87: 1200 | N87: 9
A88: 86 | B88: =C88*20*(1+主表!F88) -> 102653.9333 | C88: 3418 | D88: 1709 | E88: 3417.652364 | F88: 0.015 | H88: 1200 | N88: 9
A89: 87 | B89: =C89*20*(1+主表!F89) -> 104560.2 | C89: 3468 | D89: 1734 | E89: 3468.917149 | F89: 0.015 | H89: 1200 | N89: 9
A90: 88 | B90: =C90*20*(1+主表!F90) -> 106538.6667 | C90: 3520 | D90: 1760 | E90: 3520.950907 | F90: 0.015 | H90: 1200 | N90: 9
A91: 89 | B91: =C91*20*(1+主表!F91) -> 108590.0333 | C91: 3574 | D91: 1787 | E91: 3573.76517 | F91: 0.015 | H91: 1200 | N91: 9
A92: 90 | B92: =C92*20*(1+主表!F92) -> 110654 | C92: 3628 | D92: 1814 | E92: 3627.371648 | F92: 0.015 | H92: 1200 | N92: 9
A93: 91 | B93: =C93*20*(1+主表!F93) -> 166615.9 | C93: 5442 | D93: 2721 | E93: 5441.057472 | F93: =F$33 -> 0.5 | H93: 1300 | N93: 10
A94: 92 | B94: =C94*20*(1+主表!F94) -> 169709.4667 | C94: 5522 | D94: 2761 | E94: 5522.673334 | F94: 0.015 | H94: 1300 | N94: 10
A95: 93 | B95: =C95*20*(1+主表!F95) -> 172945.1 | C95: 5606 | D95: 2803 | E95: 5605.513434 | F95: 0.015 | H95: 1300 | N95: 10
A96: 94 | B96: =C96*20*(1+主表!F96) -> 176200.3333 | C96: 5690 | D96: 2845 | E96: 5689.596135 | F96: 0.015 | H96: 1300 | N96: 10
A97: 95 | B97: =C97*20*(1+主表!F97) -> 179475.1667 | C97: 5774 | D97: 2887 | E97: 5774.940077 | F97: 0.015 | H97: 1300 | N97: 10
A98: 96 | B98: =C98*20*(1+主表!F98) -> 182894.4 | C98: 5862 | D98: 2931 | E98: 5861.564178 | F98: 0.015 | H98: 1300 | N98: 10
A99: 97 | B99: =C99*20*(1+主表!F99) -> 186334.1667 | C99: 5950 | D99: 2975 | E99: 5949.487641 | F99: 0.015 | H99: 1300 | N99: 10
A100: 98 | B100: =C100*20*(1+主表!F100) -> 189794.4667 | C100: 6038 | D100: 3019 | E100: 6038.729956 | F100: 0.015 | H100: 1300 | N100: 10
A101: 99 | B101: =C101*20*(1+主表!F101) -> 193401.5 | C101: 6130 | D101: 3065 | E101: 6129.310905 | F101: 0.015 | H101: 1300 | N101: 10
A102: 100 | B102: =C102*20*(1+主表!F102) -> 197030 | C102: 6222 | D102: 3111 | E102: 6221.250569 | F102: 0.015 | H102: 1300 | N102: 10
A103: 101 | B103: =C103*20*(1+主表!F103) -> 257063.6 | C103: 8088 | D103: 4044 | E103: 8087.625739 | F103: =F$13 -> 0.3 | H103: 1300 | N103: 11
A104: 102 | B104: =C104*20*(1+主表!F104) -> 261835.2 | C104: 8208 | D104: 4104 | E104: 8208.940125 | F104: =F$4 -> 0.015 | H104: 1300 | N104: 11
A105: 103 | B105: =C105*20*(1+主表!F105) -> 266762.8667 | C105: 8332 | D105: 4166 | E105: 8332.074227 | F105: 0.015 | H105: 1300 | N105: 11
A106: 104 | B106: =C106*20*(1+主表!F106) -> 271783.7333 | C106: 8458 | D106: 4229 | E106: 8457.05534 | F106: 0.015 | H106: 1300 | N106: 11
A107: 105 | B107: =C107*20*(1+主表!F107) -> 276834 | C107: 8584 | D107: 4292 | E107: 8583.911171 | F107: 0.015 | H107: 1300 | N107: 11
A108: 106 | B108: =C108*20*(1+主表!F108) -> 281978.4 | C108: 8712 | D108: 4356 | E108: 8712.669838 | F108: 0.015 | H108: 1300 | N108: 11
A109: 107 | B109: =C109*20*(1+主表!F109) -> 287282.6 | C109: 8844 | D109: 4422 | E109: 8843.359886 | F109: 0.015 | H109: 1300 | N109: 11
A110: 108 | B110: =C110*20*(1+主表!F110) -> 292617.6 | C110: 8976 | D110: 4488 | E110: 8976.010284 | F110: 0.015 | H110: 1300 | N110: 11
A111: 109 | B111: =C111*20*(1+主表!F111) -> 298048.8333 | C111: 9110 | D111: 4555 | E111: 9110.650438 | F111: 0.015 | H111: 1300 | N111: 11
A112: 110 | B112: =C112*20*(1+主表!F112) -> 303642.6667 | C112: 9248 | D112: 4624 | E112: 9247.310195 | F112: 0.015 | H112: 1300 | N112: 11
A113: 111 | B113: =C113*20*(1+主表!F113) -> 396124.9 | C113: 12022 | D113: 6011 | E113: 12021.50325 | F113: =F$13 -> 0.3 | H113: 1300 | N113: 12
A114: 112 | B114: =C114*20*(1+主表!F114) -> 403479.4667 | C114: 12202 | D114: 6101 | E114: 12201.8258 | F114: 0.015 | H114: 1300 | N114: 12
A115: 113 | B115: =C115*20*(1+主表!F115) -> 410942.4 | C115: 12384 | D115: 6192 | E115: 12384.85319 | F115: 0.015 | H115: 1300 | N115: 12
A116: 114 | B116: =C116*20*(1+主表!F116) -> 418581 | C116: 12570 | D116: 6285 | E116: 12570.62599 | F116: 0.015 | H116: 1300 | N116: 12
A117: 115 | B117: =C117*20*(1+主表!F117) -> 426396.6667 | C117: 12760 | D117: 6380 | E117: 12759.18538 | F117: 0.015 | H117: 1300 | N117: 12
A118: 116 | B118: =C118*20*(1+主表!F118) -> 434256.6667 | C118: 12950 | D118: 6475 | E118: 12950.57316 | F118: 0.015 | H118: 1300 | N118: 12
A119: 117 | B119: =C119*20*(1+主表!F119) -> 442295.6 | C119: 13144 | D119: 6572 | E119: 13144.83175 | F119: 0.015 | H119: 1300 | N119: 12
A120: 118 | B120: =C120*20*(1+主表!F120) -> 450514.8667 | C120: 13342 | D120: 6671 | E120: 13342.00423 | F120: 0.015 | H120: 1300 | N120: 12
A121: 119 | B121: =C121*20*(1+主表!F121) -> 458848.1 | C121: 13542 | D121: 6771 | E121: 13542.13429 | F121: 0.015 | H121: 1300 | N121: 12
A122: 120 | B122: =C122*20*(1+主表!F122) -> 467364 | C122: 13746 | D122: 6873 | E122: 13745.26631 | F122: 0.015 | H122: 1300 | I122: =VLOOKUP(INT(A122*0.1)*10,N$157:P$175,3,FALSE) -> 0.06 | J122: =ROUND(主表!G122*主表!L$1*I122,0) -> 37830 | N122: 12
A123: 121 | B123: =C123*20*(1+主表!F123) -> 703417.4333 | C123: 20618 | D123: 10309 | E123: 20617.89946 | F123: =F$33 -> 0.5 | H123: 1400 | I123: =VLOOKUP(INT(A123*0.1)*10,N$157:P$175,3,FALSE) -> 0.06 | J123: =ROUND(主表!G123*主表!L$1*I123,0) -> 58217 | N123: 13
A124: 122 | B124: =C124*20*(1+主表!F124) -> 716435.2 | C124: 20928 | D124: 10464 | E124: 20927.16796 | F124: 0.015 | H124: 1400 | I124: 0.06 | J124: =ROUND(主表!G124*主表!L$1*I124,0) -> 59213 | N124: 13
A125: 123 | B125: =C125*20*(1+主表!F125) -> 729662.7 | C125: 21242 | D125: 10621 | E125: 21241.07547 | F125: 0.015 | H125: 1400 | I125: 0.06 | J125: =ROUND(主表!G125*主表!L$1*I125,0) -> 60224 | N125: 13
A126: 124 | B126: =C126*20*(1+主表!F126) -> 743101.3333 | C126: 21560 | D126: 10780 | E126: 21559.69161 | F126: 0.015 | H126: 1400 | I126: 0.06 | J126: =ROUND(主表!G126*主表!L$1*I126,0) -> 61253 | N126: 13
A127: 125 | B127: =C127*20*(1+主表!F127) -> 756821.6667 | C127: 21884 | D127: 10942 | E127: 21883.08698 | F127: 0.015 | H127: 1400 | I127: 0.06 | J127: =ROUND(主表!G127*主表!L$1*I127,0) -> 62302 | N127: 13
A128: 126 | B128: =C128*20*(1+主表!F128) -> 770756.4 | C128: 22212 | D128: 11106 | E128: 22211.33329 | F128: 0.015 | H128: 1400 | I128: 0.06 | J128: =ROUND(主表!G128*主表!L$1*I128,0) -> 63306 | N128: 13
A129: 127 | B129: =C129*20*(1+主表!F129) -> 784906.9333 | C129: 22544 | D129: 11272 | E129: 22544.50328 | F129: 0.015 | H129: 1400 | I129: 0.06 | J129: =ROUND(主表!G129*主表!L$1*I129,0) -> 64325 | N129: 13
A130: 128 | B130: =C130*20*(1+主表!F130) -> 799344.5333 | C130: 22882 | D130: 11441 | E130: 22882.67083 | F130: 0.015 | H130: 1400 | I130: 0.06 | J130: =ROUND(主表!G130*主表!L$1*I130,0) -> 65364 | N130: 13
A131: 129 | B131: =C131*20*(1+主表!F131) -> 814071.3 | C131: 23226 | D131: 11613 | E131: 23225.9109 | F131: 0.015 | H131: 1400 | I131: 0.06 | J131: =ROUND(主表!G131*主表!L$1*I131,0) -> 66424 | N131: 13
A132: 130 | B132: =C132*20*(1+主表!F132) -> 829019 | C132: =D132*2 -> 23574 | D132: =ROUND(MAX(D131+1,E132*M$2),0) -> 11787 | E132: 23574.29956 | F132: 0.015 | H132: 1400 | I132: 0.07 | J132: =ROUND(主表!G132*主表!L$1*I132,0) -> 78749 | N132: 13
A133: 131 | B133: =C133*20*(1+主表!F133) -> 1081293.033 | C133: 30646 | D133: 15323 | E133: =E132*(1+F133) -> 30646.58943 | F133: =F$13 -> 0.3 | H133: 1400 | I133: 0.07 | J133: =ROUND(主表!G133*主表!L$1*I133,0) -> 104915 | N133: 14
A134: 132 | B134: =C134*20*(1+主表!F134) -> 1101152.4 | C134: 31106 | D134: 15553 | E134: 31106.28827 | F134: =F$4 -> 0.015 | H134: 1400 | I134: 0.07 | J134: =ROUND(主表!G134*主表!L$1*I134,0) -> 106586 | N134: 14
A135: 133 | B135: =C135*20*(1+主表!F135) -> 1121332.2 | C135: 31572 | D135: 15786 | E135: 31572.88259 | F135: 0.015 | H135: 1400 | I135: 0.07 | J135: =ROUND(主表!G135*主表!L$1*I135,0) -> 108286 | N135: 14
A136: 134 | B136: =C136*20*(1+主表!F136) -> 1141905.8 | C136: 32046 | D136: 16023 | E136: 32046.47583 | F136: 0.015 | H136: 1400 | I136: 0.07 | J136: =ROUND(主表!G136*主表!L$1*I136,0) -> 110016 | N136: 14
A137: 135 | B137: =C137*20*(1+主表!F137) -> 1162876 | C137: 32528 | D137: 16264 | E137: 32527.17297 | F137: 0.015 | H137: 1400 | I137: 0.07 | J137: =ROUND(主表!G137*主表!L$1*I137,0) -> 111780 | N137: 14
A138: 136 | B138: =C138*20*(1+主表!F138) -> 1184173.867 | C138: 33016 | D138: 16508 | E138: 33015.08056 | F138: 0.015 | H138: 1400 | I138: 0.07 | J138: =ROUND(主表!G138*主表!L$1*I138,0) -> 113569 | N138: 14
A139: 137 | B139: =C139*20*(1+主表!F139) -> 1205801.5 | C139: 33510 | D139: 16755 | E139: 33510.30677 | F139: 0.015 | H139: 1400 | I139: 0.07 | J139: =ROUND(主表!G139*主表!L$1*I139,0) -> 115387 | N139: 14
A140: 138 | B140: =C140*20*(1+主表!F140) -> 1227833.2 | C140: 34012 | D140: 17006 | E140: 34012.96137 | F140: 0.015 | H140: 1400 | I140: 0.07 | J140: =ROUND(主表!G140*主表!L$1*I140,0) -> 117236 | N140: 14
A141: 139 | B141: =C141*20*(1+主表!F141) -> 1250344.2 | C141: 34524 | D141: 17262 | E141: 34523.1558 | F141: 0.015 | H141: 1400 | I141: 0.07 | J141: =ROUND(主表!G141*主表!L$1*I141,0) -> 119125 | N141: 14
A142: 140 | B142: =C142*20*(1+主表!F142) -> 1273192.667 | C142: 35042 | D142: 17521 | E142: 35041.00313 | F142: 0.015 | H142: 1400 | I142: 0.08 | J142: =ROUND(主表!G142*主表!L$1*I142,0) -> 138333 | N142: =N132+1 -> 14
A143: 141 | B143: =C143*20*(1+主表!F143) -> 1660443.3 | C143: 45554 | D143: 22777 | E143: 45553.30407 | F143: =F$13 -> 0.3 | H143: 1400 | I143: 0.08 | J143: =ROUND(主表!G143*主表!L$1*I143,0) -> 184275 | N143: 15
A144: 142 | B144: =C144*20*(1+主表!F144) -> 1690696.4 | C144: 46236 | D144: 23118 | E144: 46236.60363 | F144: =F$4 -> 0.015 | H144: 1400 | I144: 0.08 | J144: =ROUND(主表!G144*主表!L$1*I144,0) -> 187187 | N144: 15
A145: 143 | B145: =C145*20*(1+主表!F145) -> 1721548.833 | C145: 46930 | D145: 23465 | E145: 46930.15269 | F145: 0.015 | H145: 1400 | I145: 0.08 | J145: =ROUND(主表!G145*主表!L$1*I145,0) -> 190154 | N145: 15
A146: 144 | B146: =C146*20*(1+主表!F146) -> 1752931.2 | C146: 47634 | D146: 23817 | E146: 47634.10498 | F146: 0.015 | H146: 1400 | I146: 0.08 | J146: =ROUND(主表!G146*主表!L$1*I146,0) -> 193170 | N146: 15
A147: 145 | B147: =C147*20*(1+主表!F147) -> 1784847 | C147: 48348 | D147: 24174 | E147: 48348.61655 | F147: 0.015 | H147: 1400 | I147: 0.08 | J147: =ROUND(主表!G147*主表!L$1*I147,0) -> 196237 | N147: 15
A148: 146 | B148: =C148*20*(1+主表!F148) -> 1817373.8 | C148: 49074 | D148: 24537 | E148: 49073.8458 | F148: 0.015 | H148: 1400 | I148: 0.08 | J148: =ROUND(主表!G148*主表!L$1*I148,0) -> 199360 | N148: 15
A149: 147 | B149: =C149*20*(1+主表!F149) -> 1850441.5 | C149: 49810 | D149: 24905 | E149: 49809.95349 | F149: 0.015 | H149: 1400 | I149: 0.08 | J149: =ROUND(主表!G149*主表!L$1*I149,0) -> 202533 | N149: 15
A150: 148 | B150: =C150*20*(1+主表!F150) -> 1884128.133 | C150: 50558 | D150: 25279 | E150: 50557.10279 | F150: 0.015 | H150: 1400 | I150: 0.08 | J150: =ROUND(主表!G150*主表!L$1*I150,0) -> 205765 | N150: 15
A151: 149 | B151: =C151*20*(1+主表!F151) -> 1918363.133 | C151: 51316 | D151: 25658 | E151: 51315.45933 | F151: 0.015 | H151: 1400 | I151: 0.08 | J151: =ROUND(主表!G151*主表!L$1*I151,0) -> 209046 | N151: 15
A152: 150 | B152: =C152*20*(1+主表!F152) -> 1953225 | C152: 52086 | D152: 26043 | E152: 52085.19122 | F152: 0.015 | H152: 1400 | I152: 0.09 | J152: =ROUND(主表!G152*主表!L$1*I152,0) -> 238936 | N152: 15
A153: 151 | B153: =C153*20*(1+主表!F153) -> 2938914.933 | C153: 78128 | D153: 39064 | E153: 78127.78683 | F153: =F$33 -> 0.5 | H153: 1500 | I153: 0.09 | J153: =ROUND(主表!G153*主表!L$1*I153,0) -> 367216 | N153: 16
A154: 152 | B154: =C154*20*(1+主表!F154) -> 2992253.333 | C154: 79300 | D154: 39650 | E154: 79299.70364 | F154: 0.015 | H154: 1500 | I154: 0.09 | J154: =ROUND(主表!G154*主表!L$1*I154,0) -> 372989 | N154: 16
A155: 153 | B155: =C155*20*(1+主表!F155) -> 3046546.5 | C155: 80490 | D155: 40245 | E155: 80489.19919 | F155: 0.015 | H155: 1500 | I155: 0.09 | J155: =ROUND(主表!G155*主表!L$1*I155,0) -> 378860 | N155: 16
A156: 154 | B156: =C156*20*(1+主表!F156) -> 3101724.8 | C156: 81696 | D156: 40848 | E156: 81696.53718 | F156: 0.015 | H156: 1500 | I156: 0.09 | J156: =ROUND(主表!G156*主表!L$1*I156,0) -> 384826 | N156: 16
A157: 155 | B157: =C157*20*(1+主表!F157) -> 3157946.167 | C157: 82922 | D157: 41461 | E157: 82921.98524 | F157: 0.015 | H157: 1500 | I157: 0.09 | J157: =ROUND(主表!G157*主表!L$1*I157,0) -> 390899 | N157: 120 | O157: 1 | P157: =P158-Q158 -> 0.06 | Q157: 0.01
A158: 156 | B158: =C158*20*(1+主表!F158) -> 3215141.2 | C158: 84166 | D158: 42083 | E158: 84165.81501 | F158: 0.015 | H158: 1500 | I158: 0.09 | J158: =ROUND(主表!G158*主表!L$1*I158,0) -> 397075 | N158: 130 | O158: 2 | P158: 0.07 | Q158: 0.01
A159: 157 | B159: =C159*20*(1+主表!F159) -> 3273316.2 | C159: 85428 | D159: 42714 | E159: 85428.30224 | F159: 0.015 | H159: 1500 | I159: 0.09 | J159: =ROUND(主表!G159*主表!L$1*I159,0) -> 403355 | N159: 140 | O159: 3 | P159: 0.08 | Q159: 0.01
A160: 158 | B160: =C160*20*(1+主表!F160) -> 3332554.333 | C160: 86710 | D160: 43355 | E160: 86709.72677 | F160: 0.015 | H160: 1500 | I160: 0.09 | J160: =ROUND(主表!G160*主表!L$1*I160,0) -> 409745 | N160: 150 | O160: 4 | P160: 0.09 | Q160: 0.01
A161: 159 | B161: =C161*20*(1+主表!F161) -> 3392785.5 | C161: 88010 | D161: 44005 | E161: 88010.37267 | F161: 0.015 | H161: 1500 | I161: 0.09 | J161: =ROUND(主表!G161*主表!L$1*I161,0) -> 416239 | N161: 160 | O161: 5 | P161: =P162-Q162 -> 0.1 | Q161: 0.01
A162: 160 | B162: =C162*20*(1+主表!F162) -> 3454093.333 | C162: 89330 | D162: 44665 | E162: 89330.52826 | F162: 0.015 | H162: 1500 | I162: 0.1 | J162: =ROUND(主表!G162*主表!L$1*I162,0) -> 469830 | N162: 170 | O162: 6 | P162: 0.11 | Q162: 0.01
A163: 161 | B163: =C163*20*(1+主表!F163) -> 4503908.5 | C163: 116130 | D163: 58065 | E163: 116129.6867 | F163: =F$13 -> 0.3 | H163: 1500 | I163: 0.1 | J163: =ROUND(主表!G163*主表!L$1*I163,0) -> 625750 | N163: 180 | O163: 7 | P163: 0.12 | Q163: 0.01
A164: 162 | B164: =C164*20*(1+主表!F164) -> 4585220.8 | C164: 117872 | D164: 58936 | E164: 117871.632 | F164: =F$4 -> 0.015 | H164: 1500 | I164: 0.1 | J164: =ROUND(主表!G164*主表!L$1*I164,0) -> 635522 | N164: 190 | O164: 8 | P164: 0.13 | Q164: 0.01
A165: 163 | B165: =C165*20*(1+主表!F165) -> 4667954 | C165: 119640 | D165: 59820 | E165: 119639.7065 | F165: 0.015 | H165: 1500 | I165: 0.1 | J165: =ROUND(主表!G165*主表!L$1*I165,0) -> 645460 | N165: 200 | O165: 9 | P165: 0.14 | Q165: 0.01
A166: 164 | B166: =C166*20*(1+主表!F166) -> 4752117.2 | C166: 121434 | D166: 60717 | E166: 121434.3021 | F166: 0.015 | H166: 1500 | I166: 0.1 | J166: =ROUND(主表!G166*主表!L$1*I166,0) -> 655566 | N166: 210 | O166: 10 | P166: 0.15 | Q166: 0.01
A167: 165 | B167: =C167*20*(1+主表!F167) -> 4837798 | C167: 123256 | D167: 61628 | E167: 123255.8167 | F167: 0.015 | H167: 1500 | I167: 0.1 | J167: =ROUND(主表!G167*主表!L$1*I167,0) -> 665848 | N167: 220 | O167: 11 | P167: 0.16 | Q167: 0.01
A168: 166 | B168: =C168*20*(1+主表!F168) -> 4924927.467 | C168: 125104 | D168: 62552 | E168: 125104.6539 | F168: 0.015 | H168: 1500 | I168: 0.1 | J168: =ROUND(主表!G168*主表!L$1*I168,0) -> 676300 | N168: 230 | O168: 12 | P168: 0.17 | Q168: 0.01
A169: 167 | B169: =C169*20*(1+主表!F169) -> 5013672.633 | C169: 126982 | D169: 63491 | E169: 126981.2237 | F169: 0.015 | H169: 1500 | I169: 0.1 | J169: =ROUND(主表!G169*主表!L$1*I169,0) -> 686940 | N169: 240 | O169: 13 | P169: 0.18 | Q169: 0.01
A170: 168 | B170: =C170*20*(1+主表!F170) -> 5103885.6 | C170: 128886 | D170: 64443 | E170: 128885.9421 | F170: 0.015 | H170: 1500 | I170: 0.1 | J170: =ROUND(主表!G170*主表!L$1*I170,0) -> 697750 | N170: 250 | O170: 14 | P170: 0.19 | Q170: 0.01
A171: 169 | B171: =C171*20*(1+主表!F171) -> 5195734.333 | C171: 130820 | D171: 65410 | E171: 130819.2312 | F171: 0.015 | H171: 1500 | I171: 0.1 | J171: =ROUND(主表!G171*主表!L$1*I171,0) -> 708752 | N171: 260 | O171: 15 | P171: 0.2 | Q171: 0.01
A172: 170 | B172: =C172*20*(1+主表!F172) -> 5289149.667 | C172: 132782 | D172: 66391 | E172: 132781.5197 | F172: 0.015 | H172: 1500 | I172: 0.11 | J172: =ROUND(主表!G172*主表!L$1*I172,0) -> 791930 | N172: 270 | O172: 16 | P172: 0.21 | Q172: 0.01
A173: 171 | B173: =C173*20*(1+主表!F173) -> 6896009.2 | C173: 172616 | D173: 86308 | E173: 172615.9756 | F173: =F$13 -> 0.3 | H173: 1500 | I173: 0.11 | J173: =ROUND(主表!G173*主表!L$1*I173,0) -> 1054632 | N173: 280 | O173: 17 | P173: 0.22 | Q173: 0.01
A174: 172 | B174: =C174*20*(1+主表!F174) -> 7019920.4 | C174: 175206 | D174: 87603 | E174: 175205.2152 | F174: 0.015 | H174: 1500 | I174: 0.11 | J174: =ROUND(主表!G174*主表!L$1*I174,0) -> 1071008 | N174: 290 | O174: 18 | P174: 0.23 | Q174: 0.01
A175: 173 | B175: =C175*20*(1+主表!F175) -> 7145962.9 | C175: 177834 | D175: 88917 | E175: 177833.2934 | F175: 0.015 | H175: 1500 | I175: 0.11 | J175: =ROUND(主表!G175*主表!L$1*I175,0) -> 1087658 | N175: 300 | O175: 19 | P175: =0.2*(1+主表!E1) -> 0.24 | Q175: 0.01
A176: 174 | B176: =C176*20*(1+主表!F176) -> 7274150 | C176: 180500 | D176: 90250 | E176: 180500.7928 | F176: 0.015 | H176: 1500 | I176: 0.11 | J176: =ROUND(主表!G176*主表!L$1*I176,0) -> 1104583
A177: 175 | B177: =C177*20*(1+主表!F177) -> 7404656.667 | C177: 183208 | D177: 91604 | E177: 183208.3047 | F177: 0.015 | H177: 1500 | I177: 0.11 | J177: =ROUND(主表!G177*主表!L$1*I177,0) -> 1121806
A178: 176 | B178: =C178*20*(1+主表!F178) -> 7537416.533 | C178: 185956 | D178: 92978 | E178: 185956.4293 | F178: 0.015 | H178: 1500 | I178: 0.11 | J178: =ROUND(主表!G178*主表!L$1*I178,0) -> 1139318
A179: 177 | B179: =C179*20*(1+主表!F179) -> 7672524.9 | C179: 188746 | D179: 94373 | E179: 188745.7757 | F179: 0.015 | H179: 1500 | I179: 0.11 | J179: =ROUND(主表!G179*主表!L$1*I179,0) -> 1157132
A180: 178 | B180: =C180*20*(1+主表!F180) -> 7809914.933 | C180: 191576 | D180: 95788 | E180: 191576.9624 | F180: 0.015 | H180: 1500 | I180: 0.11 | J180: =ROUND(主表!G180*主表!L$1*I180,0) -> 1175238
A181: 179 | B181: =C181*20*(1+主表!F181) -> 7949764.167 | C181: 194450 | D181: 97225 | E181: 194450.6168 | F181: 0.015 | H181: 1500 | I181: 0.11 | J181: =ROUND(主表!G181*主表!L$1*I181,0) -> 1193658
A182: 180 | B182: =C182*20*(1+主表!F182) -> 8092088 | C182: 197368 | D182: 98684 | E182: 197367.3761 | F182: 0.015 | H182: 1500 | I182: 0.12 | J182: =ROUND(主表!G182*主表!L$1*I182,0) -> 1322614
A183: 181 | B183: =C183*20*(1+主表!F183) -> 12172671.4 | C183: 296052 | D183: 148026 | E183: 296051.0641 | F183: =F$33 -> 0.5 | H183: 1600 | I183: 0.12 | J183: =ROUND(主表!G183*主表!L$1*I183,0) -> 2034216
A184: 182 | B184: =C184*20*(1+主表!F184) -> 12390286.8 | C184: 300492 | D184: 150246 | E184: 300491.83 | F184: 0.015 | H184: 1600 | I184: 0.12 | J184: =ROUND(主表!G184*主表!L$1*I184,0) -> 2067679
A185: 183 | B185: =C185*20*(1+主表!F185) -> 12611750 | C185: 305000 | D185: 152500 | E185: 304999.2075 | F185: 0.015 | H185: 1600 | I185: 0.12 | J185: =ROUND(主表!G185*主表!L$1*I185,0) -> 2101733
A186: 184 | B186: =C186*20*(1+主表!F186) -> 12837001.87 | C186: 309574 | D186: 154787 | E186: 309574.1956 | F186: 0.015 | H186: 1600 | I186: 0.12 | J186: =ROUND(主表!G186*主表!L$1*I186,0) -> 2136372
A187: 185 | B187: =C187*20*(1+主表!F187) -> 13066231.83 | C187: 314218 | D187: 157109 | E187: 314217.8085 | F187: 0.015 | H187: 1600 | I187: =VLOOKUP(INT(A187*0.1)*10,N$157:P$175,3,FALSE) -> 0.12 | J187: =ROUND(主表!G187*主表!L$1*I187,0) -> 2171621
A188: 186 | B188: =C188*20*(1+主表!F188) -> 13299464.4 | C188: 318932 | D188: 159466 | E188: 318931.0757 | F188: 0.015 | H188: 1600 | I188: 0.12 | J188: =ROUND(主表!G188*主表!L$1*I188,0) -> 2208394
A189: 187 | B189: =C189*20*(1+主表!F189) -> 13536724.07 | C189: 323716 | D189: 161858 | E189: 323715.0418 | F189: 0.015 | H189: 1600 | I189: 0.12 | J189: =ROUND(主表!G189*主表!L$1*I189,0) -> 2245812
A190: 188 | B190: =C190*20*(1+主表!F190) -> 13778035.33 | C190: 328570 | D190: 164285 | E190: 328570.7674 | F190: 0.015 | H190: 1600 | I190: 0.12 | J190: =ROUND(主表!G190*主表!L$1*I190,0) -> 2283878
A191: 189 | B191: =C191*20*(1+主表!F191) -> 14023675 | C191: 333500 | D191: 166750 | E191: 333499.3289 | F191: 0.015 | H191: 1600 | I191: 0.12 | J191: =ROUND(主表!G191*主表!L$1*I191,0) -> 2322634
A192: 190 | B192: =C192*20*(1+主表!F192) -> 14273501 | C192: 338502 | D192: 169251 | E192: 338501.8189 | F192: 0.015 | H192: 1600 | I192: 0.13 | J192: =ROUND(主表!G192*主表!L$1*I192,0) -> 2558899
A193: 191 | B193: =C193*20*(1+主表!F193) -> 18606865.4 | C193: 440052 | D193: 220026 | E193: 440052.3645 | F193: =F$13 -> 0.3 | H193: 1600 | I193: 0.13 | J193: =ROUND(主表!G193*主表!L$1*I193,0) -> 3411738
A194: 192 | B194: =C194*20*(1+主表!F194) -> 18938129.6 | C194: 446654 | D194: 223327 | E194: 446653.15 | F194: =F$4 -> 0.015 | H194: 1600 | I194: 0.13 | J194: =ROUND(主表!G194*主表!L$1*I194,0) -> 3468730
A195: 193 | B195: =C195*20*(1+主表!F195) -> 19275015.87 | C195: 453352 | D195: 226676 | E195: 453352.9473 | F195: 0.015 | H195: 1600 | I195: 0.13 | J195: =ROUND(主表!G195*主表!L$1*I195,0) -> 3526700
A196: 194 | B196: =C196*20*(1+主表!F196) -> 19617898.87 | C196: =D196*2 -> 460154 | D196: =ROUND(MAX(D195+1,E196*M$2),0) -> 230077 | E196: 460153.2415 | F196: 0.015 | H196: 1600 | I196: 0.13 | J196: =ROUND(主表!G196*主表!L$1*I196,0) -> 3585712
A197: 195 | B197: =C197*20*(1+主表!F197) -> 19966644 | C197: 467056 | D197: 233528 | E197: =E196*(1+F197) -> 467055.5401 | F197: 0.015 | H197: 1600 | I197: 0.13 | J197: =ROUND(主表!G197*主表!L$1*I197,0) -> 3645743
A198: 196 | B198: =C198*20*(1+主表!F198) -> 20321457.73 | C198: 474062 | D198: 237031 | E198: 474061.3732 | F198: 0.015 | H198: 1600 | I198: 0.13 | J198: =ROUND(主表!G198*主表!L$1*I198,0) -> 3706830
A199: 197 | B199: =C199*20*(1+主表!F199) -> 20682376.47 | C199: 481172 | D199: 240586 | E199: 481172.2938 | F199: 0.015 | H199: 1600 | I199: 0.13 | J199: =ROUND(主表!G199*主表!L$1*I199,0) -> 3768983
A200: 198 | B200: =C200*20*(1+主表!F200) -> 21049609 | C200: 488390 | D200: 244195 | E200: 488389.8782 | F200: 0.015 | H200: 1600 | I200: 0.13 | J200: =ROUND(主表!G200*主表!L$1*I200,0) -> 3832236
... 102 more rows

Sheet 功法
A1: 等级 | B1: 需求修为等级 | C1: 标准强度 | D1: 星级 | E1: 被动加成 | G1: 1 | H1: 2 | K1: 生命 | L1: 攻击 | M1: 防御 | N1: 均值 | O1: 金 | P1: 水 | Q1: 木 | R1: 火 | S1: 土
A2: 1 | B2: 5 | C2: =G1 -> 1 | D2: 1 | E2: =VLOOKUP(INT(D2),J:N,5,FALSE) -> 0 | I2: 0星 | J2: 1 | K2: =[2]技能设计!C3 -> 0 | L2: =[2]技能设计!D3 -> 0 | M2: =[2]技能设计!E3 -> 0 | N2: =AVERAGE(K2:M2)/100 -> 0 | O2: =[2]技能设计!G3 -> 0 | P2: =[2]技能设计!H3 -> 0 | Q2: =[2]技能设计!I3 -> 0 | R2: =[2]技能设计!J3 -> 0 | S2: =[2]技能设计!K3 -> 0
A3: 2 | B3: 10 | C3: =G$1+(H$1-G$1)*A2/59 -> 1.016949153 | D3: 1.085 | E3: =VLOOKUP(INT(D3),J:N,5,FALSE)+(VLOOKUP(ROUNDUP(D3,0),J:N,5,FALSE)-VLOOKUP(INT(D3),J:N,5,FALSE))*(D3-INT(D3)) -> 0.03031666667 | I3: 1星 | J3: 2 | K3: =[2]技能设计!C4 -> 21 | L3: =[2]技能设计!D4 -> 62 | M3: =[2]技能设计!E4 -> 24 | N3: =AVERAGE(K3:M3)/100 -> 0.3566666667 | O3: =[2]技能设计!G4 -> 5 | P3: =[2]技能设计!H4 -> 0 | Q3: =[2]技能设计!I4 -> 5 | R3: =[2]技能设计!J4 -> 5 | S3: =[2]技能设计!K4 -> 0
A4: 3 | B4: 15 | C4: =G$1+(H$1-G$1)*A3/59 -> 1.033898305 | D4: 1.17 | E4: =VLOOKUP(INT(D4),J:N,5,FALSE)+(VLOOKUP(ROUNDUP(D4,0),J:N,5,FALSE)-VLOOKUP(INT(D4),J:N,5,FALSE))*(D4-INT(D4)) -> 0.06063333333 | I4: 2星 | J4: 3 | K4: =[2]技能设计!C5 -> 77 | L4: =[2]技能设计!D5 -> 139 | M4: =[2]技能设计!E5 -> 78 | N4: 0.98 | O4: =[2]技能设计!G5 -> 5 | P4: =[2]技能设计!H5 -> 5 | Q4: =[2]技能设计!I5 -> 10 | R4: =[2]技能设计!J5 -> 10 | S4: =[2]技能设计!K5 -> 5
A5: 4 | B5: 20 | C5: 1.050847458 | D5: 1.255 | E5: 0.09095 | I5: 3星 | J5: 4 | K5: =[2]技能设计!C6 -> 103 | L5: =[2]技能设计!D6 -> 211 | M5: =[2]技能设计!E6 -> 102 | N5: 1.386666667 | O5: =[2]技能设计!G6 -> 10 | P5: =[2]技能设计!H6 -> 5 | Q5: =[2]技能设计!I6 -> 10 | R5: =[2]技能设计!J6 -> 10 | S5: =[2]技能设计!K6 -> 5
A6: 5 | B6: 25 | C6: 1.06779661 | D6: 1.34 | E6: 0.1212666667 | I6: 4星 | J6: 5 | K6: =[2]技能设计!C7 -> 159 | L6: =[2]技能设计!D7 -> 288 | M6: =[2]技能设计!E7 -> 151 | N6: 1.993333333 | O6: =[2]技能设计!G7 -> 10 | P6: =[2]技能设计!H7 -> 10 | Q6: =[2]技能设计!I7 -> 20 | R6: =[2]技能设计!J7 -> 20 | S6: =[2]技能设计!K7 -> 10
A7: 6 | B7: 30 | C7: 1.084745763 | D7: 1.425 | E7: 0.1515833333 | I7: 5星 | J7: 6 | K7: =[2]技能设计!C8 -> 174 | L7: =[2]技能设计!D8 -> 308 | M7: =[2]技能设计!E8 -> 166 | N7: 2.16 | O7: =[2]技能设计!G8 -> 10 | P7: =[2]技能设计!H8 -> 10 | Q7: =[2]技能设计!I8 -> 20 | R7: =[2]技能设计!J8 -> 20 | S7: =[2]技能设计!K8 -> 10
A8: 7 | B8: 35 | C8: 1.101694915 | D8: 1.51 | E8: 0.1819
A9: 8 | B9: 40 | C9: 1.118644068 | D9: 1.595 | E9: 0.2122166667
A10: 9 | B10: 45 | C10: 1.13559322 | D10: 1.68 | E10: 0.2425333333
A11: 10 | B11: 50 | C11: 1.152542373 | D11: 1.765 | E11: 0.27285
A12: 11 | B12: 55 | C12: 1.169491525 | D12: 1.85 | E12: 0.3031666667
A13: 12 | B13: 60 | C13: 1.186440678 | D13: 1.935 | E13: 0.3334833333
A14: 13 | B14: 65 | C14: 1.203389831 | D14: 2.02 | E14: 0.3691333333
A15: 14 | B15: 70 | C15: 1.220338983 | D15: 2.105 | E15: 0.4221166667
A16: 15 | B16: 75 | C16: 1.237288136 | D16: 2.19 | E16: 0.4751
A17: 16 | B17: 80 | C17: 1.254237288 | D17: 2.275 | E17: 0.5280833333
A18: 17 | B18: 85 | C18: 1.271186441 | D18: 2.36 | E18: 0.5810666667
A19: 18 | B19: 90 | C19: 1.288135593 | D19: 2.445 | E19: 0.63405
A20: 19 | B20: 95 | C20: 1.305084746 | D20: 2.53 | E20: 0.6870333333
A21: 20 | B21: 100 | C21: 1.322033898 | D21: 2.615 | E21: 0.7400166667
A22: 21 | B22: 105 | C22: 1.338983051 | D22: 2.7 | E22: 0.793
A23: 22 | B23: 110 | C23: 1.355932203 | D23: 2.785 | E23: 0.8459833333
A24: 23 | B24: 115 | C24: 1.372881356 | D24: 2.87 | E24: 0.8989666667
A25: 24 | B25: 120 | C25: 1.389830508 | D25: 2.955 | E25: 0.95195
A26: 25 | B26: 125 | C26: 1.406779661 | D26: 3.04 | E26: 0.9962666667
A27: 26 | B27: 130 | C27: 1.423728814 | D27: 3.125 | E27: 1.030833333
A28: 27 | B28: 135 | C28: 1.440677966 | D28: 3.21 | E28: 1.0654
A29: 28 | B29: 140 | C29: 1.457627119 | D29: 3.295 | E29: 1.099966667
A30: 29 | B30: 145 | C30: 1.474576271 | D30: 3.38 | E30: 1.134533333
A31: 30 | B31: 150 | C31: 1.491525424 | D31: 3.465 | E31: 1.1691
A32: 31 | B32: 155 | C32: 1.508474576 | D32: 3.55 | E32: 1.203666667
A33: 32 | B33: 160 | C33: 1.525423729 | D33: 3.635 | E33: 1.238233333
A34: 33 | B34: 165 | C34: 1.542372881 | D34: 3.72 | E34: 1.2728
A35: 34 | B35: 170 | C35: 1.559322034 | D35: 3.805 | E35: 1.307366667
A36: 35 | B36: 175 | C36: 1.576271186 | D36: 3.89 | E36: 1.341933333
A37: 36 | B37: 180 | C37: 1.593220339 | D37: 3.975 | E37: 1.3765
A38: 37 | B38: 185 | C38: 1.610169492 | D38: 4.06 | E38: 1.423066667
A39: 38 | B39: 190 | C39: 1.627118644 | D39: 4.145 | E39: 1.474633333
A40: 39 | B40: 195 | C40: 1.644067797 | D40: 4.23 | E40: 1.5262
A41: 40 | B41: 200 | C41: 1.661016949 | D41: 4.315 | E41: 1.577766667
A42: 41 | B42: 205 | C42: 1.677966102 | D42: 4.4 | E42: 1.629333333
A43: 42 | B43: 210 | C43: 1.694915254 | D43: 4.485 | E43: 1.6809
A44: 43 | B44: 215 | C44: 1.711864407 | D44: 4.57 | E44: 1.732466667
A45: 44 | B45: 220 | C45: 1.728813559 | D45: 4.655 | E45: 1.784033333
A46: 45 | B46: 225 | C46: 1.745762712 | D46: 4.74 | E46: 1.8356
A47: 46 | B47: 230 | C47: 1.762711864 | D47: 4.825 | E47: 1.887166667
A48: 47 | B48: 235 | C48: 1.779661017 | D48: 4.91 | E48: 1.938733333
A49: 48 | B49: 240 | C49: 1.796610169 | D49: 4.995 | E49: 1.9903
A50: 49 | B50: 245 | C50: 1.813559322 | D50: 5.08 | E50: 2.006666667
A51: 50 | B51: 250 | C51: 1.830508475 | D51: 5.165 | E51: 2.020833333
A52: 51 | B52: 255 | C52: 1.847457627 | D52: 5.25 | E52: 2.035
A53: 52 | B53: 260 | C53: 1.86440678 | D53: 5.335 | E53: 2.049166667
A54: 53 | B54: 265 | C54: 1.881355932 | D54: 5.42 | E54: 2.063333333
A55: 54 | B55: 270 | C55: 1.898305085 | D55: 5.505 | E55: 2.0775
A56: 55 | B56: 275 | C56: 1.915254237 | D56: 5.59 | E56: 2.091666667
A57: 56 | B57: 280 | C57: 1.93220339 | D57: 5.675 | E57: 2.105833333
A58: 57 | B58: 285 | C58: 1.949152542 | D58: 5.76 | E58: 2.12
A59: 58 | B59: 290 | C59: 1.966101695 | D59: 5.845 | E59: 2.134166667
A60: 59 | B60: 295 | C60: 1.983050847 | D60: 5.93 | E60: 2.148333333
A61: 60 | B61: 300 | C61: =H1 -> 2 | D61: 6 | E61: 2.16

Sheet 投产
B1: 投产方式 | C1: 频次 | D1: 期望的独占奖励 | E1: 期望的核心奖励 | F1: 其他 | I1: 类型 | J1: 说明
B2: 主线 | C2: 一次性 | D2: 特定功法/法宝 | H2: 灵石 | I2: 资源 | J2: 常规货币
B3: 支线 | C3: 一次性 | E3: 必有的天材地宝 | G3: 1 | H3: 修为 | I3: 资源 | J3: 主角提升境界所需资源
B4: 爬塔 | C4: 一次性 | G4: 2 | H4: 灵气 | I4: 资源 | J4: 功法升级资源
G5: 3 | H5: 灵韵 | I5: 资源 | J5: 法宝升级资源
B6: 神识释放 | C6: 有限次数 | E6: 1：2：3=60：20：20
H7: 功法碎片 | I7: 材料 | J7: 功法升星资源
B8: 挂机神识 | C8: 重复 | H8: 法宝碎片 | I8: 材料 | J8: 法宝升星资源
B9: 挂机道侣 | C9: 重复 | E9: 灵韵 | F9: 修为，低概率稀有道具 | H9: 天材地宝 | I9: 材料 | J9: 人物突破特定境界所需资源（选有和必有）
B10: 洞府打坐 | C10: 重复 | E10: 20%修为 | H10: 好感度礼物 | I10: 材料 | J10: 道友提升好感度等级所需资源
A11: 暂未实现 | B11: 法宝练器 | C11: 一次性 | H11: 心情礼物 | I11: 材料 | J11: 道友改善心情所需资源
B13: 活动？ | H13: 神识丹 | I13: 材料 | J13: 恢复神识值
B14: 商店？ | E14: 选有的天材地宝 高性价比的123符 灵气 | H14: 妖丹 | I14: 资源 | J14: 稀有货币
B15: 广告？ | H15: 妖王丹 | I15: 资源 | J15: 人民币代币
B17: 功法来源？ | C17: 本体只能一次性获得 | H17: 天赋点数
B18: 法宝来源？
B21: 所有功法/法宝的本体都有一个一次性产出，其余途径给的都是功法升星资源而不是本体
B22: 神识每天前2000点有额外的恢复速度，包装用一个额外的容器自动充点数，每天5点回满
B24: 强度覆盖到150
B25: 3天 | C25: 能体验到100级 | D25: 80级开完所有功能

Sheet 投产详情
A1: 投产方式 | B1: 频次 | I1: 类型 | J1: 说明
A2: 主线 | B2: 一次性 | H2: 灵石 | I2: 资源 | J2: 常规货币
A3: 支线 | B3: 一次性 | H3: 修为 | I3: 资源 | J3: 主角提升境界所需资源
A4: 爬塔 | B4: 一次性 | H4: 灵气 | I4: 资源 | J4: 功法升级资源
H5: 灵韵 | I5: 资源 | J5: 法宝升级资源
A6: 神识释放 | B6: 有限次数
H7: 功法碎片 | I7: 材料 | J7: 功法升星资源
A8: 挂机神识 | B8: 重复 | H8: 法宝碎片 | I8: 材料 | J8: 法宝升星资源
A9: 挂机道侣 | B9: 重复 | H9: 天材地宝 | I9: 材料 | J9: 人物突破特定境界所需资源（选有和必有）
A10: 洞府打坐 | B10: 重复 | H10: 好感度礼物 | I10: 材料 | J10: 道友提升好感度等级所需资源
A11: 法宝练器 | B11: 一次性 | H11: 心情礼物 | I11: 材料 | J11: 道友改善心情所需资源
A13: 商店 | H13: 神识丹 | I13: 材料 | J13: 恢复神识值
H14: 妖丹 | I14: 资源 | J14: 稀有货币
H15: 妖王丹 | I15: 资源 | J15: 人民币代币
H17: 天赋点数

Sheet Sheet1
C1: 累计 | D1: 累计 | E1: 1d=12h | M1: =SUM(M3:M5) -> 9.015 | O1: 每小时获取份数 | Q1: 10
A2: 等级 | B2: 驻留(s) | C2: 驻留(m) | D2: 驻留(h) | E2: 驻留(d) | G2: 天数 | H2: 等级 | L2: 花费时间 | M2: 获得时长 | N2: 获取效率 | O2: 获取份数
A3: 1 | B3: 60 | C3: =SUM(B$3:B3)/60 -> 1 | D3: =C3/60 -> 0.01666666667 | E3: =D3/6 -> 0.002777777778 | G3: 1 | H3: 60 | K3: 在线高效 | L3: 0.5 | M3: =L3*N3 -> 3 | N3: 6 | O3: =Q$1*M3 -> 30
A4: 2 | B4: =B3+INT(A4*0.1+1)*5 -> 65 | C4: =SUM(B$3:B4)/60 -> 2.083333333 | D4: =C4/60 -> 0.03472222222 | E4: =D4/6 -> 0.005787037037 | G4: 2 | H4: 90 | K4: 在线标准 | L4: 1 | M4: =L4*N4 -> 3 | N4: 3 | O4: =Q$1*M4 -> 30
A5: 3 | B5: =B4+INT(A5*0.1+1)*5 -> 70 | C5: =SUM(B$3:B5)/60 -> 3.25 | D5: 0.05416666667 | E5: 0.009027777778 | G5: 3 | H5: 120 | K5: 无限 | L5: =24-L3-L4 -> 22.5 | M5: 3.015 | N5: 0.134 | O5: 30.15
A6: 4 | B6: 75 | C6: =SUM(B$3:B6)/60 -> 4.5 | D6: 0.075 | E6: 0.0125 | G6: 4 | H6: 150
A7: 5 | B7: 80 | C7: =SUM(B$3:B7)/60 -> 5.833333333 | D7: 0.09722222222 | E7: 0.0162037037 | K7: 总 | L7: 符 | M7: 乾坤袋 | N7: 洞府打坐 | O7: 神识
A8: 6 | B8: 85 | C8: =SUM(B$3:B8)/60 -> 7.25 | D8: 0.1208333333 | E8: 0.02013888889 | J8: 经验 | K8: 300 | L8: 100 | N8: 100 | O8: 100
A9: 7 | B9: 90 | C9: =SUM(B$3:B9)/60 -> 8.75 | D9: 0.1458333333 | E9: 0.02430555556 | J9: 其他 | K9: 300 | L9: 100 | M9: 100 | O9: 100
A10: 8 | B10: 95 | C10: =SUM(B$3:B10)/60 -> 10.33333333 | D10: 0.1722222222 | E10: 0.0287037037
A11: 9 | B11: 100 | C11: =SUM(B$3:B11)/60 -> 12 | D11: 0.2 | E11: 0.03333333333 | T11: =2452-80 -> 2372 | U11: =4894-160 -> 4734
A12: 10 | B12: 110 | C12: =SUM(B$3:B12)/60 -> 13.83333333 | D12: 0.2305555556 | E12: 0.03842592593 | N12: =24*3600 -> 86400 | T12: 2368 | U12: 4726
A13: 11 | B13: 120 | C13: =SUM(B$3:B13)/60 -> 15.83333333 | D13: 0.2638888889 | E13: 0.04398148148 | T13: 2276 | U13: 4542
A14: 12 | B14: 130 | C14: =SUM(B$3:B14)/60 -> 18 | D14: 0.3 | E14: 0.05 | K14: =100/(24*3600) -> 0.001157407407 | U14: 4570
A15: 13 | B15: 140 | C15: =SUM(B$3:B15)/60 -> 20.33333333 | D15: 0.3388888889 | E15: 0.05648148148 | U15: 4537 | W15: =1150*4 -> 4600
A16: 14 | B16: 150 | C16: =SUM(B$3:B16)/60 -> 22.83333333 | D16: 0.3805555556 | E16: 0.06342592593
A17: 15 | B17: 160 | C17: =SUM(B$3:B17)/60 -> 25.5 | D17: 0.425 | E17: 0.07083333333
A18: 16 | B18: 170 | C18: =SUM(B$3:B18)/60 -> 28.33333333 | D18: 0.4722222222 | E18: 0.0787037037 | K18: 总抽 | L18: 120 | M18: 份数
A19: 17 | B19: 180 | C19: =SUM(B$3:B19)/60 -> 31.33333333 | D19: 0.5222222222 | E19: 0.08703703704
A20: 18 | B20: 190 | C20: =SUM(B$3:B20)/60 -> 34.5 | D20: 0.575 | E20: 0.09583333333 | K20: 高效 | L20: 20
A21: 19 | B21: 200 | C21: =SUM(B$3:B21)/60 -> 37.83333333 | D21: 0.6305555556 | E21: 0.1050925926 | J21: 金币 | K21: 资源1 | L21: 20 | M21: 5
A22: 20 | B22: 215 | C22: =SUM(B$3:B22)/60 -> 41.41666667 | D22: 0.6902777778 | E22: 0.1150462963 | I22: 功法 | J22: 灵气 | K22: 资源2 | L22: 20 | M22: 5
A23: 21 | B23: 230 | C23: =SUM(B$3:B23)/60 -> 45.25 | D23: 0.7541666667 | E23: 0.1256944444 | I23: 法宝 | J23: 玄晶 | K23: 资源3 | L23: 20 | M23: 5
A24: 22 | B24: 245 | C24: =SUM(B$3:B24)/60 -> 49.33333333 | D24: 0.8222222222 | E24: 0.137037037 | K24: 功法碎片 | L24: 20
A25: 23 | B25: 260 | C25: =SUM(B$3:B25)/60 -> 53.66666667 | D25: 0.8944444444 | E25: 0.1490740741 | K25: 法宝碎片 | L25: 20
A26: 24 | B26: 275 | C26: =SUM(B$3:B26)/60 -> 58.25 | D26: 0.9708333333 | E26: 0.1618055556
A27: 25 | B27: 290 | C27: =SUM(B$3:B27)/60 -> 63.08333333 | D27: 1.051388889 | E27: 0.1752314815
A28: 26 | B28: 305 | C28: =SUM(B$3:B28)/60 -> 68.16666667 | D28: 1.136111111 | E28: 0.1893518519
A29: 27 | B29: 320 | C29: =SUM(B$3:B29)/60 -> 73.5 | D29: 1.225 | E29: 0.2041666667
A30: 28 | B30: 335 | C30: =SUM(B$3:B30)/60 -> 79.08333333 | D30: 1.318055556 | E30: 0.2196759259
A31: 29 | B31: 350 | C31: =SUM(B$3:B31)/60 -> 84.91666667 | D31: 1.415277778 | E31: 0.2358796296
A32: 30 | B32: 370 | C32: =SUM(B$3:B32)/60 -> 91.08333333 | D32: 1.518055556 | E32: 0.2530092593
A33: 31 | B33: 390 | C33: =SUM(B$3:B33)/60 -> 97.58333333 | D33: 1.626388889 | E33: 0.2710648148
A34: 32 | B34: 410 | C34: =SUM(B$3:B34)/60 -> 104.4166667 | D34: 1.740277778 | E34: 0.2900462963
A35: 33 | B35: 430 | C35: =SUM(B$3:B35)/60 -> 111.5833333 | D35: 1.859722222 | E35: 0.3099537037
A36: 34 | B36: 450 | C36: =SUM(B$3:B36)/60 -> 119.0833333 | D36: 1.984722222 | E36: 0.330787037
A37: 35 | B37: 470 | C37: =SUM(B$3:B37)/60 -> 126.9166667 | D37: 2.115277778 | E37: 0.3525462963
A38: 36 | B38: 490 | C38: =SUM(B$3:B38)/60 -> 135.0833333 | D38: 2.251388889 | E38: 0.3752314815
A39: 37 | B39: 510 | C39: =SUM(B$3:B39)/60 -> 143.5833333 | D39: 2.393055556 | E39: 0.3988425926
A40: 38 | B40: 530 | C40: =SUM(B$3:B40)/60 -> 152.4166667 | D40: 2.540277778 | E40: 0.4233796296
A41: 39 | B41: 550 | C41: =SUM(B$3:B41)/60 -> 161.5833333 | D41: 2.693055556 | E41: 0.4488425926
A42: 40 | B42: 575 | C42: =SUM(B$3:B42)/60 -> 171.1666667 | D42: 2.852777778 | E42: 0.475462963
A43: 41 | B43: 600 | C43: =SUM(B$3:B43)/60 -> 181.1666667 | D43: 3.019444444 | E43: 0.5032407407
A44: 42 | B44: 625 | C44: =SUM(B$3:B44)/60 -> 191.5833333 | D44: 3.193055556 | E44: 0.5321759259
A45: 43 | B45: 650 | C45: =SUM(B$3:B45)/60 -> 202.4166667 | D45: 3.373611111 | E45: 0.5622685185
A46: 44 | B46: 675 | C46: =SUM(B$3:B46)/60 -> 213.6666667 | D46: 3.561111111 | E46: 0.5935185185
A47: 45 | B47: 700 | C47: =SUM(B$3:B47)/60 -> 225.3333333 | D47: 3.755555556 | E47: 0.6259259259
A48: 46 | B48: 725 | C48: =SUM(B$3:B48)/60 -> 237.4166667 | D48: 3.956944444 | E48: 0.6594907407
A49: 47 | B49: 750 | C49: =SUM(B$3:B49)/60 -> 249.9166667 | D49: 4.165277778 | E49: 0.694212963
A50: 48 | B50: 775 | C50: =SUM(B$3:B50)/60 -> 262.8333333 | D50: 4.380555556 | E50: 0.7300925926
A51: 49 | B51: 800 | C51: =SUM(B$3:B51)/60 -> 276.1666667 | D51: 4.602777778 | E51: 0.7671296296
A52: 50 | B52: 830 | C52: =SUM(B$3:B52)/60 -> 290 | D52: 4.833333333 | E52: 0.8055555556
A53: 51 | B53: 860 | C53: =SUM(B$3:B53)/60 -> 304.3333333 | D53: 5.072222222 | E53: 0.8453703704
A54: 52 | B54: 890 | C54: =SUM(B$3:B54)/60 -> 319.1666667 | D54: 5.319444444 | E54: 0.8865740741
A55: 53 | B55: 920 | C55: =SUM(B$3:B55)/60 -> 334.5 | D55: 5.575 | E55: 0.9291666667
A56: 54 | B56: 950 | C56: =SUM(B$3:B56)/60 -> 350.3333333 | D56: 5.838888889 | E56: 0.9731481481
A57: 55 | B57: 980 | C57: =SUM(B$3:B57)/60 -> 366.6666667 | D57: 6.111111111 | E57: 1.018518519
A58: 56 | B58: 1010 | C58: =SUM(B$3:B58)/60 -> 383.5 | D58: 6.391666667 | E58: 1.065277778
A59: 57 | B59: 1040 | C59: =SUM(B$3:B59)/60 -> 400.8333333 | D59: 6.680555556 | E59: 1.113425926
A60: 58 | B60: 1070 | C60: =SUM(B$3:B60)/60 -> 418.6666667 | D60: 6.977777778 | E60: 1.162962963
A61: 59 | B61: 1100 | C61: =SUM(B$3:B61)/60 -> 437 | D61: 7.283333333 | E61: 1.213888889
A62: 60 | B62: 1135 | C62: =SUM(B$3:B62)/60 -> 455.9166667 | D62: 7.598611111 | E62: 1.266435185
A63: 61 | B63: 1170 | C63: =SUM(B$3:B63)/60 -> 475.4166667 | D63: 7.923611111 | E63: 1.320601852
A64: 62 | B64: 1205 | C64: =SUM(B$3:B64)/60 -> 495.5 | D64: 8.258333333 | E64: 1.376388889
A65: 63 | B65: 1240 | C65: =SUM(B$3:B65)/60 -> 516.1666667 | D65: 8.602777778 | E65: 1.433796296
A66: 64 | B66: 1275 | C66: =SUM(B$3:B66)/60 -> 537.4166667 | D66: 8.956944444 | E66: 1.492824074
A67: 65 | B67: 1310 | C67: =SUM(B$3:B67)/60 -> 559.25 | D67: 9.320833333 | E67: 1.553472222
A68: 66 | B68: 1345 | C68: =SUM(B$3:B68)/60 -> 581.6666667 | D68: =C68/60 -> 9.694444444 | E68: =D68/6 -> 1.615740741
A69: 67 | B69: =B68+INT(A69*0.1+1)*5 -> 1380 | C69: =SUM(B$3:B69)/60 -> 604.6666667 | D69: 10.07777778 | E69: 1.67962963
A70: 68 | B70: 1415 | C70: =SUM(B$3:B70)/60 -> 628.25 | D70: 10.47083333 | E70: 1.745138889
A71: 69 | B71: 1450 | C71: =SUM(B$3:B71)/60 -> 652.4166667 | D71: 10.87361111 | E71: 1.812268519
A72: 70 | B72: 1490 | C72: =SUM(B$3:B72)/60 -> 677.25 | D72: 11.2875 | E72: 1.88125
A73: 71 | B73: 1530 | C73: =SUM(B$3:B73)/60 -> 702.75 | D73: 11.7125 | E73: 1.952083333
A74: 72 | B74: 1570 | C74: =SUM(B$3:B74)/60 -> 728.9166667 | D74: 12.14861111 | E74: 2.024768519
A75: 73 | B75: 1610 | C75: =SUM(B$3:B75)/60 -> 755.75 | D75: 12.59583333 | E75: 2.099305556
A76: 74 | B76: 1650 | C76: =SUM(B$3:B76)/60 -> 783.25 | D76: 13.05416667 | E76: 2.175694444
A77: 75 | B77: 1690 | C77: =SUM(B$3:B77)/60 -> 811.4166667 | D77: 13.52361111 | E77: 2.253935185
A78: 76 | B78: 1730 | C78: =SUM(B$3:B78)/60 -> 840.25 | D78: 14.00416667 | E78: 2.334027778
A79: 77 | B79: 1770 | C79: =SUM(B$3:B79)/60 -> 869.75 | D79: 14.49583333 | E79: 2.415972222
A80: 78 | B80: 1810 | C80: =SUM(B$3:B80)/60 -> 899.9166667 | D80: 14.99861111 | E80: 2.499768519
A81: 79 | B81: 1850 | C81: =SUM(B$3:B81)/60 -> 930.75 | D81: 15.5125 | E81: 2.585416667
A82: 80 | B82: 1895 | C82: =SUM(B$3:B82)/60 -> 962.3333333 | D82: 16.03888889 | E82: 2.673148148
A83: 81 | B83: 1940 | C83: =SUM(B$3:B83)/60 -> 994.6666667 | D83: 16.57777778 | E83: 2.762962963
A84: 82 | B84: 1985 | C84: =SUM(B$3:B84)/60 -> 1027.75 | D84: 17.12916667 | E84: 2.854861111
A85: 83 | B85: 2030 | C85: =SUM(B$3:B85)/60 -> 1061.583333 | D85: 17.69305556 | E85: 2.948842593
A86: 84 | B86: 2075 | C86: =SUM(B$3:B86)/60 -> 1096.166667 | D86: 18.26944444 | E86: 3.044907407
A87: 85 | B87: 2120 | C87: =SUM(B$3:B87)/60 -> 1131.5 | D87: 18.85833333 | E87: 3.143055556
A88: 86 | B88: 2165 | C88: =SUM(B$3:B88)/60 -> 1167.583333 | D88: 19.45972222 | E88: 3.243287037
A89: 87 | B89: 2210 | C89: =SUM(B$3:B89)/60 -> 1204.416667 | D89: 20.07361111 | E89: 3.345601852
A90: 88 | B90: 2255 | C90: =SUM(B$3:B90)/60 -> 1242 | D90: 20.7 | E90: 3.45
A91: 89 | B91: 2300 | C91: =SUM(B$3:B91)/60 -> 1280.333333 | D91: 21.33888889 | E91: 3.556481481
A92: 90 | B92: 2350 | C92: =SUM(B$3:B92)/60 -> 1319.5 | D92: 21.99166667 | E92: 3.665277778
A93: 91 | B93: 2400 | C93: =SUM(B$3:B93)/60 -> 1359.5 | D93: 22.65833333 | E93: 3.776388889
A94: 92 | B94: 2450 | C94: =SUM(B$3:B94)/60 -> 1400.333333 | D94: 23.33888889 | E94: 3.889814815
A95: 93 | B95: 2500 | C95: =SUM(B$3:B95)/60 -> 1442 | D95: 24.03333333 | E95: 4.005555556
A96: 94 | B96: 2550 | C96: =SUM(B$3:B96)/60 -> 1484.5 | D96: 24.74166667 | E96: 4.123611111
A97: 95 | B97: 2600 | C97: =SUM(B$3:B97)/60 -> 1527.833333 | D97: 25.46388889 | E97: 4.243981481
A98: 96 | B98: 2650 | C98: =SUM(B$3:B98)/60 -> 1572 | D98: 26.2 | E98: 4.366666667
A99: 97 | B99: 2700 | C99: =SUM(B$3:B99)/60 -> 1617 | D99: 26.95 | E99: 4.491666667
A100: 98 | B100: 2750 | C100: =SUM(B$3:B100)/60 -> 1662.833333 | D100: 27.71388889 | E100: 4.618981481
A101: 99 | B101: 2800 | C101: =SUM(B$3:B101)/60 -> 1709.5 | D101: 28.49166667 | E101: 4.748611111
A102: 100 | B102: 2855 | C102: =SUM(B$3:B102)/60 -> 1757.083333 | D102: 29.28472222 | E102: 4.880787037
A103: 101 | B103: 2910 | C103: =SUM(B$3:B103)/60 -> 1805.583333 | D103: 30.09305556 | E103: 5.015509259
A104: 102 | B104: 2965 | C104: =SUM(B$3:B104)/60 -> 1855 | D104: 30.91666667 | E104: 5.152777778
A105: 103 | B105: 3020 | C105: =SUM(B$3:B105)/60 -> 1905.333333 | D105: 31.75555556 | E105: 5.292592593
A106: 104 | B106: 3075 | C106: =SUM(B$3:B106)/60 -> 1956.583333 | D106: 32.60972222 | E106: 5.434953704
A107: 105 | B107: 3130 | C107: =SUM(B$3:B107)/60 -> 2008.75 | D107: 33.47916667 | E107: 5.579861111
A108: 106 | B108: 3185 | C108: =SUM(B$3:B108)/60 -> 2061.833333 | D108: 34.36388889 | E108: 5.727314815
A109: 107 | B109: 3240 | C109: =SUM(B$3:B109)/60 -> 2115.833333 | D109: 35.26388889 | E109: 5.877314815
A110: 108 | B110: 3295 | C110: =SUM(B$3:B110)/60 -> 2170.75 | D110: 36.17916667 | E110: 6.029861111
A111: 109 | B111: 3350 | C111: =SUM(B$3:B111)/60 -> 2226.583333 | D111: 37.10972222 | E111: 6.184953704
A112: 110 | B112: 3410 | C112: =SUM(B$3:B112)/60 -> 2283.416667 | D112: 38.05694444 | E112: 6.342824074
A113: 111 | B113: 3470 | C113: =SUM(B$3:B113)/60 -> 2341.25 | D113: 39.02083333 | E113: 6.503472222
A114: 112 | B114: 3530 | C114: =SUM(B$3:B114)/60 -> 2400.083333 | D114: 40.00138889 | E114: 6.666898148
A115: 113 | B115: 3590 | C115: =SUM(B$3:B115)/60 -> 2459.916667 | D115: 40.99861111 | E115: 6.833101852
A116: 114 | B116: 3650 | C116: =SUM(B$3:B116)/60 -> 2520.75 | D116: 42.0125 | E116: 7.002083333
A117: 115 | B117: 3710 | C117: =SUM(B$3:B117)/60 -> 2582.583333 | D117: 43.04305556 | E117: 7.173842593
A118: 116 | B118: 3770 | C118: =SUM(B$3:B118)/60 -> 2645.416667 | D118: 44.09027778 | E118: 7.34837963
A119: 117 | B119: 3830 | C119: =SUM(B$3:B119)/60 -> 2709.25 | D119: 45.15416667 | E119: 7.525694444
A120: 118 | B120: 3890 | C120: =SUM(B$3:B120)/60 -> 2774.083333 | D120: 46.23472222 | E120: 7.705787037
A121: 119 | B121: 3950 | C121: =SUM(B$3:B121)/60 -> 2839.916667 | D121: 47.33194444 | E121: 7.888657407
A122: 120 | B122: 4015 | C122: =SUM(B$3:B122)/60 -> 2906.833333 | D122: 48.44722222 | E122: 8.074537037
A123: 121 | B123: 4080 | C123: =SUM(B$3:B123)/60 -> 2974.833333 | D123: 49.58055556 | E123: 8.263425926
A124: 122 | B124: 4145 | C124: =SUM(B$3:B124)/60 -> 3043.916667 | D124: 50.73194444 | E124: 8.455324074
A125: 123 | B125: 4210 | C125: =SUM(B$3:B125)/60 -> 3114.083333 | D125: 51.90138889 | E125: 8.650231481
A126: 124 | B126: 4275 | C126: =SUM(B$3:B126)/60 -> 3185.333333 | D126: 53.08888889 | E126: 8.848148148
A127: 125 | B127: 4340 | C127: =SUM(B$3:B127)/60 -> 3257.666667 | D127: 54.29444444 | E127: 9.049074074
A128: 126 | B128: 4405 | C128: =SUM(B$3:B128)/60 -> 3331.083333 | D128: 55.51805556 | E128: 9.253009259
A129: 127 | B129: 4470 | C129: =SUM(B$3:B129)/60 -> 3405.583333 | D129: 56.75972222 | E129: 9.459953704
A130: 128 | B130: 4535 | C130: =SUM(B$3:B130)/60 -> 3481.166667 | D130: 58.01944444 | E130: 9.669907407
A131: 129 | B131: 4600 | C131: =SUM(B$3:B131)/60 -> 3557.833333 | D131: 59.29722222 | E131: 9.88287037
A132: 130 | B132: 4670 | C132: =SUM(B$3:B132)/60 -> 3635.666667 | D132: =C132/60 -> 60.59444444 | E132: =D132/6 -> 10.09907407
A133: 131 | B133: =B132+INT(A133*0.1+1)*5 -> 4740 | C133: =SUM(B$3:B133)/60 -> 3714.666667 | D133: 61.91111111 | E133: 10.31851852
A134: 132 | B134: 4810 | C134: =SUM(B$3:B134)/60 -> 3794.833333 | D134: 63.24722222 | E134: 10.5412037
A135: 133 | B135: 4880 | C135: =SUM(B$3:B135)/60 -> 3876.166667 | D135: 64.60277778 | E135: 10.76712963
A136: 134 | B136: 4950 | C136: =SUM(B$3:B136)/60 -> 3958.666667 | D136: 65.97777778 | E136: 10.9962963
A137: 135 | B137: 5020 | C137: =SUM(B$3:B137)/60 -> 4042.333333 | D137: 67.37222222 | E137: 11.2287037
A138: 136 | B138: 5090 | C138: =SUM(B$3:B138)/60 -> 4127.166667 | D138: 68.78611111 | E138: 11.46435185
A139: 137 | B139: 5160 | C139: =SUM(B$3:B139)/60 -> 4213.166667 | D139: 70.21944444 | E139: 11.70324074
A140: 138 | B140: 5230 | C140: =SUM(B$3:B140)/60 -> 4300.333333 | D140: 71.67222222 | E140: 11.94537037
A141: 139 | B141: 5300 | C141: =SUM(B$3:B141)/60 -> 4388.666667 | D141: 73.14444444 | E141: 12.19074074
A142: 140 | B142: 5375 | C142: =SUM(B$3:B142)/60 -> 4478.25 | D142: 74.6375 | E142: 12.43958333
A143: 141 | B143: 5450 | C143: =SUM(B$3:B143)/60 -> 4569.083333 | D143: 76.15138889 | E143: 12.69189815
A144: 142 | B144: 5525 | C144: =SUM(B$3:B144)/60 -> 4661.166667 | D144: 77.68611111 | E144: 12.94768519
A145: 143 | B145: 5600 | C145: =SUM(B$3:B145)/60 -> 4754.5 | D145: 79.24166667 | E145: 13.20694444
A146: 144 | B146: 5675 | C146: =SUM(B$3:B146)/60 -> 4849.083333 | D146: 80.81805556 | E146: 13.46967593
A147: 145 | B147: 5750 | C147: =SUM(B$3:B147)/60 -> 4944.916667 | D147: 82.41527778 | E147: 13.73587963
A148: 146 | B148: 5825 | C148: =SUM(B$3:B148)/60 -> 5042 | D148: 84.03333333 | E148: 14.00555556
A149: 147 | B149: 5900 | C149: =SUM(B$3:B149)/60 -> 5140.333333 | D149: 85.67222222 | E149: 14.2787037
A150: 148 | B150: 5975 | C150: =SUM(B$3:B150)/60 -> 5239.916667 | D150: 87.33194444 | E150: 14.55532407
A151: 149 | B151: 6050 | C151: =SUM(B$3:B151)/60 -> 5340.75 | D151: 89.0125 | E151: 14.83541667
A152: 150 | B152: 6130 | C152: =SUM(B$3:B152)/60 -> 5442.916667 | D152: 90.71527778 | E152: 15.11921296
A153: 151 | B153: 6210 | C153: =SUM(B$3:B153)/60 -> 5546.416667 | D153: 92.44027778 | E153: 15.40671296
A154: 152 | B154: 6290 | C154: =SUM(B$3:B154)/60 -> 5651.25 | D154: 94.1875 | E154: 15.69791667
A155: 153 | B155: 6370 | C155: =SUM(B$3:B155)/60 -> 5757.416667 | D155: 95.95694444 | E155: 15.99282407
A156: 154 | B156: 6450 | C156: =SUM(B$3:B156)/60 -> 5864.916667 | D156: 97.74861111 | E156: 16.29143519
A157: 155 | B157: 6530 | C157: =SUM(B$3:B157)/60 -> 5973.75 | D157: 99.5625 | E157: 16.59375
A158: 156 | B158: 6610 | C158: =SUM(B$3:B158)/60 -> 6083.916667 | D158: 101.3986111 | E158: 16.89976852
A159: 157 | B159: 6690 | C159: =SUM(B$3:B159)/60 -> 6195.416667 | D159: 103.2569444 | E159: 17.20949074
A160: 158 | B160: 6770 | C160: =SUM(B$3:B160)/60 -> 6308.25 | D160: 105.1375 | E160: 17.52291667
A161: 159 | B161: 6850 | C161: =SUM(B$3:B161)/60 -> 6422.416667 | D161: 107.0402778 | E161: 17.8400463
A162: 160 | B162: 6935 | C162: =SUM(B$3:B162)/60 -> 6538 | D162: 108.9666667 | E162: 18.16111111
